Workbook

Sheet presabana Total
A1: Marca temporal | B1: Puntuación | C1: Nombre Completo | D1: Turno | E1: Edad | F1: Grado | G1: Sexo | H1: Plantel | I1: 1.- ¿Eres arrogante? | J1: 2.- ¿Has tenido dificultades porque consumes drogas o bebidas alcohólicas en la escuela? | K1: 3.- ¿Se aburren tus amigos en las fiestas donde no sirven bebidas alcohólicas? | L1: 4.- ¿Discuten demasiado tus padres o tutores? | M1: 5.- ¿Te cansas con frecuencia? | N1: 6.- ¿Te asustas con facilidad? | O1: 7.- ¿Tienes menos energía de la que crees que deberías tener? | P1: 8.- ¿Te sientes frustrado(a) con facilidad? | Q1: 9.- ¿Amenazas a otros con hacerles daño? | R1: 10.- ¿Te sientes solo (a) la mayor parte del tiempo? | S1: 11.- ¿Dices groserías o vulgaridades? | T1: 12.- ¿Escuchas cuidadosamente cuando alguien te habla? | U1: 13.- ¿Son tus amigos (as) del agrado de tus padres o tutores? | V1: 14.- ¿Se niegan tus padres o tutores a hablarte cuando se enfadan contigo? | W1: 15.- ¿Actúas impulsivamente y sin pensar en las consecuencias que tendrán tus actos? | X1: 16.- ¿Has tenido algún trabajo eventual con sueldo? | Y1: 17.- ¿Te has hecho daño o le has hecho daño a otra persona accidentalmente, estando bajo los efectos del alcohol o drogas? | Z1: 18.- ¿Tienes buena ortografía? | AA1: 19.- ¿Tienes amigos que causan daño o destrucción intencionalmente? | AB1: 20.- La mayoría de las veces, ¿saben tus padres o tutores dónde estás y lo que estás haciendo? | AC1: 21.- ¿Sueles perderte actividades o acontecimientos porque has gastado demasiado dinero en drogas o bebidas alcohólicas? | AD1: 22.- ¿Participas en muchas actividades en compañía de tus padres o tutores? | AE1: 23.- ¿Te sientes nervioso (a) la mayor parte del tiempo? | AF1: 24.- ¿Has robado alguna vez? | AG1: 25.- ¿Has sentido que eres adicto (a) al alcohol o a las drogas? | AH1: 26.- ¿Sabes leer bien? | AI1: 27.- ¿Has estado ausente o llegado tarde a tu trabajo o escuela con frecuencia? | AJ1: 28.- ¿Sientes que la gente está en contra tuya? | AK1: 29.- ¿Tus amigos llevan drogas a las fiestas? | AL1: 30.- ¿Peleas con frecuencia? | AM1: 31.- ¿Tienes mal genio? | AN1: 32.- ¿Te prestan atención tus padres o tutores cuando les hablas? | AO1: 33.- ¿Has comenzado a consumir mayores cantidades de drogas o alcohol para obtener el efecto que deseas? | AP1: 34.- ¿Te dice la gente que eres descuidado (a)? | AQ1: 35.- ¿Eres terco (a) o testarudo (a)? | AR1: 36.- ¿Has tenido alguna vez o tienes actualmente un empleo? | AS1: 37.- ¿Has amenazado alguna vez a alguien con un arma? | AT1: 38.- ¿A veces te vas de las fiestas porque en ellas no hay bebidas alcohólicas o drogas? | AU1: 39.- ¿Saben tus padres o tutores cómo piensas o te sientes realmente? | AV1: 40.- ¿Actúas impulsivamente con frecuencia? | AW1: 41.- ¿Sientes un deseo constante de consumir bebidas alcohólicas o drogas? | AX1: 42.- ¿Pierdes el hilo del pensamiento con mucha frecuencia? | AY1: 43.- ¿Tienes dificultades para concentrarte? | AZ1: 44.- ¿Has tenido alguna vez un empleo con sueldo que haya durado por lo menos un mes? | BA1: 45.- ¿Discutes frecuentemente con tus padres o tutores, levantando la voz y gritando? | BB1: 46.- ¿Has tenido un accidente automovilístico estando bajo los efectos del alcohol o drogas? | BC1: 47.- ¿Olvidas lo que haces cuando bebes o te drogas? | BD1: 48.- El mes pasado, ¿manejaste un automóvil estando borracho (a) o drogado (a)? | BE1: 49.- ¿Levantas la voz más que los demás muchachos de tu edad? | BF1: 50.- ¿Has ocasionado daños a propiedad ajena intencionalmente? | BG1: 51.- ¿Has dejado un empleo sencillamente porque no te interesaban las consecuencias de dejarlo? | BH1: 52.- ¿A tus padres o tutores les gusta hablar y estar contigo? | BI1: 53.- ¿Has pasado alguna noche fuera de tu casa sin que tus padres o tutores supieran dónde estabas? | BJ1: 54.- ¿El uso del alcohol o drogas te produce cambios repentinos de humor, como pasar de estar contento (a) a estar triste, o viceversa? | BK1: 55.- ¿Te sientes triste la mayor parte del tiempo? | BL1: 56.- ¿Pierdes días de clase o llegas tarde a la escuela por haber consumido bebidas alcohólicas o drogas? | BM1: 57.- ¿Te han dicho alguna vez tus familiares o amigos que debes reducir el uso de bebidas alcohólicas o drogas? | BN1: 58.- ¿Discutes seriamente con tus amigos o familiares por el uso que haces de bebidas alcohólicas o drogas? | BO1: 59.- ¿Molestas mucho a tus amigos? | BP1: 60.- ¿Tienes dificultades para dormir? | BQ1: 61.- ¿Tienes dificultades con trabajos escritos? | BR1: 62.- Las bebidas alcohólicas o drogas, ¿te han inducido a hacer algo que normalmente no harías, como desobedecer alguna regla o ley, o la hora de llegar a casa, o tener relaciones sexuales con alguien? | BS1: 63.- ¿Sientes que a veces pierdes control de ti mismo(a) y terminas peleando? | BT1: 64.- ¿Faltaste a la escuela sin autorización el mes pasado? | BU1: 65.- ¿Tienes dificultades en tus relaciones con alguno de tus amigos debido a las bebidas alcohólicas o drogas que consumes? | BV1: 66.- ¿Tienes dificultad para seguir instrucciones? | BW1: 67.- ¿Tienes amigos que han golpeado o amenazado a alguien sin razón? | BX1: 68.- ¿Has sentido que no puedes controlar el deseo de consumir bebidas alcohólicas o drogas? | BY1: 69.- ¿Tienes buena memoria? | BZ1: 70.- ¿Tienen tus padres o tutores una idea relativamente buena de lo que te interesa? | CA1: 71.- ¿Están tus padres o tutores de acuerdo en cuanto a la forma en que te deben educar? | CB1: 72.- ¿Se te hace difícil hacer planes u organizar tus actividades? | CC1: 73.- ¿Tus amigos faltan a la escuela sin autorización con mucha frecuencia? | CD1: 74.- ¿A veces la escuela te hace sentirte como tonto? | CE1: 75.- ¿Frecuentemente sientes deseos de llorar? | CF1: 76.- ¿Te da miedo estar con la gente? | CG1: 77.- ¿Tienes amigos que han robado? | CH1: 78.- ¿Has reprobado algún año en la escuela? | CI1: 79.- ¿Es difícil la escuela para ti? | CJ1: 80.- ¿Eres una persona nerviosa, de las que no pueden estar sentadas mucho tiempo? | CK1: 81.- ¿Gritas mucho? | CL1: 1.-¿Toma de forma habitual algún medicamento, como aspirinas o pastillas para dormir? | CM1: 2.-¿Tiene dificultades para conciliar el sueño? | CN1: 3.-¿A veces nota que podría perder el control sobre sí mismo/a? | CO1: 4.- ¿Tiene poco interés en relacionarse con la gente? | CP1: 5.- ¿Ve su futuro con más pesimismo que optimismo? | CQ1: 6.- ¿Se ha sentido alguna vez inútil o inservible? | CR1: 7.- ¿Ve su futuro sin ninguna esperanza? | CS1: 8.- ¿Se ha sentido alguna vez tan fracasado/a que sólo quería meterse en la cama y abandonarlo todo? | CT1: 9.- ¿Está deprimido/a ahora? | CU1: 10.- ¿Está usted separado/a, divorciado/a, viudo/a? | CV1: 11.- ¿Sabe si alguien de su familia ha intentado suicidarse alguna vez? | CW1: 12.- ¿Alguna vez se ha sentido tan enfadado/a que habría sido capaz de matar a alguien? | CX1: 13.- ¿Ha pensado alguna vez en suicidarse? | CY1: 14.- ¿Le ha comentado a alguien, en alguna ocasión, que quería suicidarse? | CZ1: 15.- ¿Ha intentado alguna vez quitarse la vida?
A2: 1 | B2: 21 / 96 | C2: Verónica Pérez | D2: Matutino | E2: 24 | F2: 101 (1A) | G2: Mujer | H2: León - Insurgentes | I2: No | J2: No | K2: No | L2: No | M2: Si | N2: Si | O2: Si | P2: No | Q2: No | R2: No | S2: Si | T2: Si | U2: Si | V2: Si | W2: No | X2: No | Y2: No | Z2: Si | AA2: No | AB2: Si | AC2: No | AD2: No | AE2: No | AF2: No | AG2: No | AH2: Si | AI2: No | AJ2: No | AK2: No | AL2: No | AM2: Si | AN2: Si | AO2: No | AP2: No | AQ2: No | AR2: Si | AS2: No | AT2: No | AU2: No | AV2: No | AW2: No | AX2: No | AY2: No | AZ2: No | BA2: No | BB2: No | BC2: No | BD2: No | BE2: Si | BF2: No | BG2: Si | BH2: No | BI2: Si | BJ2: No | BK2: No | BL2: No | BM2: No | BN2: No | BO2: No | BP2: No | BQ2: Si | BR2: Si | BS2: No | BT2: No | BU2: No | BV2: No | BW2: No | BX2: No | BY2: No | BZ2: No | CA2: Si | CB2: No | CC2: No | CD2: No | CE2: Si | CF2: No | CG2: No | CH2: No | CI2: No | CJ2: No | CK2: Si | CL2: No | CM2: No | CN2: No | CO2: No | CP2: No | CQ2: Si | CR2: No | CS2: Si | CT2: No | CU2: No | CV2: No | CW2: Si | CX2: No | CY2: No | CZ2: No
A3: 2 | B3: 53 / 96 | C3: la pelos aviña montes | D3: Matutino | E3: 16 | F3: 102 (1B) | G3: Mujer | H3: León - Insurgentes | I3: Si | J3: No | K3: No | L3: Si | M3: No | N3: No | O3: No | P3: No | Q3: Si | R3: Si | S3: Si | T3: Si | U3: Si | V3: Si | W3: Si | X3: Si | Y3: Si | Z3: No | AA3: Si | AB3: Si | AC3: No | AD3: Si | AE3: Si | AF3: No | AG3: No | AH3: Si | AI3: No | AJ3: No | AK3: Si | AL3: No | AM3: Si | AN3: Si | AO3: No | AP3: Si | AQ3: Si | AR3: Si | AS3: No | AT3: No | AU3: No | AV3: Si | AW3: No | AX3: Si | AY3: Si | AZ3: Si | BA3: Si | BB3: No | BC3: No | BD3: No | BE3: Si | BF3: Si | BG3: Si | BH3: Si | BI3: No | BJ3: Si | BK3: Si | BL3: No | BM3: Si | BN3: No | BO3: Si | BP3: Si | BQ3: No | BR3: Si | BS3: No | BT3: No | BU3: Si | BV3: Si | BW3: Si | BX3: No | BY3: Si | BZ3: Si | CA3: Si | CB3: Si | CC3: No | CD3: No | CE3: Si | CF3: Si | CG3: No | CH3: No | CI3: Si | CJ3: Si | CK3: Si | CL3: Si | CM3: Si | CN3: Si | CO3: No | CP3: Si | CQ3: Si | CR3: Si | CS3: Si | CT3: No | CU3: Si | CV3: Si | CW3: Si | CX3: Si | CY3: Si | CZ3: Si
A4: 3 | B4: 6 | C4: Cristina Cruz Escalera | D4: Diurno | E4: 20 | F4: 101 (1A) | G4: Mujer | H4: Abasolo | I4: No | J4: No | K4: Si | L4: No | M4: No | N4: No | O4: No | P4: No | Q4: No | R4: No | S4: No | T4: Si | U4: Si | V4: No | W4: No | X4: Si | Y4: No | Z4: Si | AA4: No | AB4: No | AC4: No | AD4: Si | AE4: No | AF4: No | AG4: No | AH4: Si | AI4: No | AJ4: No | AK4: No | AL4: No | AM4: No | AN4: Si | AO4: No | AP4: No | AQ4: No | AR4: Si | AS4: No | AT4: No | AU4: Si | AV4: No | AW4: No | AX4: No | AY4: No | AZ4: No | BA4: No | BB4: No | BC4: No | BD4: No | BE4: No | BF4: No | BG4: No | BH4: Si | BI4: No | BJ4: No | BK4: No | BL4: No | BM4: No | BN4: No | BO4: No | BP4: No | BQ4: No | BR4: No | BS4: No | BT4: No | BU4: No | BV4: No | BW4: No | BX4: No | BY4: Si | BZ4: Si | CA4: Si | CB4: Si | CC4: No | CD4: No | CE4: No | CF4: No | CG4: Si | CH4: No | CI4: No | CJ4: No | CK4: No | CL4: No | CM4: No | CN4: No | CO4: No | CP4: No | CQ4: No | CR4: No | CS4: Si | CT4: No | CU4: No | CV4: No | CW4: No | CX4: No | CY4: No | CZ4: No
A5: 4 | B5: 28 / 96 | C5: Elizabeth Rodríguez | D5: Matutino | E5: 18 | F5: 102 (1B) | G5: Mujer | H5: León - Juárez 404 | I5: No | J5: No | K5: No | L5: No | M5: Si | N5: Si | O5: Si | P5: No | Q5: No | R5: No | S5: No | T5: Si | U5: Si | V5: No | W5: No | X5: Si | Y5: No | Z5: Si | AA5: No | AB5: Si | AC5: No | AD5: No | AE5: Si | AF5: Si | AG5: No | AH5: Si | AI5: Si | AJ5: No | AK5: No | AL5: Si | AM5: No | AN5: No | AO5: No | AP5: No | AQ5: No | AR5: Si | AS5: No | AT5: No | AU5: No | AV5: No | AW5: No | AX5: No | AY5: Si | AZ5: Si | BA5: No | BB5: No | BC5: No | BD5: No | BE5: No | BF5: No | BG5: No | BH5: Si | BI5: Si | BJ5: No | BK5: Si | BL5: No | BM5: No | BN5: No | BO5: No | BP5: Si | BQ5: Si | BR5: Si | BS5: Si | BT5: No | BU5: No | BV5: No | BW5: No | BX5: No | BY5: Si | BZ5: Si | CA5: No | CB5: No | CC5: No | CD5: No | CE5: Si | CF5: No | CG5: No | CH5: No | CI5: No | CJ5: No | CK5: No | CL5: No | CM5: Si | CN5: No | CO5: Si | CP5: No | CQ5: No | CR5: No | CS5: Si | CT5: Si | CU5: No | CV5: Si | CW5: No | CX5: Si | CY5: No | CZ5: Si
A6: 5 | B6: 89 / 96 | C6: Fabiola Castillo | D6: Nocturno | E6: 10 | F6: 111 (1K) | G6: Mujer | H6: Apaseo el Alto | I6: Si | J6: Si | K6: Si | L6: Si | M6: Si | N6: Si | O6: Si | P6: Si | Q6: Si | R6: Si | S6: Si | T6: No | U6: Si | V6: Si | W6: Si | X6: Si | Y6: Si | Z6: No | AA6: Si | AB6: No | AC6: Si | AD6: Si | AE6: Si | AF6: Si | AG6: Si | AH6: No | AI6: Si | AJ6: Si | AK6: Si | AL6: Si | AM6: Si | AN6: Si | AO6: Si | AP6: Si | AQ6: Si | AR6: Si | AS6: Si | AT6: Si | AU6: Si | AV6: Si | AW6: Si | AX6: Si | AY6: Si | AZ6: Si | BA6: Si | BB6: Si | BC6: Si | BD6: Si | BE6: Si | BF6: Si | BG6: Si | BH6: Si | BI6: Si | BJ6: Si | BK6: Si | BL6: Si | BM6: Si | BN6: Si | BO6: Si | BP6: Si | BQ6: Si | BR6: Si | BS6: Si | BT6: Si | BU6: Si | BV6: Si | BW6: Si | BX6: Si | BY6: No | BZ6: No | CA6: No | CB6: Si | CC6: Si | CD6: Si | CE6: Si | CF6: Si | CG6: Si | CH6: Si | CI6: Si | CJ6: Si | CK6: Si | CL6: Si | CM6: Si | CN6: Si | CO6: Si | CP6: Si | CQ6: Si | CR6: Si | CS6: Si | CT6: Si | CU6: Si | CV6: No | CW6: Si | CX6: Si | CY6: Si | CZ6: Si
A7: 6 | B7: 1996-06-01 | C7: Isis Desiree Martínez Conejo | D7: Matutino | E7: 18 | F7: 101 (1A) | G7: Mujer | H7: Salamanca | I7: No | J7: No | K7: Si | L7: No | M7: No | N7: No | O7: Si | P7: No | Q7: No | R7: No | S7: No | T7: Si | U7: Si | V7: No | W7: No | X7: No | Y7: No | Z7: Si | AA7: No | AB7: Si | AC7: No | AD7: Si | AE7: No | AF7: No | AG7: No | AH7: Si | AI7: No | AJ7: No | AK7: No | AL7: No | AM7: Si | AN7: Si | AO7: No | AP7: No | AQ7: Si | AR7: Si | AS7: No | AT7: No | AU7: Si | AV7: No | AW7: No | AX7: No | AY7: No | AZ7: Si | BA7: No | BB7: No | BC7: No | BD7: No | BE7: No | BF7: No | BG7: No | BH7: Si | BI7: No | BJ7: No | BK7: No | BL7: No | BM7: No | BN7: No | BO7: No | BP7: No | BQ7: No | BR7: No | BS7: No | BT7: No | BU7: No | BV7: No | BW7: No | BX7: No | BY7: Si | BZ7: Si | CA7: Si | CB7: No | CC7: No | CD7: No | CE7: No | CF7: No | CG7: No | CH7: No | CI7: No | CJ7: No | CK7: Si | CL7: No | CM7: No | CN7: No | CO7: No | CP7: No | CQ7: No | CR7: No | CS7: No | CT7: No | CU7: No | CV7: No | CW7: No | CX7: No | CY7: No | CZ7: No | DA7: Muy bien | DB7: No
A8: 7 | B8: 25 / 96 | C8: Zacatecas UCEMJM | D8: Diurno | E8: 27 | F8: 105 (1E) | G8: Mujer | H8: Fresnillo | I8: No | J8: No | K8: No | L8: No | M8: No | N8: No | O8: Si | P8: Si | Q8: No | R8: No | S8: Si | T8: Si | U8: No | V8: No | W8: Si | X8: Si | Y8: No | Z8: No | AA8: No | AB8: No | AC8: No | AD8: Si | AE8: No | AF8: No | AG8: No | AH8: Si | AI8: No | AJ8: No | AK8: No | AL8: No | AM8: No | AN8: Si | AO8: No | AP8: Si | AQ8: Si | AR8: Si | AS8: No | AT8: No | AU8: No | AV8: Si | AW8: No | AX8: No | AY8: No | AZ8: Si | BA8: No | BB8: No | BC8: No | BD8: No | BE8: Si | BF8: Si | BG8: No | BH8: No | BI8: No | BJ8: No | BK8: No | BL8: No | BM8: No | BN8: No | BO8: No | BP8: No | BQ8: No | BR8: No | BS8: Si | BT8: No | BU8: No | BV8: No | BW8: Si | BX8: No | BY8: No | BZ8: No | CA8: No | CB8: No | CC8: No | CD8: No | CE8: No | CF8: No | CG8: No | CH8: No | CI8: No | CJ8: Si | CK8: Si | CL8: No | CM8: No | CN8: No | CO8: No | CP8: No | CQ8: No | CR8: No | CS8: No | CT8: No | CU8: No | CV8: No | CW8: Si | CX8: No | CY8: No | CZ8: No | DA8: confundida con algunas preguntas | DB8: si
A9: 8 | B9: 1996-07-01 | C9: Luis Valenzuela | D9: Diurno | E9: 27 | F9: 101 (1A) | G9: Hombre | H9: Fresnillo | I9: No | J9: No | K9: No | L9: Si | M9: No | N9: No | O9: No | P9: No | Q9: No | R9: No | S9: Si | T9: Si | U9: Si | V9: No | W9: No | X9: Si | Y9: No | Z9: Si | AA9: No | AB9: Si | AC9: No | AD9: Si | AE9: No | AF9: No | AG9: No | AH9: Si | AI9: No | AJ9: No | AK9: No | AL9: No | AM9: No | AN9: Si | AO9: No | AP9: No | AQ9: Si | AR9: Si | AS9: No | AT9: No | AU9: Si | AV9: No | AW9: No | AX9: No | AY9: No | AZ9: Si | BA9: No | BB9: No | BC9: No | BD9: No | BE9: No | BF9: No | BG9: No | BH9: Si | BI9: No | BJ9: No | BK9: No | BL9: No | BM9: No | BN9: No | BO9: No | BP9: No | BQ9: No | BR9: No | BS9: No | BT9: No | BU9: No | BV9: No | BW9: No | BX9: No | BY9: Si | BZ9: Si | CA9: Si | CB9: No | CC9: No | CD9: No | CE9: No | CF9: No | CG9: No | CH9: No | CI9: No | CJ9: No | CK9: No | CL9: No | CM9: No | CN9: No | CO9: No | CP9: No | CQ9: No | CR9: No | CS9: Si | CT9: No | CU9: No | CV9: No | CW9: No | CX9: No | CY9: No | CZ9: No | DA9: Pienso que engloba bastante bien las constantes necesidades que se presentan en los alumnos de nuestro plantel. | DB9: No viene la opción de Plantel Zacatecas, Zac. (Jardín Morelos que es el único que tiene el Dpto. Psicopedagógico) solo las otras localidades como Jerez, Fresnillo, Pinos, Etc. (que segun entiendo no tienen Dpto. Psicopedagógico). Con la pregunta 71, refiera a si entre ellos están de acuerdo en como me educan o sobre la educación que recibo en la escuela? 51, has dejado un trabajo sencillamente porque no te interesaban las consecuencias de dejarlo? has dejado un trabajo sin contemplar las consecuencias que traería al dejarlo? Es mínima la observación sobre las preguntas, están comprensibles. Saludos.
A10: 9 | B10: 18 / 96 | C10: Andrea | D10: Matutino | E10: 24 | F10: 101 (1A) | G10: Mujer | H10: Saltillo 1 | I10: No | J10: No | K10: No | L10: No | M10: Si | N10: Si | O10: Si | P10: No | Q10: No | R10: No | S10: Si | T10: Si | U10: No | V10: Si | W10: No | X10: Si | Y10: No | Z10: Si | AA10: No | AB10: Si | AC10: No | AD10: No | AE10: No | AF10: No | AG10: No | AH10: Si | AI10: Si | AJ10: No | AK10: No | AL10: No | AM10: No | AN10: Si | AO10: No | AP10: No | AQ10: Si | AR10: Si | AS10: No | AT10: No | AU10: Si | AV10: No | AW10: No | AX10: No | AY10: Si | AZ10: Si | BA10: No | BB10: No | BC10: No | BD10: No | BE10: No | BF10: No | BG10: No | BH10: Si | BI10: No | BJ10: No | BK10: No | BL10: No | BM10: No | BN10: No | BO10: No | BP10: No | BQ10: No | BR10: No | BS10: No | BT10: No | BU10: No | BV10: No | BW10: No | BX10: No | BY10: No | BZ10: Si | CA10: Si | CB10: Si | CC10: No | CD10: No | CE10: Si | CF10: No | CG10: No | CH10: No | CI10: No | CJ10: No | CK10: No | CL10: No | CM10: No | CN10: No | CO10: No | CP10: No | CQ10: Si | CR10: No | CS10: Si | CT10: No | CU10: No | CV10: No | CW10: No | CX10: No | CY10: No | CZ10: No | DA10: Bien | DB10: Hay una pregunta que dice '' sabes si alguno de tus familiares ha intentado suicidarse'' la respuesta iría encaminada a "si se" o "no se". Desconozco si lo que desean saber es si el alumno tiene conocimiento al respecto o si en realidad hay antecedentes de suicidio en la familia. De ser así, sugeriría replantear la pregunta.
A11: 10 | B11: 1996-09-01 | C11: Angel Dominguez Orozco | D11: Matutino | E11: 30 | F11: 101 (1A) | G11: Hombre | H11: San Luis Potosí 1 - Calzada de Guadalupe | I11: Si | J11: No | K11: No | L11: No | M11: No | N11: No | O11: No | P11: Si | Q11: No | R11: No | S11: No | T11: Si | U11: Si | V11: No | W11: No | X11: Si | Y11: No | Z11: Si | AA11: No | AB11: No | AC11: No | AD11: Si | AE11: No | AF11: No | AG11: No | AH11: Si | AI11: No | AJ11: No | AK11: No | AL11: No | AM11: No | AN11: Si | AO11: No | AP11: No | AQ11: Si | AR11: No | AS11: No | AT11: No | AU11: No | AV11: No | AW11: No | AX11: No | AY11: No | AZ11: Si | BA11: No | BB11: No | BC11: No | BD11: No | BE11: No | BF11: No | BG11: No | BH11: Si | BI11: No | BJ11: No | BK11: No | BL11: No | BM11: No | BN11: No | BO11: No | BP11: No | BQ11: No | BR11: No | BS11: No | BT11: No | BU11: No | BV11: No | BW11: No | BX11: No | BY11: No | BZ11: No | CA11: Si | CB11: No | CC11: No | CD11: No | CE11: No | CF11: No | CG11: No | CH11: No | CI11: No | CJ11: No | CK11: No | CL11: No | CM11: No | CN11: No | CO11: No | CP11: No | CQ11: No | CR11: No | CS11: No | CT11: No | CU11: No | CV11: No | CW11: No | CX11: No | CY11: No | CZ11: No | DA11: Abrumado, son demasiadas preguntas | DB11: no
A12: 11 | B12: 1996-06-01 | C12: Jose Cuaddra Garcia | D12: Matutino | E12: 49 | F12: 101 (1A) | G12: Hombre | H12: Zamora | I12: No | J12: No | K12: No | L12: No | M12: Si | N12: No | O12: Si | P12: No | Q12: No | R12: No | S12: No | T12: Si | U12: Si | V12: No | W12: No | X12: No | Y12: No | Z12: Si | AA12: No | AB12: Si | AC12: No | AD12: Si | AE12: No | AF12: No | AG12: No | AH12: Si | AI12: No | AJ12: No | AK12: No | AL12: No | AM12: No | AN12: No | AO12: No | AP12: No | AQ12: No | AR12: Si | AS12: No | AT12: No | AU12: Si | AV12: No | AW12: No | AX12: No | AY12: No | AZ12: Si | BA12: No | BB12: No | BC12: No | BD12: No | BE12: No | BF12: No | BG12: No | BH12: Si | BI12: No | BJ12: No | BK12: No | BL12: No | BM12: No | BN12: No | BO12: No | BP12: No | BQ12: No | BR12: No | BS12: No | BT12: No | BU12: No | BV12: No | BW12: No | BX12: No | BY12: Si | BZ12: Si | CA12: Si | CB12: No | CC12: No | CD12: No | CE12: No | CF12: No | CG12: No | CH12: No | CI12: No | CJ12: No | CK12: No | CL12: No | CM12: No | CN12: No | CO12: No | CP12: No | CQ12: No | CR12: No | CS12: No | CT12: No | CU12: Si | CV12: No | CW12: No | CX12: No | CY12: No | CZ12: No | DA12: muy buen tranquilo | DB12: no
A13: 12 | B13: 20 / 96 | C13: Alma Angélica Martínez Vargas | D13: Matutino | E13: 26 | F13: 101 (1A) | G13: Mujer | H13: Aguascalientes | I13: No | J13: No | K13: No | L13: No | M13: No | N13: No | O13: Si | P13: No | Q13: No | R13: No | S13: Si | T13: Si | U13: Si | V13: No | W13: No | X13: Si | Y13: No | Z13: Si | AA13: Si | AB13: Si | AC13: No | AD13: No | AE13: No | AF13: No | AG13: No | AH13: Si | AI13: No | AJ13: No | AK13: Si | AL13: No | AM13: Si | AN13: Si | AO13: No | AP13: No | AQ13: Si | AR13: Si | AS13: No | AT13: No | AU13: Si | AV13: No | AW13: No | AX13: No | AY13: Si | AZ13: Si | BA13: No | BB13: No | BC13: No | BD13: No | BE13: Si | BF13: No | BG13: No | BH13: Si | BI13: No | BJ13: No | BK13: No | BL13: No | BM13: No | BN13: No | BO13: No | BP13: No | BQ13: No | BR13: No | BS13: No | BT13: No | BU13: No | BV13: No | BW13: No | BX13: No | BY13: No | BZ13: Si | CA13: No | CB13: Si | CC13: No | CD13: No | CE13: No | CF13: No | CG13: Si | CH13: Si | CI13: No | CJ13: No | CK13: Si | CL13: No | CM13: No | CN13: Si | CO13: No | CP13: No | CQ13: Si | CR13: No | CS13: No | CT13: No | CU13: No | CV13: No | CW13: No | CX13: No | CY13: No | CZ13: No | DA13: bien | DB13: no
A14: 13 | B14: 1996-07-01 | C14: Angélica Rodríguez | D14: Matutino | E14: 32 | F14: 101 (1A) | G14: Mujer | H14: San Luis de la Paz - Guerrero | I14: No | J14: No | K14: No | L14: No | M14: No | N14: No | O14: No | P14: No | Q14: No | R14: No | S14: No | T14: Si | U14: Si | V14: No | W14: No | X14: Si | Y14: No | Z14: No | AA14: No | AB14: Si | AC14: No | AD14: Si | AE14: No | AF14: No | AG14: No | AH14: Si | AI14: No | AJ14: No | AK14: No | AL14: No | AM14: No | AN14: Si | AO14: No | AP14: Si | AQ14: No | AR14: Si | AS14: No | AT14: No | AU14: Si | AV14: No | AW14: No | AX14: No | AY14: Si | AZ14: Si | BA14: No | BB14: No | BC14: No | BD14: No | BE14: No | BF14: No | BG14: No | BH14: Si | BI14: Si | BJ14: No | BK14: No | BL14: No | BM14: No | BN14: No | BO14: No | BP14: No | BQ14: No | BR14: No | BS14: No | BT14: No | BU14: No | BV14: No | BW14: No | BX14: No | BY14: Si | BZ14: Si | CA14: Si | CB14: No | CC14: No | CD14: No | CE14: No | CF14: No | CG14: No | CH14: No | CI14: No | CJ14: No | CK14: No | CL14: No | CM14: No | CN14: No | CO14: No | CP14: No | CQ14: No | CR14: No | CS14: No | CT14: No | CU14: No | CV14: No | CW14: No | CX14: No | CY14: No | CZ14: No | DA14: Excelente | DB14: Ninguna
A15: 14 | B15: 1996-04-01 | C15: Heidi Janette Calderon Avilez | D15: Matutino | E15: 42 | F15: 101 (1A) | G15: Mujer | H15: Irapuato - Fiesta | I15: No | J15: No | K15: No | L15: No | M15: No | N15: No | O15: No | P15: No | Q15: No | R15: No | S15: No | T15: Si | U15: Si | V15: No | W15: No | X15: Si | Y15: No | Z15: Si | AA15: No | AB15: Si | AC15: No | AD15: Si | AE15: No | AF15: No | AG15: No | AH15: Si | AI15: No | AJ15: No | AK15: No | AL15: No | AM15: No | AN15: Si | AO15: No | AP15: No | AQ15: Si | AR15: Si | AS15: No | AT15: No | AU15: Si | AV15: No | AW15: No | AX15: No | AY15: No | AZ15: Si | BA15: No | BB15: No | BC15: No | BD15: No | BE15: No | BF15: No | BG15: No | BH15: Si | BI15: No | BJ15: No | BK15: No | BL15: No | BM15: No | BN15: No | BO15: No | BP15: No | BQ15: No | BR15: No | BS15: No | BT15: No | BU15: No | BV15: No | BW15: No | BX15: No | BY15: Si | BZ15: Si | CA15: Si | CB15: No | CC15: No | CD15: No | CE15: No | CF15: No | CG15: No | CH15: No | CI15: No | CJ15: No | CK15: No | CL15: No | CM15: No | CN15: No | CO15: No | CP15: No | CQ15: No | CR15: No | CS15: No | CT15: No | CU15: No | CV15: No | CW15: No | CX15: No | CY15: No | CZ15: No | DA15: Todo bien | DB15: No
A16: 15 | B16: 1996-07-01 | C16: Queretaro zaragoza | D16: Matutino | E16: 15 | F16: 101 (1A) | G16: Hombre | H16: Querétaro 1 - Zaragoza | I16: No | J16: No | K16: No | L16: No | M16: No | N16: No | O16: No | P16: No | Q16: No | R16: No | S16: No | T16: No | U16: Si | V16: No | W16: No | X16: Si | Y16: No | Z16: Si | AA16: No | AB16: Si | AC16: No | AD16: Si | AE16: No | AF16: No | AG16: No | AH16: Si | AI16: No | AJ16: No | AK16: No | AL16: No | AM16: No | AN16: Si | AO16: No | AP16: No | AQ16: No | AR16: Si | AS16: No | AT16: No | AU16: Si | AV16: No | AW16: No | AX16: No | AY16: No | AZ16: Si | BA16: No | BB16: No | BC16: No | BD16: No | BE16: No | BF16: No | BG16: No | BH16: Si | BI16: No | BJ16: No | BK16: No | BL16: No | BM16: No | BN16: No | BO16: No | BP16: Si | BQ16: No | BR16: No | BS16: No | BT16: No | BU16: No | BV16: No | BW16: No | BX16: No | BY16: Si | BZ16: Si | CA16: Si | CB16: No | CC16: No | CD16: No | CE16: No | CF16: No | CG16: No | CH16: No | CI16: No | CJ16: No | CK16: No | CL16: No | CM16: No | CN16: No | CO16: No | CP16: No | CQ16: No | CR16: No | CS16: Si | CT16: Si | CU16: No | CV16: No | CW16: No | CX16: No | CY16: No | CZ16: No | DA16: Bien. Esta perfecto el rest | DB16: No
A17: 16 | B17: 1996-08-01 | C17: MARIA DE LOS ANGELES FALCÓN MENDOZA | D17: Matutino | E17: 26 | F17: 101 (1A) | G17: Mujer | H17: Celaya - Insurgentes | I17: No | J17: No | K17: No | L17: No | M17: Si | N17: No | O17: Si | P17: No | Q17: No | R17: No | S17: Si | T17: Si | U17: Si | V17: No | W17: No | X17: Si | Y17: No | Z17: Si | AA17: No | AB17: Si | AC17: No | AD17: Si | AE17: No | AF17: No | AG17: No | AH17: Si | AI17: No | AJ17: No | AK17: No | AL17: No | AM17: No | AN17: Si | AO17: No | AP17: No | AQ17: No | AR17: Si | AS17: No | AT17: No | AU17: Si | AV17: No | AW17: No | AX17: No | AY17: No | AZ17: Si | BA17: No | BB17: No | BC17: No | BD17: No | BE17: No | BF17: No | BG17: No | BH17: Si | BI17: No | BJ17: No | BK17: No | BL17: No | BM17: No | BN17: No | BO17: No | BP17: Si | BQ17: No | BR17: No | BS17: No | BT17: No | BU17: No | BV17: No | BW17: No | BX17: No | BY17: Si | BZ17: Si | CA17: Si | CB17: No | CC17: No | CD17: No | CE17: No | CF17: No | CG17: No | CH17: No | CI17: No | CJ17: No | CK17: No | CL17: No | CM17: Si | CN17: No | CO17: No | CP17: No | CQ17: No | CR17: No | CS17: No | CT17: No | CU17: No | CV17: No | CW17: No | CX17: No | CY17: No | CZ17: No | DA17: NO HUBO NINGUNA PALABRA DIFUSA O CONFUSIÓN | DB17: NO, UNICAMENTE SE MUESTRAN LAS PREGUNTAS EN DESORDEN NÚMERICO
A18: 17 | B18: 1996-01-01 | C18: Laura Itzel Merino Lara | D18: Matutino | E18: 28 | F18: 101 (1A) | G18: Mujer | H18: Irapuato - Fiesta | I18: No | J18: No | K18: No | L18: No | M18: No | N18: No | O18: No | P18: No | Q18: No | R18: No | S18: No | T18: Si | U18: Si | V18: No | W18: No | X18: No | Y18: No | Z18: Si | AA18: No | AB18: Si | AC18: No | AD18: Si | AE18: No | AF18: No | AG18: No | AH18: Si | AI18: No | AJ18: No | AK18: No | AL18: No | AM18: No | AN18: Si | AO18: No | AP18: No | AQ18: No | AR18: Si | AS18: No | AT18: No | AU18: Si | AV18: No | AW18: No | AX18: No | AY18: No | AZ18: No | BA18: No | BB18: No | BC18: No | BD18: No | BE18: No | BF18: No | BG18: No | BH18: Si | BI18: No | BJ18: No | BK18: No | BL18: No | BM18: No | BN18: No | BO18: No | BP18: No | BQ18: No | BR18: No | BS18: No | BT18: No | BU18: No | BV18: No | BW18: No | BX18: No | BY18: Si | BZ18: Si | CA18: Si | CB18: No | CC18: No | CD18: No | CE18: No | CF18: No | CG18: No | CH18: No | CI18: No | CJ18: No | CK18: No | CL18: No | CM18: No | CN18: No | CO18: No | CP18: No | CQ18: No | CR18: No | CS18: No | CT18: No | CU18: No | CV18: No | CW18: No | CX18: No | CY18: No | CZ18: No | DA18: Bien | DB18: La pregunta 14 tal ves pueda tener otra respuesta adicional como “no tengo planes de suicidarme”
A19: 18 | B19: 16 / 96 | C19: Psic. Teresita de Jesús Cuellar Espinoza | D19: Matutino | E19: 25 | F19: 101 (1A) | G19: Mujer | H19: Silao 1 | I19: No | J19: No | K19: No | L19: Si | M19: No | N19: No | O19: No | P19: No | Q19: No | R19: No | S19: Si | T19: Si | U19: Si | V19: Si | W19: No | X19: Si | Y19: No | Z19: Si | AA19: No | AB19: No | AC19: No | AD19: No | AE19: No | AF19: No | AG19: No | AH19: Si | AI19: No | AJ19: No | AK19: No | AL19: No | AM19: Si | AN19: Si | AO19: No | AP19: No | AQ19: No | AR19: Si | AS19: No | AT19: No | AU19: Si | AV19: No | AW19: No | AX19: No | AY19: No | AZ19: Si | BA19: No | BB19: No | BC19: No | BD19: No | BE19: No | BF19: No | BG19: No | BH19: No | BI19: Si | BJ19: No | BK19: No | BL19: No | BM19: No | BN19: No | BO19: No | BP19: Si | BQ19: No | BR19: No | BS19: No | BT19: No | BU19: No | BV19: No | BW19: No | BX19: No | BY19: Si | BZ19: Si | CA19: Si | CB19: No | CC19: No | CD19: No | CE19: No | CF19: No | CG19: No | CH19: No | CI19: No | CJ19: Si | CK19: No | CL19: No | CM19: Si | CN19: No | CO19: Si | CP19: No | CQ19: No | CR19: No | CS19: No | CT19: No | CU19: No | CV19: Si | CW19: No | CX19: No | CY19: No | CZ19: No | DA19: Bien, todo fluyo de la mejor manera. | DB19: No, todo fue fluido y comprensible.

Sheet Sabana por grupo
A1: Marca temporal | B1: Puntuación | C1: Nombre Completo | D1: Turno | E1: Edad | F1: Grado | G1: Sexo | H1: Plantel | I1: 1.- ¿Eres arrogante? | J1: 2.- ¿Has tenido dificultades porque consumes drogas o bebidas alcohólicas en la escuela? | K1: 3.- ¿Se aburren tus amigos en las fiestas donde no sirven bebidas alcohólicas? | L1: 4.- ¿Discuten demasiado tus padres o tutores? | M1: 5.- ¿Te cansas con frecuencia? | N1: 6.- ¿Te asustas con facilidad? | O1: 7.- ¿Tienes menos energía de la que crees que deberías tener? | P1: 8.- ¿Te sientes frustrado(a) con facilidad? | Q1: 9.- ¿Amenazas a otros con hacerles daño? | R1: 10.- ¿Te sientes solo (a) la mayor parte del tiempo? | S1: 11.- ¿Dices groserías o vulgaridades? | T1: 12.- ¿Escuchas cuidadosamente cuando alguien te habla? | U1: 13.- ¿Son tus amigos (as) del agrado de tus padres o tutores? | V1: 14.- ¿Se niegan tus padres o tutores a hablarte cuando se enfadan contigo? | W1: 15.- ¿Actúas impulsivamente y sin pensar en las consecuencias que tendrán tus actos? | X1: 16.- ¿Has tenido algún trabajo eventual con sueldo? | Y1: 17.- ¿Te has hecho daño o le has hecho daño a otra persona accidentalmente, estando bajo los efectos del alcohol o drogas? | Z1: 18.- ¿Tienes buena ortografía? | AA1: 19.- ¿Tienes amigos que causan daño o destrucción intencionalmente? | AB1: 20.- La mayoría de las veces, ¿saben tus padres o tutores dónde estás y lo que estás haciendo? | AC1: 21.- ¿Sueles perderte actividades o acontecimientos porque has gastado demasiado dinero en drogas o bebidas alcohólicas? | AD1: 22.- ¿Participas en muchas actividades en compañía de tus padres o tutores? | AE1: 23.- ¿Te sientes nervioso (a) la mayor parte del tiempo? | AF1: 24.- ¿Has robado alguna vez? | AG1: 25.- ¿Has sentido que eres adicto (a) al alcohol o a las drogas? | AH1: 26.- ¿Sabes leer bien? | AI1: 27.- ¿Has estado ausente o llegado tarde a tu trabajo o escuela con frecuencia? | AJ1: 28.- ¿Sientes que la gente está en contra tuya? | AK1: 29.- ¿Tus amigos llevan drogas a las fiestas? | AL1: 30.- ¿Peleas con frecuencia? | AM1: 31.- ¿Tienes mal genio? | AN1: 32.- ¿Te prestan atención tus padres o tutores cuando les hablas? | AO1: 33.- ¿Has comenzado a consumir mayores cantidades de drogas o alcohol para obtener el efecto que deseas? | AP1: 34.- ¿Te dice la gente que eres descuidado (a)? | AQ1: 35.- ¿Eres terco (a) o testarudo (a)? | AR1: 36.- ¿Has tenido alguna vez o tienes actualmente un empleo? | AS1: 37.- ¿Has amenazado alguna vez a alguien con un arma? | AT1: 38.- ¿A veces te vas de las fiestas porque en ellas no hay bebidas alcohólicas o drogas? | AU1: 39.- ¿Saben tus padres o tutores cómo piensas o te sientes realmente? | AV1: 40.- ¿Actúas impulsivamente con frecuencia? | AW1: 41.- ¿Sientes un deseo constante de consumir bebidas alcohólicas o drogas? | AX1: 42.- ¿Pierdes el hilo del pensamiento con mucha frecuencia? | AY1: 43.- ¿Tienes dificultades para concentrarte? | AZ1: 44.- ¿Has tenido alguna vez un empleo con sueldo que haya durado por lo menos un mes? | BA1: 45.- ¿Discutes frecuentemente con tus padres o tutores, levantando la voz y gritando? | BB1: 46.- ¿Has tenido un accidente automovilístico estando bajo los efectos del alcohol o drogas? | BC1: 47.- ¿Olvidas lo que haces cuando bebes o te drogas? | BD1: 48.- El mes pasado, ¿manejaste un automóvil estando borracho (a) o drogado (a)? | BE1: 49.- ¿Levantas la voz más que los demás muchachos de tu edad? | BF1: 50.- ¿Has ocasionado daños a propiedad ajena intencionalmente? | BG1: 51.- ¿Has dejado un empleo sencillamente porque no te interesaban las consecuencias de dejarlo? | BH1: 52.- ¿A tus padres o tutores les gusta hablar y estar contigo? | BI1: 53.- ¿Has pasado alguna noche fuera de tu casa sin que tus padres o tutores supieran dónde estabas? | BJ1: 54.- ¿El uso del alcohol o drogas te produce cambios repentinos de humor, como pasar de estar contento (a) a estar triste, o viceversa? | BK1: 55.- ¿Te sientes triste la mayor parte del tiempo? | BL1: 56.- ¿Pierdes días de clase o llegas tarde a la escuela por haber consumido bebidas alcohólicas o drogas? | BM1: 57.- ¿Te han dicho alguna vez tus familiares o amigos que debes reducir el uso de bebidas alcohólicas o drogas? | BN1: 58.- ¿Discutes seriamente con tus amigos o familiares por el uso que haces de bebidas alcohólicas o drogas? | BO1: 59.- ¿Molestas mucho a tus amigos? | BP1: 60.- ¿Tienes dificultades para dormir? | BQ1: 61.- ¿Tienes dificultades con trabajos escritos? | BR1: 62.- Las bebidas alcohólicas o drogas, ¿te han inducido a hacer algo que normalmente no harías, como desobedecer alguna regla o ley, o la hora de llegar a casa, o tener relaciones sexuales con alguien? | BS1: 63.- ¿Sientes que a veces pierdes control de ti mismo(a) y terminas peleando? | BT1: 64.- ¿Faltaste a la escuela sin autorización el mes pasado? | BU1: 65.- ¿Tienes dificultades en tus relaciones con alguno de tus amigos debido a las bebidas alcohólicas o drogas que consumes? | BV1: 66.- ¿Tienes dificultad para seguir instrucciones? | BW1: 67.- ¿Tienes amigos que han golpeado o amenazado a alguien sin razón? | BX1: 68.- ¿Has sentido que no puedes controlar el deseo de consumir bebidas alcohólicas o drogas? | BY1: 69.- ¿Tienes buena memoria? | BZ1: 70.- ¿Tienen tus padres o tutores una idea relativamente buena de lo que te interesa? | CA1: 71.- ¿Están tus padres o tutores de acuerdo en cuanto a la forma en que te deben educar? | CB1: 72.- ¿Se te hace difícil hacer planes u organizar tus actividades? | CC1: 73.- ¿Tus amigos faltan a la escuela sin autorización con mucha frecuencia? | CD1: 74.- ¿A veces la escuela te hace sentirte como tonto? | CE1: 75.- ¿Frecuentemente sientes deseos de llorar? | CF1: 76.- ¿Te da miedo estar con la gente? | CG1: 77.- ¿Tienes amigos que han robado? | CH1: 78.- ¿Has reprobado algún año en la escuela? | CI1: 79.- ¿Es difícil la escuela para ti? | CJ1: 80.- ¿Eres una persona nerviosa, de las que no pueden estar sentadas mucho tiempo? | CK1: 81.- ¿Gritas mucho? | CL1: 1.-¿Toma de forma habitual algún medicamento, como aspirinas o pastillas para dormir? | CM1: 2.-¿Tiene dificultades para conciliar el sueño? | CN1: 3.-¿A veces nota que podría perder el control sobre sí mismo/a? | CO1: 4.- ¿Tiene poco interés en relacionarse con la gente? | CP1: 5.- ¿Ve su futuro con más pesimismo que optimismo? | CQ1: 6.- ¿Se ha sentido alguna vez inútil o inservible? | CR1: 7.- ¿Ve su futuro sin ninguna esperanza? | CS1: 8.- ¿Se ha sentido alguna vez tan fracasado/a que sólo quería meterse en la cama y abandonarlo todo? | CT1: 9.- ¿Está deprimido/a ahora? | CU1: 10.- ¿Está usted separado/a, divorciado/a, viudo/a? | CV1: 11.- ¿Sabe si alguien de su familia ha intentado suicidarse alguna vez? | CW1: 12.- ¿Alguna vez se ha sentido tan enfadado/a que habría sido capaz de matar a alguien? | CX1: 13.- ¿Ha pensado alguna vez en suicidarse? | CY1: 14.- ¿Le ha comentado a alguien, en alguna ocasión, que quería suicidarse? | CZ1: 15.- ¿Ha intentado alguna vez quitarse la vida?
A2: 3 | B2: 6 | C2: Cristina Cruz Escalera | D2: Diurno | E2: 20 | F2: 101 (1A) | G2: Mujer | H2: Abasolo | I2: No | J2: No | K2: Si | L2: No | M2: No | N2: No | O2: No | P2: No | Q2: No | R2: No | S2: No | T2: Si | U2: Si | V2: No | W2: No | X2: Si | Y2: No | Z2: Si | AA2: No | AB2: No | AC2: No | AD2: Si | AE2: No | AF2: No | AG2: No | AH2: Si | AI2: No | AJ2: No | AK2: No | AL2: No | AM2: No | AN2: Si | AO2: No | AP2: No | AQ2: No | AR2: Si | AS2: No | AT2: No | AU2: Si | AV2: No | AW2: No | AX2: No | AY2: No | AZ2: No | BA2: No | BB2: No | BC2: No | BD2: No | BE2: No | BF2: No | BG2: No | BH2: Si | BI2: No | BJ2: No | BK2: No | BL2: No | BM2: No | BN2: No | BO2: No | BP2: No | BQ2: No | BR2: No | BS2: No | BT2: No | BU2: No | BV2: No | BW2: No | BX2: No | BY2: Si | BZ2: Si | CA2: Si | CB2: Si | CC2: No | CD2: No | CE2: No | CF2: No | CG2: Si | CH2: No | CI2: No | CJ2: No | CK2: No | CL2: No | CM2: No | CN2: No | CO2: No | CP2: No | CQ2: No | CR2: No | CS2: Si | CT2: No | CU2: No | CV2: No | CW2: No | CX2: No | CY2: No | CZ2: No

Sheet Hoja2 (hidden)
A1: Abasolo
A2: Acámbaro - Juárez | B2: 101 (1A)
A3: Acábaro - Zaragoza | B3: 102 (1B)
A4: Acámbaro - Miguel Hidalgo | B4: 103 (1C)
A5: Apaseo el Alto | B5: 104 (1D)
A6: Apaseo el Grande | B6: 105 (1E)
A7: Celaya - Factoría | B7: 106 (1F)
A8: Celaya - Hidalgo 1 | B8: 107 (1G)
A9: Celaya - Hidalgo 2 | B9: 108 (1H)
A10: Celaya - Insurgentes | B10: 109 (1I)
A11: Celaya - Juárez | B11: 110 (1J)
A12: Celaya - Firenze | B12: 111 (1K)
A13: Comonfort
A14: Cortazar
A15: Dolores Hidalgo - Norte
A16: Dolores Hidalgo - José Alfredo Jiménez
A17: Guanajuato
A18: Irapuato - Sóstenes Rocha
A19: Irapuato - Espigas
A20: Irapuato - Fiesta
A21: Irapuato - Guerrero
A22: Juventino Rosas
A23: León - 5 de febrero
A24: León - Díaz Mirón
A25: León - Emiliano Zapata
A26: León - Francisco Z. Mena
A27: León - Hermanos Aldama 1
A28: León - Hermanos Aldama 2
A29: León - Insurgentes
A30: León - Juárez 2 Posgrados
A31: León - Juárez 404
A32: León - Adolfo López Mateos 308
A33: León - Madero 801
A34: León - Muñoz
A35: León - Pinosuárez (Motolinia)
A36: León - Firenze
A37: Moroleón
A38: Pénjamo
A39: Salamanca
A40: Salvatierra
A41: San Felipe - Belisario
A42: San Felipe - Jiménez
A43: San Francisco del Rincón - Madero
A44: San Francisco del Rincón - Obregón
A45: San José Inturbide - Juárez
A46: San José Iturbide - Morelos
A47: San Luis de la Paz - Guerrero
A48: San Luis de la Paz - Rayón
A49: San Luis de la Paz - Mina
A50: San Miguel de Allende
A51: Silao 1
A52: Silao 2
A53: Silao 3
A54: Valle de Santiago
A55: Yuriria
A56: Romita
A57: Manuel Doblado
A58: Jerecuaro
A59: Villagrán
A60: Jaral del progreso - Guerrero
A61: Aguascalientes
A62: Calvillo
A63: Pabellón de Arteaga
A64: Rincón de Romos
A65: Ensenada
A66: Mexicali
A67: Tijuana
A68: Campeche
A69: Tapachula
A70: Tuxtla Gutiérrez
A71: Chihuahua
A72: Monclova
A73: Saltillo 1
A74: Saltillo 2
A75: Saltillo 3
A76: Torreón
A77: Tlalnepantla
A78: Actopan
A79: Huejutla
A80: Pachuca
A81: Tezontepec
A82: Tepeapulco
A83: Tepeji del Río
A84: Tlaxcoapan
A85: Tula
A86: Tulancingo
A87: Arandas
A88: Ciudad Guzmán
A89: Guadalajara
A90: Zapopan
A91: Lagos de Moreno 1- Leandro Guerra
A92: Lagos de Moreno 2 - Rincón Gallardo
A93: Ocotlán
A94: Tala
A95: Tepatitlán
A96: San Diego de la Unión
A97: Reforma
A98: La Piedad 1 - Hidalgo
A99: La Piedad 2 - Universidad
A100: Morelia
A101: Zamora
A102: Yerecuaro
A103: Tepic
A104: Oaxaca
A105: Cadereyta
A106: Ezequiel Montes
A107: Pedro Escobedo
A108: Querétaro 1 - Zaragoza
A109: Querétaro 2 - Turmolina
A110: San Juan del Río 1
A111: San Juan del Río 2
A112: San Juan del Río 3
A113: Amealco de Bonfil
A114: Colón
A115: Cancún 1
A116: Cancún 2
A117: Ciudad Valles
A118: Matehuala
A119: Río Verde
A120: San Luis Potosí 1 - Calzada de Guadalupe
A121: San Luis Potosí 2 - Guerrero
A122: San Luis Potosí 3 - Amado Nervo
A123: San Luis Potosí 4
A124: Tequisquiapan
A125: Tamazunchale
A126: Santa María del Río
A127: Villa de Reyes
A128: Culiacán
A129: Culiacán - Firenze
A130: Los Mochis
A131: Mazatlán
A132: Villahermosa
A133: Córdoba
A134: Veracruz
A135: Mérida
A136: Fresnillo
A137: Jerez
A138: Pinos
A139: Río Grande
A140: Zacatecas 1
A141: Zacatecas 2

Sheet Datos generales (hidden)
C1: Total de la muestra: | K1: =COUNT('Sabana por grupo'!A1:A99049) -> 1 | AO1: Folio | AP1: Nombre | AQ1: Puntuacion | AR1: Tipo de riesgo | AS1: Sexo | AT1: Factor de riesgo
B2: SI | C2: NO | F2: SI | G2: NO | J2: SI | K2: NO | M2: SUSTANCIAS | Q2: FAMILIA | U2: CONDUCTA | Y2: SALUD | AC2: N. EDUCAT | AG2: AMIGOS | AK2: LABORAL | AO2: ='Sabana por grupo'!A2 -> 3 | AP2: ='Sabana por grupo'!C2 -> Cristina Cruz Escalera | AQ2: =_xlfn.NUMBERVALUE(AU2) -> 6 | AR2: =IF(AT2=0,"N/A",IF(AT2<$AX$2,"Riesgo Menor",IF(AT2<$AX$3,"Riesgo Probable","Atencion de Prioridad"))) -> Riesgo Menor | AS2: ='Sabana por grupo'!G2 -> Mujer | AT2: =(AU2/AV13) -> 0.07407407407 | AU2: =MID('Sabana por grupo'!B2,1,2) -> 6 | AV2: 81 | AX2: =23/81 -> 0.2839506173 | AY2: 23
A3: 1 | B3: =COUNTIF('Sabana por grupo'!$I$1:$I$5500,"Si") -> 0 | C3: =COUNTIF('Sabana por grupo'!$I$1:$I$5500,"No") -> 1 | E3: 55 | F3: =COUNTIF('Sabana por grupo'!$BK$1:$BK$98175,"Si") -> 0 | G3: =COUNTIF('Sabana por grupo'!$BK$1:$BK$98175,"No") -> 1 | I3: 12 | J3: =COUNTIF('Sabana por grupo'!$T$1:$T$98159,"Si") -> 1 | K3: =COUNTIF('Sabana por grupo'!$T$1:$T$98159,"No") -> 0 | N3: SI | O3: NO | R3: SI | S3: NO | V3: SI | W3: NO | Z3: SI | AA3: NO | AD3: SI | AE3: NO | AH3: SI | AI3: NO | AL3: SI | AM3: NO | AO3: ='Sabana por grupo'!A3 -> 0 | AP3: ='Sabana por grupo'!C3 -> 0 | AQ3: 0 | AR3: =IF(AT3=0,"N/A",IF(AT3<$AX$2,"Riesgo Menor",IF(AT3<$AX$3,"Riesgo Probable","Atencion de Prioridad"))) ->  | AS3: ='Sabana por grupo'!G3 -> 0 | AT3: =(AU3/AV14) ->  | AU3: =MID('Sabana por grupo'!B3,1,2) ->  | AV3: 81 | AX3: =(50/81) -> 0.6172839506 | AY3: 50
A4: 2 | B4: =COUNTIF('Sabana por grupo'!$J$1:$J$5500,"Si") -> 0 | C4: =COUNTIF('Sabana por grupo'!$J$1:$J$5500,"No") -> 1 | E4: 56 | F4: =COUNTIF('Sabana por grupo'!$BL$1:$BL$98175,"Si") -> 0 | G4: =COUNTIF('Sabana por grupo'!$BL$1:$BL$98175,"No") -> 1 | I4: 13 | J4: =COUNTIF('Sabana por grupo'!$U$1:$U$98160,"Si") -> 1 | K4: =COUNTIF('Sabana por grupo'!$U$1:$U$98160,"No") -> 0 | M4: 2 | N4: =B4 -> 0 | O4: =C4 -> 1 | Q4: 4 | R4: =B6 -> 0 | S4: =C6 -> 1 | U4: 1 | V4: =B3 -> 0 | W4: =C3 -> 1 | Y4: 5 | Z4: =B7 -> 0 | AA4: =C7 -> 1 | AC4: 7 | AD4: =B9 -> 0 | AE4: =C9 -> 1 | AG4: 3 | AH4: =B5 -> 1 | AI4: =C5 -> 0 | AK4: 16 | AL4: =B16 -> 1 | AM4: =C16 -> 0 | AO4: ='Sabana por grupo'!A4 -> 0 | AP4: ='Sabana por grupo'!C4 -> 0 | AQ4: 0 | AS4: ='Sabana por grupo'!G4 -> 0 | AU4: =MID('Sabana por grupo'!B4,1,2) ->  | AV4: 81 | AX4: 1 | AY4: 81
A5: 3 | B5: =COUNTIF('Sabana por grupo'!$K$1:$K$5500,"Si") -> 1 | C5: =COUNTIF('Sabana por grupo'!$K$1:$K$5500,"No") -> 0 | E5: 57 | F5: =COUNTIF('Sabana por grupo'!$BM$1:$BM$98175,"Si") -> 0 | G5: =COUNTIF('Sabana por grupo'!$BM$1:$BM$98175,"No") -> 1 | I5: 18 | J5: =COUNTIF('Sabana por grupo'!$V$1:$V$98165,"Si") -> 0 | K5: =COUNTIF('Sabana por grupo'!$V$1:$V$98165,"No") -> 1 | M5: 17 | N5: =B17 -> 0 | O5: =C17 -> 1 | Q5: 14 | R5: =B14 -> 0 | S5: =C14 -> 1 | U5: 9 | V5: =B11 -> 0 | W5: =C11 -> 1 | Y5: 6 | Z5: =B8 -> 0 | AA5: =C8 -> 1 | AC5: 8 | AD5: =B10 -> 0 | AE5: =C10 -> 1 | AG5: 13 | AH5: =J4 -> 1 | AI5: =K4 -> 0 | AK5: 27 | AL5: =B23 -> 0 | AM5: =C23 -> 1 | AO5: ='Sabana por grupo'!A5 -> 0 | AP5: ='Sabana por grupo'!C5 -> 0 | AQ5: 0 | AS5: ='Sabana por grupo'!G5 -> 0 | AU5: =MID('Sabana por grupo'!B5,1,2) ->  | AV5: 81
A6: 4 | B6: =COUNTIF('Sabana por grupo'!$L$1:$L$5500,"Si") -> 0 | C6: =COUNTIF('Sabana por grupo'!$L$1:$L$5500,"No") -> 1 | E6: 58 | F6: =COUNTIF('Sabana por grupo'!$BN$1:$BN$98175,"Si") -> 0 | G6: =COUNTIF('Sabana por grupo'!$BN$1:$BN$98175,"No") -> 1 | I6: 20 | J6: =COUNTIF('Sabana por grupo'!$AB$1:$AB$98167,"Si") -> 0 | K6: =COUNTIF('Sabana por grupo'!$AB$1:$AB$98167,"No") -> 1 | M6: 21 | N6: =B19 -> 0 | O6: =C19 -> 1 | Q6: 20 | R6: =J6 -> 0 | S6: =K6 -> 1 | U6: 11 | V6: =B13 -> 0 | W6: =C13 -> 1 | Y6: 8 | Z6: =B10 -> 0 | AA6: =C10 -> 1 | AC6: 12 | AD6: =J3 -> 1 | AE6: =K3 -> 0 | AG6: 19 | AH6: =B18 -> 0 | AI6: =C18 -> 1 | AK6: 36 | AL6: =B31 -> 1 | AM6: =C31 -> 0 | AO6: ='Sabana por grupo'!A6 -> 0 | AP6: ='Sabana por grupo'!C6 -> 0 | AQ6: 0 | AS6: ='Sabana por grupo'!G6 -> 0 | AU6: =MID('Sabana por grupo'!B6,1,2) ->  | AV6: 81
A7: 5 | B7: =COUNTIF('Sabana por grupo'!$M$1:$M$98152,"Si") -> 0 | C7: =COUNTIF('Sabana por grupo'!$M$1:$M$98152,"No") -> 1 | E7: 59 | F7: =COUNTIF('Sabana por grupo'!$BO$1:$BO$98175,"Si") -> 0 | G7: =COUNTIF('Sabana por grupo'!$BO$1:$BO$98175,"No") -> 1 | I7: 22 | J7: =COUNTIF('Sabana por grupo'!$AD$1:$AD$98169,"Si") -> 1 | K7: =COUNTIF('Sabana por grupo'!$AD$1:$AD$98169,"No") -> 0 | M7: 25 | N7: =B22 -> 0 | O7: =C22 -> 1 | Q7: 22 | R7: =J7 -> 1 | S7: =K7 -> 0 | U7: 24 | V7: =B21 -> 0 | W7: =C21 -> 1 | Y7: 10 | Z7: =B12 -> 0 | AA7: =C12 -> 1 | AC7: 15 | AD7: =B15 -> 0 | AE7: =C15 -> 1 | AG7: 29 | AH7: =B25 -> 0 | AI7: =C25 -> 1 | AK7: 44 | AL7: =B38 -> 0 | AM7: =C38 -> 1 | AO7: ='Sabana por grupo'!A7 -> 0 | AP7: ='Sabana por grupo'!C7 -> 0 | AQ7: 0 | AS7: ='Sabana por grupo'!G7 -> 0 | AU7: =MID('Sabana por grupo'!B7,1,2) ->  | AV7: 81
A8: 6 | B8: =COUNTIF('Sabana por grupo'!$N$1:$N$98153,"Si") -> 0 | C8: =COUNTIF('Sabana por grupo'!$N$1:$N$98153,"No") -> 1 | E8: 60 | F8: =COUNTIF('Sabana por grupo'!$BP$1:$BP$98175,"Si") -> 0 | G8: =COUNTIF('Sabana por grupo'!$BP$1:$BP$98175,"No") -> 1 | I8: 26 | J8: =COUNTIF('Sabana por grupo'!$AH$1:$AH$98173,"Si") -> 1 | K8: =COUNTIF('Sabana por grupo'!$AH$1:$AH$98173,"No") -> 0 | M8: 33 | N8: =B28 -> 0 | O8: =C28 -> 1 | Q8: 32 | R8: =J9 -> 1 | S8: =K9 -> 0 | U8: 30 | V8: =B26 -> 0 | W8: =C26 -> 1 | Y8: 15 | Z8: =B15 -> 0 | AA8: =C15 -> 1 | AC8: 18 | AD8: =J5 -> 0 | AE8: =K5 -> 1 | AG8: 67 | AH8: =F15 -> 0 | AI8: =G15 -> 1 | AK8: 51 | AL8: =B45 -> 0 | AM8: =C45 -> 1 | AO8: ='Sabana por grupo'!A8 -> 0 | AP8: ='Sabana por grupo'!C8 -> 0 | AQ8: 0 | AS8: ='Sabana por grupo'!G8 -> 0 | AU8: =MID('Sabana por grupo'!B8,1,2) ->  | AV8: 81
A9: 7 | B9: =COUNTIF('Sabana por grupo'!$O$1:$O$98154,"Si") -> 0 | C9: =COUNTIF('Sabana por grupo'!$O$1:$O$98154,"No") -> 1 | E9: 61 | F9: =COUNTIF('Sabana por grupo'!$BQ$1:$BQ$98175,"Si") -> 0 | G9: =COUNTIF('Sabana por grupo'!$BQ$1:$BQ$98175,"No") -> 1 | I9: 32 | J9: =COUNTIF('Sabana por grupo'!$AN$1:$AN$98175,"Si") -> 1 | K9: =COUNTIF('Sabana por grupo'!$AN$1:$AN$98175,"No") -> 0 | M9: 38 | N9: =B33 -> 0 | O9: =C33 -> 1 | Q9: 39 | R9: =J10 -> 1 | S9: =K10 -> 0 | U9: 31 | V9: =B27 -> 0 | W9: =C27 -> 1 | Y9: 23 | Z9: =B20 -> 0 | AA9: =C20 -> 1 | AC9: 26 | AD9: =J8 -> 1 | AE9: =K8 -> 0 | AG9: 73 | AH9: =F18 -> 0 | AI9: =G18 -> 1 | AJ9: =6*K1 -> 6 | AK9: 78 | AL9: =F23 -> 0 | AM9: =G23 -> 1 | AO9: ='Sabana por grupo'!A9 -> 0 | AP9: ='Sabana por grupo'!C9 -> 0 | AQ9: 0 | AS9: ='Sabana por grupo'!G9 -> 0 | AU9: =MID('Sabana por grupo'!B9,1,2) ->  | AV9: 81
A10: 8 | B10: =COUNTIF('Sabana por grupo'!$P$1:$P$98155,"Si") -> 0 | C10: =COUNTIF('Sabana por grupo'!$P$1:$P$98155,"No") -> 1 | E10: 62 | F10: =COUNTIF('Sabana por grupo'!$BR$1:$BR$98175,"Si") -> 0 | G10: =COUNTIF('Sabana por grupo'!$BR$1:$BR$98175,"No") -> 1 | I10: 39 | J10: =COUNTIF('Sabana por grupo'!$AU$1:$AU$98175,"Si") -> 1 | K10: =COUNTIF('Sabana por grupo'!$AU$1:$AU$98175,"No") -> 0 | M10: 41 | N10: =B35 -> 0 | O10: =C35 -> 1 | Q10: 45 | R10: =B39 -> 0 | S10: =C39 -> 1 | U10: 35 | V10: =B30 -> 0 | W10: =C30 -> 1 | Y10: 28 | Z10: =B24 -> 0 | AA10: =C24 -> 1 | AC10: 34 | AD10: =B29 -> 0 | AE10: =C29 -> 1 | AF10: =7*K1 -> 7 | AG10: 77 | AH10: =F22 -> 1 | AI10: =G22 -> 0 | AK10: T | AL10: =SUM(AL4:AL9) -> 2 | AM10: =SUM(AM4:AM9) -> 4 | AO10: ='Sabana por grupo'!A10 -> 0 | AP10: ='Sabana por grupo'!C10 -> 0 | AQ10: 0 | AS10: ='Sabana por grupo'!G10 -> 0 | AU10: =MID('Sabana por grupo'!B10,1,2) ->  | AV10: 81
A11: 9 | B11: =COUNTIF('Sabana por grupo'!$Q$1:$Q$98156,"Si") -> 0 | C11: =COUNTIF('Sabana por grupo'!$Q$1:$Q$98156,"No") -> 1 | E11: 63 | F11: =COUNTIF('Sabana por grupo'!$BS$1:$BS$98175,"Si") -> 0 | G11: =COUNTIF('Sabana por grupo'!$BS$1:$BS$98175,"No") -> 1 | I11: 52 | J11: =COUNTIF('Sabana por grupo'!$BH$1:$BH$98175,"Si") -> 1 | K11: =COUNTIF('Sabana por grupo'!$BH$1:$BH$98175,"No") -> 0 | M11: 46 | N11: =B40 -> 0 | O11: 1 | Q11: 52 | R11: =J11 -> 1 | S11: =K11 -> 0 | U11: 37 | V11: =B32 -> 0 | W11: =C32 -> 1 | Y11: 40 | Z11: =B34 -> 0 | AA11: =C34 -> 1 | AC11: 40 | AD11: =B34 -> 0 | AE11: =C34 -> 1 | AG11: T | AH11: =AH4+AI5+AH6+AH7+AH8+AH9+AH10 -> 2 | AI11: =SUM(AI4:AI10) -> 4 | AK11: P | AL11: =(AL10*100%)/$AJ$9 -> 0.3333333333 | AM11: =(AM10*100%)/$AJ$9 -> 0.6666666667 | AO11: ='Sabana por grupo'!A11 -> 0 | AP11: ='Sabana por grupo'!C11 -> 0 | AQ11: 0 | AS11: ='Sabana por grupo'!G11 -> 0 | AU11: =MID('Sabana por grupo'!B11,1,2) ->  | AV11: 81
A12: 10 | B12: =COUNTIF('Sabana por grupo'!$R$1:$R$98157,"Si") -> 0 | C12: =COUNTIF('Sabana por grupo'!$R$1:$R$98157,"No") -> 1 | E12: 64 | F12: =COUNTIF('Sabana por grupo'!$BT$1:$BT$98175,"Si") -> 0 | G12: =COUNTIF('Sabana por grupo'!$BT$1:$BT$98175,"No") -> 1 | I12: 69 | J12: =COUNTIF('Sabana por grupo'!$BY$1:$BY$98175,"Si") -> 1 | K12: =COUNTIF('Sabana por grupo'!$BY$1:$BY$98175,"No") -> 0 | M12: 47 | N12: 0 | O12: 1 | Q12: 70 | R12: =J13 -> 1 | S12: =K13 -> 0 | U12: 49 | V12: =B43 -> 0 | W12: =C43 -> 1 | Y12: 43 | Z12: =B37 -> 0 | AA12: =C37 -> 1 | AC12: 42 | AD12: =B36 -> 0 | AE12: =C36 -> 1 | AG12: P | AH12: =(AH11*100%)/$AF$10 -> 0.2857142857 | AI12: =(AI11*100%)/$AF$10 -> 0.5714285714 | AO12: ='Sabana por grupo'!A12 -> 0 | AP12: ='Sabana por grupo'!C12 -> 0 | AQ12: 0 | AS12: ='Sabana por grupo'!G12 -> 0 | AU12: =MID('Sabana por grupo'!B12,1,2) ->  | AV12: 81
A13: 11 | B13: =COUNTIF('Sabana por grupo'!$S$1:$S$98158,"Si") -> 0 | C13: =COUNTIF('Sabana por grupo'!$S$1:$S$98158,"No") -> 1 | E13: 65 | F13: =COUNTIF('Sabana por grupo'!$BU$1:$BU$98175,"Si") -> 0 | G13: =COUNTIF('Sabana por grupo'!$BU$1:$BU$98175,"No") -> 1 | I13: 70 | J13: =COUNTIF('Sabana por grupo'!$BZ$1:$BZ$98175,"Si") -> 1 | K13: =COUNTIF('Sabana por grupo'!$BZ$1:$BZ$98175,"No") -> 0 | M13: 48 | N13: 0 | O13: 1 | P13: =10*K1 -> 10 | Q13: 71 | R13: =J14 -> 1 | S13: =K14 -> 0 | U13: 50 | V13: =B44 -> 0 | W13: =C44 -> 1 | Y13: 55 | Z13: =F3 -> 0 | AA13: =G3 -> 1 | AC13: 61 | AD13: =F9 -> 0 | AE13: =G9 -> 1 | AO13: ='Sabana por grupo'!A13 -> 0 | AP13: ='Sabana por grupo'!C13 -> 0 | AQ13: 0 | AS13: ='Sabana por grupo'!G13 -> 0 | AU13: =MID('Sabana por grupo'!B13,1,2) ->  | AV13: 81
A14: 14 | B14: =COUNTIF('Sabana por grupo'!$V$1:$V$98161,"Si") -> 0 | C14: =COUNTIF('Sabana por grupo'!$V$1:$V$98161,"No") -> 1 | E14: 66 | F14: =COUNTIF('Sabana por grupo'!$BV$1:$BV$98175,"Si") -> 0 | G14: =COUNTIF('Sabana por grupo'!$BV$1:$BV$98175,"No") -> 1 | I14: 71 | J14: =COUNTIF('Sabana por grupo'!$CA$1:$CA$98175,"Si") -> 1 | K14: =COUNTIF('Sabana por grupo'!$CA$1:$CA$98175,"No") -> 0 | M14: 54 | N14: =B47 -> 0 | O14: =C47 -> 1 | Q14: T | R14: =(R4+R5+S6+S7+S8+S9+R10+S11+S12+S13) -> 1 | S14: =SUM(S4:S13) -> 4 | U14: 53 | V14: =B46 -> 0 | W14: =C46 -> 1 | Y14: 60 | Z14: =F8 -> 0 | AA14: =G8 -> 1 | AC14: 66 | AD14: =F14 -> 0 | AE14: =G14 -> 1 | AI14: Riesgo Suicida | AO14: ='Sabana por grupo'!A14 -> 0 | AP14: ='Sabana por grupo'!C14 -> 0 | AQ14: 0 | AS14: ='Sabana por grupo'!G14 -> 0 | AU14: =MID('Sabana por grupo'!B14,1,2) ->  | AV14: 81
A15: 15 | B15: =COUNTIF('Sabana por grupo'!$W$1:$W$98162,"Si") -> 0 | C15: =COUNTIF('Sabana por grupo'!$W$1:$W$98162,"No") -> 1 | E15: 67 | F15: =COUNTIF('Sabana por grupo'!$BW$1:$BW$98175,"Si") -> 0 | G15: =COUNTIF('Sabana por grupo'!$BW$1:$BW$98175,"No") -> 1 | I15: T3 | J15: =SUM(J3:J14) -> 10 | K15: =SUM(K3:K14) -> 2 | M15: 56 | N15: =F4 -> 0 | O15: 1 | Q15: P | R15: =(R14*100%)/$P$13 -> 0.1 | S15: =(S14*100%)/$P$13 -> 0.4 | U15: 59 | V15: =F7 -> 0 | W15: =G7 -> 1 | Y15: 63 | Z15: =F11 -> 0 | AA15: =G11 -> 1 | AC15: 69 | AD15: =J12 -> 1 | AE15: =K12 -> 0 | AI15: # | AJ15: Si | AK15: No | AO15: ='Sabana por grupo'!A15 -> 0 | AP15: ='Sabana por grupo'!C15 -> 0 | AQ15: 0 | AS15: ='Sabana por grupo'!G15 -> 0 | AU15: =MID('Sabana por grupo'!B15,1,2) ->  | AV15: 81
A16: 16 | B16: =COUNTIF('Sabana por grupo'!$X$1:$X$98163,"Si") -> 1 | C16: =COUNTIF('Sabana por grupo'!$X$1:$X$98163,"No") -> 0 | E16: 68 | F16: =COUNTIF('Sabana por grupo'!$BX$1:$BX$98175,"Si") -> 0 | G16: =COUNTIF('Sabana por grupo'!$BX$1:$BX$98175,"No") -> 1 | M16: 57 | N16: 0 | O16: 1 | U16: 64 | V16: =F12 -> 0 | W16: =G12 -> 1 | Y16: 66 | Z16: =F14 -> 0 | AA16: =G14 -> 1 | AC16: 72 | AD16: =F17 -> 1 | AE16: =G17 -> 0 | AI16: 1 | AJ16: =COUNTIF('Sabana por grupo'!$CL$1:$CL$5500,"Si") -> 0 | AK16: =COUNTIF('Sabana por grupo'!$CL$1:$CL$5500,"No") -> 1 | AO16: ='Sabana por grupo'!A16 -> 0 | AP16: ='Sabana por grupo'!C16 -> 0 | AQ16: 0 | AS16: ='Sabana por grupo'!G16 -> 0 | AU16: =MID('Sabana por grupo'!B16,1,2) ->  | AV16: 81
A17: 17 | B17: =COUNTIF('Sabana por grupo'!$Y$1:$Y$98164,"Si") -> 0 | C17: =COUNTIF('Sabana por grupo'!$Y$1:$Y$98164,"No") -> 1 | E17: 72 | F17: =COUNTIF('Sabana por grupo'!$CB$1:$CB$98175,"Si") -> 1 | G17: =COUNTIF('Sabana por grupo'!$CB$1:$CB$98175,"No") -> 0 | M17: 58 | N17: 0 | O17: 1 | T17: =14*K1 -> 14 | U17: 81 | V17: =F26 -> 0 | W17: =G26 -> 1 | Y17: 75 | Z17: =F20 -> 0 | AA17: =G20 -> 1 | AC17: 79 | AD17: =F24 -> 0 | AE17: =G24 -> 1 | AI17: 2 | AJ17: =COUNTIF('Sabana por grupo'!$CM$1:$CM$5500,"Si") -> 0 | AK17: =COUNTIF('Sabana por grupo'!$CM$1:$CM$5500,"No") -> 1 | AO17: ='Sabana por grupo'!A17 -> 0 | AP17: ='Sabana por grupo'!C17 -> 0 | AQ17: 0 | AS17: ='Sabana por grupo'!G17 -> 0 | AU17: =MID('Sabana por grupo'!B17,1,2) ->  | AV17: 81
A18: 19 | B18: =COUNTIF('Sabana por grupo'!$AA$1:$AA$98166,"Si") -> 0 | C18: =COUNTIF('Sabana por grupo'!$AA$1:$AA$98166,"No") -> 1 | E18: 73 | F18: =COUNTIF('Sabana por grupo'!$CC$1:$CC$98175,"Si") -> 0 | G18: =COUNTIF('Sabana por grupo'!$CC$1:$CC$98175,"No") -> 1 | M18: 62 | N18: =F10 -> 0 | O18: =G10 -> 1 | U18: T | V18: =SUM(V4:V17) -> 0 | W18: =SUM(W4:W17) -> 14 | Y18: 76 | Z18: =F21 -> 0 | AA18: =G21 -> 1 | AB18: =15*K1 -> 15 | AC18: 80 | AD18: =F25 -> 0 | AE18: =G25 -> 1 | AI18: 3 | AJ18: =COUNTIF('Sabana por grupo'!$CN$1:$CN$5500,"Si") -> 0 | AK18: =COUNTIF('Sabana por grupo'!$CN$1:$CN$5500,"No") -> 1 | AO18: ='Sabana por grupo'!A18 -> 0 | AP18: ='Sabana por grupo'!C18 -> 0 | AQ18: 0 | AS18: ='Sabana por grupo'!G18 -> 0 | AU18: =MID('Sabana por grupo'!B18,1,2) ->  | AV18: 81
A19: 21 | B19: =COUNTIF('Sabana por grupo'!$AC$1:$AC$98168,"Si") -> 0 | C19: =COUNTIF('Sabana por grupo'!$AC$1:$AC$98168,"No") -> 1 | E19: 74 | F19: =COUNTIF('Sabana por grupo'!$CD$1:$CD$98175,"Si") -> 0 | G19: =COUNTIF('Sabana por grupo'!$CD$1:$CD$98175,"No") -> 1 | M19: 65 | N19: =F13 -> 0 | O19: =G13 -> 1 | U19: P | V19: =(V18*100%)/$T$17 -> 0 | W19: =(W18*100%)/$T$17 -> 1 | X19: =16*K1 -> 16 | Y19: 80 | Z19: =F25 -> 0 | AA19: =G25 -> 1 | AC19: T | AD19: =AD4+AE5+AE6+AE7+AE8+AE9+AD10+AE11+AD12+AD13+AE14+AE15+AD16+AD17+AE18 -> 7 | AE19: =SUM(AE4:AE18) -> 11 | AI19: 4 | AJ19: =COUNTIF('Sabana por grupo'!$CO$1:$CO$5500,"Si") -> 0 | AK19: =COUNTIF('Sabana por grupo'!$CO$1:$CO$5500,"No") -> 1 | AO19: ='Sabana por grupo'!A19 -> 0 | AP19: ='Sabana por grupo'!C19 -> 0 | AQ19: 0 | AS19: ='Sabana por grupo'!G19 -> 0 | AU19: =MID('Sabana por grupo'!B19,1,2) ->  | AV19: 81
A20: 23 | B20: =COUNTIF('Sabana por grupo'!$AE$1:$AE$98170,"Si") -> 0 | C20: =COUNTIF('Sabana por grupo'!$AE$1:$AE$98170,"No") -> 1 | E20: 75 | F20: =COUNTIF('Sabana por grupo'!$CE$1:$CE$98175,"Si") -> 0 | G20: =COUNTIF('Sabana por grupo'!$CE$1:$CE$98175,"No") -> 1 | L20: =17*K1 -> 17 | M20: 68 | N20: =F16 -> 0 | O20: =G16 -> 1 | Y20: T | Z20: =(Z4+Z5+AA6+Z7+AA8+Z9+Z10+AA11+Z12+Z13+Z14+Z15+AA16+Z17+Z18+AA19) -> 5 | AA20: =SUM(AA4:AA19) -> 16 | AC20: P | AD20: =(AD19*100%)/$AB$18 -> 0.4666666667 | AE20: =(AE19*100%)/$AB$18 -> 0.7333333333 | AI20: 5 | AJ20: =COUNTIF('Sabana por grupo'!$CP$1:$CP$5500,"Si") -> 0 | AK20: =COUNTIF('Sabana por grupo'!$CP$1:$CP$5500,"No") -> 1 | AO20: ='Sabana por grupo'!A20 -> 0 | AP20: ='Sabana por grupo'!C20 -> 0 | AQ20: 0 | AS20: ='Sabana por grupo'!G20 -> 0 | AU20: =MID('Sabana por grupo'!B20,1,2) ->  | AV20: 81
A21: 24 | B21: =COUNTIF('Sabana por grupo'!$AF$1:$AF$498171,"Si") -> 0 | C21: =COUNTIF('Sabana por grupo'!$AF$1:$AF$498171,"No") -> 1 | E21: 76 | F21: =COUNTIF('Sabana por grupo'!$CF$1:$CF$98175,"Si") -> 0 | G21: =COUNTIF('Sabana por grupo'!$CF$1:$CF$98175,"No") -> 1 | M21: T | N21: =SUM(N4:N20) -> 0 | O21: =SUM(O4:O20) -> 17 | Y21: P | Z21: =(Z20*100%)/X19 -> 0.3125 | AA21: =(AA20*100%)/X19 -> 1 | AI21: 6 | AJ21: =COUNTIF('Sabana por grupo'!$CQ$1:$CQ$5500,"Si") -> 0 | AK21: =COUNTIF('Sabana por grupo'!$CQ$1:$CQ$5500,"No") -> 1 | AO21: ='Sabana por grupo'!A21 -> 0 | AP21: ='Sabana por grupo'!C21 -> 0 | AQ21: 0 | AS21: ='Sabana por grupo'!G21 -> 0 | AU21: =MID('Sabana por grupo'!B21,1,2) ->  | AV21: 81
A22: 25 | B22: =COUNTIF('Sabana por grupo'!$AG$1:$AG$98172,"Si") -> 0 | C22: =COUNTIF('Sabana por grupo'!$AG$1:$AG$98172,"No") -> 1 | E22: 77 | F22: =COUNTIF('Sabana por grupo'!$CG$1:$CG$98175,"Si") -> 1 | G22: =COUNTIF('Sabana por grupo'!$CG$1:$CG$98175,"No") -> 0 | M22: P | N22: =(N21*100%)/$L$20 -> 0 | O22: =(O21*100%)/$L$20 -> 1 | AI22: 7 | AJ22: =COUNTIF('Sabana por grupo'!$CR$1:$CR$5500,"Si") -> 0 | AK22: =COUNTIF('Sabana por grupo'!$CR$1:$CR$5500,"No") -> 1 | AO22: ='Sabana por grupo'!A22 -> 0 | AP22: ='Sabana por grupo'!C22 -> 0 | AQ22: 0 | AS22: ='Sabana por grupo'!G22 -> 0 | AU22: =MID('Sabana por grupo'!B22,1,2) ->  | AV22: 81
A23: 27 | B23: =COUNTIF('Sabana por grupo'!$AI$1:$AI$98174,"Si") -> 0 | C23: =COUNTIF('Sabana por grupo'!$AI$1:$AI$98174,"No") -> 1 | E23: 78 | F23: =COUNTIF('Sabana por grupo'!$CH$1:$CH$98175,"Si") -> 0 | G23: =COUNTIF('Sabana por grupo'!$CH$1:$CH$98175,"No") -> 1 | I23: TOTAL | L23: SI | M23: NO | O23: TOTAL | R23: SI | S23: NO | U23: SI=T1+T2 | W23: NO=T3 | Y23: TOTAL | AI23: 8 | AJ23: =COUNTIF('Sabana por grupo'!$CS$1:$CS$5500,"Si") -> 1 | AK23: =COUNTIF('Sabana por grupo'!$CS$1:$CS$5500,"No") -> 0 | AO23: ='Sabana por grupo'!A23 -> 0 | AP23: ='Sabana por grupo'!C23 -> 0 | AQ23: 0 | AS23: ='Sabana por grupo'!G23 -> 0 | AU23: =MID('Sabana por grupo'!B23,1,2) ->  | AV23: 81
A24: 28 | B24: =COUNTIF('Sabana por grupo'!$AJ$1:$AJ$98175,"Si") -> 0 | C24: =COUNTIF('Sabana por grupo'!$AJ$1:$AJ$98175,"No") -> 1 | E24: 79 | F24: =COUNTIF('Sabana por grupo'!$CI$1:$CI$98175,"Si") -> 0 | G24: =COUNTIF('Sabana por grupo'!$CI$1:$CI$98175,"No") -> 1 | I24: TI+T2 | L24: =(B48+F27) -> 5 | M24: =(C48+G27) -> 64 | O24: T3 | R24: =J15 -> 10 | S24: =K15 -> 2 | U24: =L24 -> 5 | W24: =S24 -> 2 | Y24: =(U24+W24) -> 7 | AI24: 9 | AJ24: =COUNTIF('Sabana por grupo'!$CT$1:$CT$5500,"Si") -> 0 | AK24: =COUNTIF('Sabana por grupo'!$CT$1:$CT$5500,"No") -> 1 | AO24: ='Sabana por grupo'!A24 -> 0 | AP24: ='Sabana por grupo'!C24 -> 0 | AQ24: 0 | AS24: ='Sabana por grupo'!G24 -> 0 | AU24: =MID('Sabana por grupo'!B24,1,2) ->  | AV24: 81
A25: 29 | B25: =COUNTIF('Sabana por grupo'!$AK$1:$AK$98175,"Si") -> 0 | C25: =COUNTIF('Sabana por grupo'!$AK$1:$AK$98175,"No") -> 1 | E25: 80 | F25: =COUNTIF('Sabana por grupo'!$CJ$1:$CJ$98175,"Si") -> 0 | G25: =COUNTIF('Sabana por grupo'!$CJ$1:$CJ$98175,"No") -> 1 | V25: Percentiles | AI25: 10 | AJ25: =COUNTIF('Sabana por grupo'!$CU$1:$CU$5500,"Si") -> 0 | AK25: =COUNTIF('Sabana por grupo'!$CU$1:$CU$5500,"No") -> 1 | AO25: ='Sabana por grupo'!A25 -> 0 | AP25: ='Sabana por grupo'!C25 -> 0 | AQ25: 0 | AS25: ='Sabana por grupo'!G25 -> 0 | AU25: =MID('Sabana por grupo'!B25,1,2) ->  | AV25: 81
A26: 30 | B26: =COUNTIF('Sabana por grupo'!$AL$1:$AL$98175,"Si") -> 0 | C26: =COUNTIF('Sabana por grupo'!$AL$1:$AL$98175,"No") -> 1 | E26: 81 | F26: =COUNTIF('Sabana por grupo'!$CK$1:$CK$98175,"Si") -> 0 | G26: =COUNTIF('Sabana por grupo'!$CK$1:$CK$98175,"No") -> 1 | J26: Rasgos de Riesgo | AI26: 11 | AJ26: =COUNTIF('Sabana por grupo'!$CV$1:$CV$5500,"Si") -> 0 | AK26: =COUNTIF('Sabana por grupo'!$CV$1:$CV$5500,"No") -> 1 | AO26: ='Sabana por grupo'!A26 -> 0 | AP26: ='Sabana por grupo'!C26 -> 0 | AQ26: 0 | AS26: ='Sabana por grupo'!G26 -> 0 | AU26: =MID('Sabana por grupo'!B26,1,2) ->  | AV26: 81
A27: 31 | B27: =COUNTIF('Sabana por grupo'!$AM$1:$AM$98175,"Si") -> 0 | C27: =COUNTIF('Sabana por grupo'!$AM$1:$AM$98175,"No") -> 1 | E27: T2 | F27: =SUM(F3:F26) -> 2 | G27: =SUM(G3:G26) -> 22 | P27: suma | Q27: Promedio | R27: Perc | V27: Percentiles | W27: Riesgo | AI27: 12 | AJ27: =COUNTIF('Sabana por grupo'!$CW$1:$CW$5500,"Si") -> 0 | AK27: =COUNTIF('Sabana por grupo'!$CW$1:$CW$5500,"No") -> 1 | AO27: ='Sabana por grupo'!A27 -> 0 | AP27: ='Sabana por grupo'!C27 -> 0 | AQ27: 0 | AS27: ='Sabana por grupo'!G27 -> 0 | AU27: =MID('Sabana por grupo'!B27,1,2) ->  | AV27: 81
A28: 33 | B28: =COUNTIF('Sabana por grupo'!$AO$1:$AO$98175,"Si") -> 0 | C28: =COUNTIF('Sabana por grupo'!$AO$1:$AO$98175,"No") -> 1 | J28: Sentimientos de inutilidad | N28: R3 | O28: =AJ18 -> 0 | P28: =(O28+O29+O30+O31) -> 1 | Q28: =P28/K1 -> 1 | R28: =(Q28*100%)/4 -> 0.25 | V28: 5 | W28: Sin riesgo | AI28: 13 | AJ28: =COUNTIF('Sabana por grupo'!$CX$1:$CX$5500,"Si") -> 0 | AK28: =COUNTIF('Sabana por grupo'!$CX$1:$CX$5500,"No") -> 1 | AO28: ='Sabana por grupo'!A28 -> 0 | AP28: ='Sabana por grupo'!C28 -> 0 | AQ28: 0 | AS28: ='Sabana por grupo'!G28 -> 0 | AU28: =MID('Sabana por grupo'!B28,1,2) ->  | AV28: 81
A29: 34 | B29: =COUNTIF('Sabana por grupo'!$AP$1:$AP$98175,"Si") -> 0 | C29: =COUNTIF('Sabana por grupo'!$AP$1:$AP$98175,"No") -> 1 | N29: R6 | O29: =AJ21 -> 0 | V29: 10 | AI29: 14 | AJ29: =COUNTIF('Sabana por grupo'!$CY$1:$CY$5500,"Si") -> 0 | AK29: =COUNTIF('Sabana por grupo'!$CY$1:$CY$5500,"No") -> 1 | AO29: ='Sabana por grupo'!A29 -> 0 | AP29: ='Sabana por grupo'!C29 -> 0 | AQ29: 0 | AS29: ='Sabana por grupo'!G29 -> 0 | AU29: =MID('Sabana por grupo'!B29,1,2) ->  | AV29: 81
A30: 35 | B30: =COUNTIF('Sabana por grupo'!$AQ$1:$AQ$98175,"Si") -> 0 | C30: =COUNTIF('Sabana por grupo'!$AQ$1:$AQ$98175,"No") -> 1 | N30: R8 | O30: =AJ23 -> 1 | V30: 15 | AI30: 15 | AJ30: =COUNTIF('Sabana por grupo'!$CZ$1:$CZ$5500,"Si") -> 0 | AK30: =COUNTIF('Sabana por grupo'!$CZ$1:$CZ$5500,"No") -> 1 | AO30: ='Sabana por grupo'!A30 -> 0 | AP30: ='Sabana por grupo'!C30 -> 0 | AQ30: 0 | AS30: ='Sabana por grupo'!G30 -> 0 | AU30: =MID('Sabana por grupo'!B30,1,2) ->  | AV30: 81
A31: 36 | B31: =COUNTIF('Sabana por grupo'!$AR$1:$AR$98175,"Si") -> 1 | C31: =COUNTIF('Sabana por grupo'!$AR$1:$AR$98175,"No") -> 0 | N31: R12 | O31: =AJ27 -> 0 | V31: 20 | AI31: T | AJ31: =SUM(AJ16:AJ30) -> 1 | AK31: =SUM(AK16:AK30) -> 14 | AO31: ='Sabana por grupo'!A31 -> 0 | AP31: ='Sabana por grupo'!C31 -> 0 | AQ31: 0 | AS31: ='Sabana por grupo'!G31 -> 0 | AU31: =MID('Sabana por grupo'!B31,1,2) ->  | AV31: 81
A32: 37 | B32: =COUNTIF('Sabana por grupo'!$AS$1:$AS$98175,"Si") -> 0 | C32: =COUNTIF('Sabana por grupo'!$AS$1:$AS$98175,"No") -> 1 | J32: Ideación suicida | N32: R2 | O32: =AJ17 -> 0 | P32: =(O32+O33+O34) -> 0 | Q32: =P32/K1 -> 0 | R32: =(Q32*100%)/3 -> 0 | V32: 25 | AG32: Promedio | AJ32: =AJ31/K1 -> 1 | AO32: ='Sabana por grupo'!A32 -> 0 | AP32: ='Sabana por grupo'!C32 -> 0 | AQ32: 0 | AS32: ='Sabana por grupo'!G32 -> 0 | AU32: =MID('Sabana por grupo'!B32,1,2) ->  | AV32: 81
A33: 38 | B33: =COUNTIF('Sabana por grupo'!$AT$1:$AT$98175,"Si") -> 0 | C33: =COUNTIF('Sabana por grupo'!$AT$1:$AT$98175,"No") -> 1 | N33: R13 | O33: =AJ28 -> 0 | V33: 30 | W33: Riesgo Bajo | AG33: Percentil | AJ33: =(AJ32*100)/AI30 -> 6.666666667 | AO33: ='Sabana por grupo'!A33 -> 0 | AP33: ='Sabana por grupo'!C33 -> 0 | AQ33: 0 | AS33: ='Sabana por grupo'!G33 -> 0 | AU33: =MID('Sabana por grupo'!B33,1,2) ->  | AV33: 81
A34: 40 | B34: =COUNTIF('Sabana por grupo'!$AV$1:$AV$98175,"Si") -> 0 | C34: =COUNTIF('Sabana por grupo'!$AV$1:$AV$98175,"No") -> 1 | N34: R14 | O34: =AJ29 -> 0 | V34: 35 | AO34: ='Sabana por grupo'!A34 -> 0 | AP34: ='Sabana por grupo'!C34 -> 0 | AQ34: 0 | AS34: ='Sabana por grupo'!G34 -> 0 | AU34: =MID('Sabana por grupo'!B34,1,2) ->  | AV34: 81
A35: 41 | B35: =COUNTIF('Sabana por grupo'!$AW$1:$AW$98175,"Si") -> 0 | C35: =COUNTIF('Sabana por grupo'!$AW$1:$AW$98175,"No") -> 1 | J35: Desesperanza | N35: R5 | O35: =AJ20 -> 0 | P35: =(O35+O36+O37) -> 0 | Q35: =P35/K1 -> 0 | R35: =(Q35*100%)/3 -> 0 | V35: 40 | AO35: ='Sabana por grupo'!A35 -> 0 | AP35: ='Sabana por grupo'!C35 -> 0 | AQ35: 0 | AS35: ='Sabana por grupo'!G35 -> 0 | AU35: =MID('Sabana por grupo'!B35,1,2) ->  | AV35: 81
A36: 42 | B36: =COUNTIF('Sabana por grupo'!$AX$1:$AX$98175,"Si") -> 0 | C36: =COUNTIF('Sabana por grupo'!$AX$1:$AX$98175,"No") -> 1 | N36: R7 | O36: =AJ22 -> 0 | V36: 45 | AO36: ='Sabana por grupo'!A36 -> 0 | AP36: ='Sabana por grupo'!C36 -> 0 | AQ36: 0 | AS36: ='Sabana por grupo'!G36 -> 0 | AU36: =MID('Sabana por grupo'!B36,1,2) ->  | AV36: 81
A37: 43 | B37: =COUNTIF('Sabana por grupo'!$AY$1:$AY$98175,"Si") -> 0 | C37: =COUNTIF('Sabana por grupo'!$AY$1:$AY$98175,"No") -> 1 | N37: R9 | O37: =AJ24 -> 0 | V37: 50 | AO37: ='Sabana por grupo'!A37 -> 0 | AP37: ='Sabana por grupo'!C37 -> 0 | AQ37: 0 | AS37: ='Sabana por grupo'!G37 -> 0 | AU37: =MID('Sabana por grupo'!B37,1,2) ->  | AV37: 81
A38: 44 | B38: =COUNTIF('Sabana por grupo'!$AZ$1:$AZ$98175,"Si") -> 0 | C38: =COUNTIF('Sabana por grupo'!$AZ$1:$AZ$98175,"No") -> 1 | J38: Factores sociales | N38: R1 | O38: =AJ16 -> 0 | P38: =SUM(O38:O42) -> 0 | Q38: =P38/K1 -> 0 | R38: =(Q38*100%)/5 -> 0 | V38: 55 | W38: Riesgo Medio | AO38: ='Sabana por grupo'!A38 -> 0 | AP38: ='Sabana por grupo'!C38 -> 0 | AQ38: 0 | AS38: ='Sabana por grupo'!G38 -> 0 | AU38: =MID('Sabana por grupo'!B38,1,2) ->  | AV38: 81
A39: 45 | B39: =COUNTIF('Sabana por grupo'!$BA$1:$BA$98175,"Si") -> 0 | C39: =COUNTIF('Sabana por grupo'!$BA$1:$BA$98175,"No") -> 1 | N39: R4 | O39: =AJ19 -> 0 | V39: 60 | AO39: ='Sabana por grupo'!A39 -> 0 | AP39: ='Sabana por grupo'!C39 -> 0 | AQ39: 0 | AS39: ='Sabana por grupo'!G39 -> 0 | AU39: =MID('Sabana por grupo'!B39,1,2) ->  | AV39: 81
A40: 46 | B40: =COUNTIF('Sabana por grupo'!$BB$1:$BB$98175,"Si") -> 0 | C40: =COUNTIF('Sabana por grupo'!$BB$1:$BB$98175,"No") -> 1 | N40: R10 | O40: =AJ25 -> 0 | V40: 65 | AO40: ='Sabana por grupo'!A40 -> 0 | AP40: ='Sabana por grupo'!C40 -> 0 | AQ40: 0 | AS40: ='Sabana por grupo'!G40 -> 0 | AU40: =MID('Sabana por grupo'!B40,1,2) ->  | AV40: 81
A41: 47 | B41: =COUNTIF('Sabana por grupo'!$BC$1:$BC$98175,"Si") -> 0 | C41: =COUNTIF('Sabana por grupo'!$BC$1:$BC$98175,"No") -> 1 | N41: R11 | O41: =AJ26 -> 0 | V41: 70 | AO41: ='Sabana por grupo'!A41 -> 0 | AP41: ='Sabana por grupo'!C41 -> 0 | AQ41: 0 | AS41: ='Sabana por grupo'!G41 -> 0 | AU41: =MID('Sabana por grupo'!B41,1,2) ->  | AV41: 81
A42: 48 | B42: =COUNTIF('Sabana por grupo'!$BD$1:$BD$98175,"Si") -> 0 | C42: =COUNTIF('Sabana por grupo'!$BD$1:$BD$98175,"No") -> 1 | N42: R15 | O42: =AJ30 -> 0 | V42: 75 | AO42: ='Sabana por grupo'!A42 -> 0 | AP42: ='Sabana por grupo'!C42 -> 0 | AQ42: 0 | AS42: ='Sabana por grupo'!G42 -> 0 | AU42: =MID('Sabana por grupo'!B42,1,2) ->  | AV42: 81
A43: 49 | B43: =COUNTIF('Sabana por grupo'!$BE$1:$BE$98175,"Si") -> 0 | C43: =COUNTIF('Sabana por grupo'!$BE$1:$BE$98175,"No") -> 1 | V43: 80 | W43: Riesgo alto | AO43: ='Sabana por grupo'!A43 -> 0 | AP43: ='Sabana por grupo'!C43 -> 0 | AQ43: 0 | AS43: ='Sabana por grupo'!G43 -> 0 | AU43: =MID('Sabana por grupo'!B43,1,2) ->  | AV43: 81
A44: 50 | B44: =COUNTIF('Sabana por grupo'!$BF$1:$BF$98175,"Si") -> 0 | C44: =COUNTIF('Sabana por grupo'!$BF$1:$BF$98175,"No") -> 1 | V44: 85 | AO44: ='Sabana por grupo'!A44 -> 0 | AP44: ='Sabana por grupo'!C44 -> 0 | AQ44: 0 | AS44: ='Sabana por grupo'!G44 -> 0 | AU44: =MID('Sabana por grupo'!B44,1,2) ->  | AV44: 81
A45: 51 | B45: =COUNTIF('Sabana por grupo'!$BG$1:$BG$98175,"Si") -> 0 | C45: =COUNTIF('Sabana por grupo'!$BG$1:$BG$98175,"No") -> 1 | V45: 90 | AO45: ='Sabana por grupo'!A45 -> 0 | AP45: ='Sabana por grupo'!C45 -> 0 | AQ45: 0 | AS45: ='Sabana por grupo'!G45 -> 0 | AU45: =MID('Sabana por grupo'!B45,1,2) ->  | AV45: 81
A46: 53 | B46: =COUNTIF('Sabana por grupo'!$BI$1:$BI$98175,"Si") -> 0 | C46: =COUNTIF('Sabana por grupo'!$BI$1:$BI$98175,"No") -> 1 | V46: 95 | AO46: ='Sabana por grupo'!A46 -> 0 | AP46: ='Sabana por grupo'!C46 -> 0 | AQ46: 0 | AS46: ='Sabana por grupo'!G46 -> 0 | AU46: =MID('Sabana por grupo'!B46,1,2) ->  | AV46: 81
A47: 54 | B47: =COUNTIF('Sabana por grupo'!$BJ$1:$BJ$98175,"Si") -> 0 | C47: =COUNTIF('Sabana por grupo'!$BJ$1:$BJ$98175,"No") -> 1 | V47: 100 | AO47: ='Sabana por grupo'!A47 -> 0 | AP47: ='Sabana por grupo'!C47 -> 0 | AQ47: 0 | AS47: ='Sabana por grupo'!G47 -> 0 | AU47: =MID('Sabana por grupo'!B47,1,2) ->  | AV47: 81
A48: T1 | B48: =SUM(B3:B47) -> 3 | C48: =SUM(C3:C47) -> 42 | AO48: ='Sabana por grupo'!A48 -> 0 | AP48: ='Sabana por grupo'!C48 -> 0 | AQ48: 0 | AS48: ='Sabana por grupo'!G48 -> 0 | AU48: =MID('Sabana por grupo'!B48,1,2) ->  | AV48: 81
AO49: ='Sabana por grupo'!A49 -> 0 | AP49: ='Sabana por grupo'!C49 -> 0 | AQ49: 0 | AS49: ='Sabana por grupo'!G49 -> 0 | AU49: =MID('Sabana por grupo'!B49,1,2) ->  | AV49: 81
AO50: ='Sabana por grupo'!A50 -> 0 | AP50: ='Sabana por grupo'!C50 -> 0 | AQ50: 0 | AS50: ='Sabana por grupo'!G50 -> 0 | AU50: =MID('Sabana por grupo'!B50,1,2) ->  | AV50: 81
AO51: ='Sabana por grupo'!A51 -> 0 | AP51: ='Sabana por grupo'!C51 -> 0 | AQ51: 0 | AS51: ='Sabana por grupo'!G51 -> 0 | AU51: =MID('Sabana por grupo'!B51,1,2) ->  | AV51: 81
AO52: ='Sabana por grupo'!A52 -> 0 | AP52: ='Sabana por grupo'!C52 -> 0 | AQ52: 0 | AS52: ='Sabana por grupo'!G52 -> 0 | AU52: =MID('Sabana por grupo'!B52,1,2) ->  | AV52: 81
AO53: ='Sabana por grupo'!A53 -> 0 | AP53: ='Sabana por grupo'!C53 -> 0 | AQ53: 0 | AS53: ='Sabana por grupo'!G53 -> 0 | AU53: =MID('Sabana por grupo'!B53,1,2) ->  | AV53: 81
AO54: ='Sabana por grupo'!A54 -> 0 | AP54: ='Sabana por grupo'!C54 -> 0 | AQ54: 0 | AS54: ='Sabana por grupo'!G54 -> 0 | AU54: =MID('Sabana por grupo'!B54,1,2) ->  | AV54: 81
AO55: ='Sabana por grupo'!A55 -> 0 | AP55: ='Sabana por grupo'!C55 -> 0 | AQ55: 0 | AS55: ='Sabana por grupo'!G55 -> 0 | AU55: =MID('Sabana por grupo'!B55,1,2) ->  | AV55: 81
AO56: ='Sabana por grupo'!A56 -> 0 | AP56: ='Sabana por grupo'!C56 -> 0 | AQ56: 0 | AS56: ='Sabana por grupo'!G56 -> 0 | AU56: =MID('Sabana por grupo'!B56,1,2) ->  | AV56: 81
AO57: ='Sabana por grupo'!A57 -> 0 | AP57: ='Sabana por grupo'!C57 -> 0 | AQ57: 0 | AS57: ='Sabana por grupo'!G57 -> 0 | AU57: =MID('Sabana por grupo'!B57,1,2) ->  | AV57: 81
AO58: ='Sabana por grupo'!A58 -> 0 | AP58: ='Sabana por grupo'!C58 -> 0 | AQ58: 0 | AS58: ='Sabana por grupo'!G58 -> 0 | AU58: =MID('Sabana por grupo'!B58,1,2) ->  | AV58: 81
AO59: ='Sabana por grupo'!A59 -> 0 | AP59: ='Sabana por grupo'!C59 -> 0 | AQ59: 0 | AS59: ='Sabana por grupo'!G59 -> 0 | AU59: =MID('Sabana por grupo'!B59,1,2) ->  | AV59: 81
AO60: ='Sabana por grupo'!A60 -> 0 | AP60: ='Sabana por grupo'!C60 -> 0 | AQ60: 0 | AS60: ='Sabana por grupo'!G60 -> 0 | AU60: =MID('Sabana por grupo'!B60,1,2) ->  | AV60: 81
AO61: ='Sabana por grupo'!A61 -> 0 | AP61: ='Sabana por grupo'!C61 -> 0 | AQ61: 0 | AS61: ='Sabana por grupo'!G61 -> 0 | AU61: =MID('Sabana por grupo'!B61,1,2) ->  | AV61: 81
AO62: ='Sabana por grupo'!A62 -> 0 | AP62: ='Sabana por grupo'!C62 -> 0 | AQ62: 0 | AS62: ='Sabana por grupo'!G62 -> 0 | AU62: =MID('Sabana por grupo'!B62,1,2) ->  | AV62: 81
AO63: ='Sabana por grupo'!A63 -> 0 | AP63: ='Sabana por grupo'!C63 -> 0 | AQ63: 0 | AS63: ='Sabana por grupo'!G63 -> 0 | AU63: =MID('Sabana por grupo'!B63,1,2) ->  | AV63: 81
AO64: ='Sabana por grupo'!A64 -> 0 | AP64: ='Sabana por grupo'!C64 -> 0 | AQ64: 0 | AS64: ='Sabana por grupo'!G64 -> 0 | AU64: =MID('Sabana por grupo'!B64,1,2) ->  | AV64: 81
AO65: ='Sabana por grupo'!A65 -> 0 | AP65: ='Sabana por grupo'!C65 -> 0 | AQ65: 0 | AS65: ='Sabana por grupo'!G65 -> 0 | AU65: =MID('Sabana por grupo'!B65,1,2) ->  | AV65: 81
AO66: ='Sabana por grupo'!A66 -> 0 | AP66: ='Sabana por grupo'!C66 -> 0 | AQ66: =_xlfn.NUMBERVALUE(AU66) -> 0 | AS66: ='Sabana por grupo'!G66 -> 0 | AU66: =MID('Sabana por grupo'!B66,1,2) ->  | AV66: 81
AO67: ='Sabana por grupo'!A67 -> 0 | AP67: ='Sabana por grupo'!C67 -> 0 | AQ67: 0 | AR67: =IF(AT67=0,"N/A",IF(AT67<$AX$2,"Riesgo Menor",IF(AT67<$AX$3,"Riesgo Probable","Atencion de Prioridad"))) ->  | AS67: ='Sabana por grupo'!G67 -> 0 | AT67: =(AU67/AV78) ->  | AU67: =MID('Sabana por grupo'!B67,1,2) ->  | AV67: 81
AO68: ='Sabana por grupo'!A68 -> 0 | AP68: ='Sabana por grupo'!C68 -> 0 | AQ68: 0 | AS68: ='Sabana por grupo'!G68 -> 0 | AU68: =MID('Sabana por grupo'!B68,1,2) ->  | AV68: 81
AO69: ='Sabana por grupo'!A69 -> 0 | AP69: ='Sabana por grupo'!C69 -> 0 | AQ69: 0 | AS69: ='Sabana por grupo'!G69 -> 0 | AU69: =MID('Sabana por grupo'!B69,1,2) ->  | AV69: 81
AO70: ='Sabana por grupo'!A70 -> 0 | AP70: ='Sabana por grupo'!C70 -> 0 | AQ70: 0 | AS70: ='Sabana por grupo'!G70 -> 0 | AU70: =MID('Sabana por grupo'!B70,1,2) ->  | AV70: 81
AO71: ='Sabana por grupo'!A71 -> 0 | AP71: ='Sabana por grupo'!C71 -> 0 | AQ71: 0 | AS71: ='Sabana por grupo'!G71 -> 0 | AU71: =MID('Sabana por grupo'!B71,1,2) ->  | AV71: 81
AO72: ='Sabana por grupo'!A72 -> 0 | AP72: ='Sabana por grupo'!C72 -> 0 | AQ72: 0 | AS72: ='Sabana por grupo'!G72 -> 0 | AU72: =MID('Sabana por grupo'!B72,1,2) ->  | AV72: 81
AO73: ='Sabana por grupo'!A73 -> 0 | AP73: ='Sabana por grupo'!C73 -> 0 | AQ73: 0 | AS73: ='Sabana por grupo'!G73 -> 0 | AU73: =MID('Sabana por grupo'!B73,1,2) ->  | AV73: 81
AO74: ='Sabana por grupo'!A74 -> 0 | AP74: ='Sabana por grupo'!C74 -> 0 | AQ74: 0 | AS74: ='Sabana por grupo'!G74 -> 0 | AU74: =MID('Sabana por grupo'!B74,1,2) ->  | AV74: 81
AO75: ='Sabana por grupo'!A75 -> 0 | AP75: ='Sabana por grupo'!C75 -> 0 | AQ75: 0 | AS75: ='Sabana por grupo'!G75 -> 0 | AU75: =MID('Sabana por grupo'!B75,1,2) ->  | AV75: 81
AO76: ='Sabana por grupo'!A76 -> 0 | AP76: ='Sabana por grupo'!C76 -> 0 | AQ76: 0 | AS76: ='Sabana por grupo'!G76 -> 0 | AU76: =MID('Sabana por grupo'!B76,1,2) ->  | AV76: 81
AO77: ='Sabana por grupo'!A77 -> 0 | AP77: ='Sabana por grupo'!C77 -> 0 | AQ77: 0 | AS77: ='Sabana por grupo'!G77 -> 0 | AU77: =MID('Sabana por grupo'!B77,1,2) ->  | AV77: 81
AO78: ='Sabana por grupo'!A78 -> 0 | AP78: ='Sabana por grupo'!C78 -> 0 | AQ78: 0 | AS78: ='Sabana por grupo'!G78 -> 0 | AU78: =MID('Sabana por grupo'!B78,1,2) ->  | AV78: 81
AO79: ='Sabana por grupo'!A79 -> 0 | AP79: ='Sabana por grupo'!C79 -> 0 | AQ79: 0 | AS79: ='Sabana por grupo'!G79 -> 0 | AU79: =MID('Sabana por grupo'!B79,1,2) ->  | AV79: 81
AO80: ='Sabana por grupo'!A80 -> 0 | AP80: ='Sabana por grupo'!C80 -> 0 | AQ80: 0 | AS80: ='Sabana por grupo'!G80 -> 0 | AU80: =MID('Sabana por grupo'!B80,1,2) ->  | AV80: 81
AO81: ='Sabana por grupo'!A81 -> 0 | AP81: ='Sabana por grupo'!C81 -> 0 | AQ81: 0 | AS81: ='Sabana por grupo'!G81 -> 0 | AU81: =MID('Sabana por grupo'!B81,1,2) ->  | AV81: 81
AO82: ='Sabana por grupo'!A82 -> 0 | AP82: ='Sabana por grupo'!C82 -> 0 | AQ82: 0 | AS82: ='Sabana por grupo'!G82 -> 0 | AU82: =MID('Sabana por grupo'!B82,1,2) ->  | AV82: 81
AO83: ='Sabana por grupo'!A83 -> 0 | AP83: ='Sabana por grupo'!C83 -> 0 | AQ83: 0 | AS83: ='Sabana por grupo'!G83 -> 0 | AU83: =MID('Sabana por grupo'!B83,1,2) ->  | AV83: 81
AO84: ='Sabana por grupo'!A84 -> 0 | AP84: ='Sabana por grupo'!C84 -> 0 | AQ84: 0 | AS84: ='Sabana por grupo'!G84 -> 0 | AU84: =MID('Sabana por grupo'!B84,1,2) ->  | AV84: 81
AO85: ='Sabana por grupo'!A85 -> 0 | AP85: ='Sabana por grupo'!C85 -> 0 | AQ85: 0 | AS85: ='Sabana por grupo'!G85 -> 0 | AU85: =MID('Sabana por grupo'!B85,1,2) ->  | AV85: 81
AO86: ='Sabana por grupo'!A86 -> 0 | AP86: ='Sabana por grupo'!C86 -> 0 | AQ86: 0 | AS86: ='Sabana por grupo'!G86 -> 0 | AU86: =MID('Sabana por grupo'!B86,1,2) ->  | AV86: 81
AO87: ='Sabana por grupo'!A87 -> 0 | AP87: ='Sabana por grupo'!C87 -> 0 | AQ87: 0 | AS87: ='Sabana por grupo'!G87 -> 0 | AU87: =MID('Sabana por grupo'!B87,1,2) ->  | AV87: 81
AO88: ='Sabana por grupo'!A88 -> 0 | AP88: ='Sabana por grupo'!C88 -> 0 | AQ88: 0 | AS88: ='Sabana por grupo'!G88 -> 0 | AU88: =MID('Sabana por grupo'!B88,1,2) ->  | AV88: 81
AO89: ='Sabana por grupo'!A89 -> 0 | AP89: ='Sabana por grupo'!C89 -> 0 | AQ89: 0 | AS89: ='Sabana por grupo'!G89 -> 0 | AU89: =MID('Sabana por grupo'!B89,1,2) ->  | AV89: 81
AO90: ='Sabana por grupo'!A90 -> 0 | AP90: ='Sabana por grupo'!C90 -> 0 | AQ90: 0 | AS90: ='Sabana por grupo'!G90 -> 0 | AU90: =MID('Sabana por grupo'!B90,1,2) ->  | AV90: 81
AO91: ='Sabana por grupo'!A91 -> 0 | AP91: ='Sabana por grupo'!C91 -> 0 | AQ91: 0 | AS91: ='Sabana por grupo'!G91 -> 0 | AU91: =MID('Sabana por grupo'!B91,1,2) ->  | AV91: 81
AO92: ='Sabana por grupo'!A92 -> 0 | AP92: ='Sabana por grupo'!C92 -> 0 | AQ92: 0 | AS92: ='Sabana por grupo'!G92 -> 0 | AU92: =MID('Sabana por grupo'!B92,1,2) ->  | AV92: 81
AO93: ='Sabana por grupo'!A93 -> 0 | AP93: ='Sabana por grupo'!C93 -> 0 | AQ93: 0 | AS93: ='Sabana por grupo'!G93 -> 0 | AU93: =MID('Sabana por grupo'!B93,1,2) ->  | AV93: 81
AO94: ='Sabana por grupo'!A94 -> 0 | AP94: ='Sabana por grupo'!C94 -> 0 | AQ94: 0 | AS94: ='Sabana por grupo'!G94 -> 0 | AU94: =MID('Sabana por grupo'!B94,1,2) ->  | AV94: 81
AO95: ='Sabana por grupo'!A95 -> 0 | AP95: ='Sabana por grupo'!C95 -> 0 | AQ95: 0 | AS95: ='Sabana por grupo'!G95 -> 0 | AU95: =MID('Sabana por grupo'!B95,1,2) ->  | AV95: 81
AO96: ='Sabana por grupo'!A96 -> 0 | AP96: ='Sabana por grupo'!C96 -> 0 | AQ96: 0 | AS96: ='Sabana por grupo'!G96 -> 0 | AU96: =MID('Sabana por grupo'!B96,1,2) ->  | AV96: 81
AO97: ='Sabana por grupo'!A97 -> 0 | AP97: ='Sabana por grupo'!C97 -> 0 | AQ97: 0 | AS97: ='Sabana por grupo'!G97 -> 0 | AU97: =MID('Sabana por grupo'!B97,1,2) ->  | AV97: 81
AO98: ='Sabana por grupo'!A98 -> 0 | AP98: ='Sabana por grupo'!C98 -> 0 | AQ98: 0 | AS98: ='Sabana por grupo'!G98 -> 0 | AU98: =MID('Sabana por grupo'!B98,1,2) ->  | AV98: 81
AO99: ='Sabana por grupo'!A99 -> 0 | AP99: ='Sabana por grupo'!C99 -> 0 | AQ99: 0 | AS99: ='Sabana por grupo'!G99 -> 0 | AU99: =MID('Sabana por grupo'!B99,1,2) ->  | AV99: 81
AO100: ='Sabana por grupo'!A100 -> 0 | AP100: ='Sabana por grupo'!C100 -> 0 | AQ100: 0 | AS100: ='Sabana por grupo'!G100 -> 0 | AU100: =MID('Sabana por grupo'!B100,1,2) ->  | AV100: 81
AO101: ='Sabana por grupo'!A101 -> 0 | AP101: ='Sabana por grupo'!C101 -> 0 | AQ101: 0 | AS101: ='Sabana por grupo'!G101 -> 0 | AU101: =MID('Sabana por grupo'!B101,1,2) ->  | AV101: 81
AO102: ='Sabana por grupo'!A102 -> 0 | AP102: ='Sabana por grupo'!C102 -> 0 | AQ102: 0 | AS102: ='Sabana por grupo'!G102 -> 0 | AU102: =MID('Sabana por grupo'!B102,1,2) ->  | AV102: 81
AO103: ='Sabana por grupo'!A103 -> 0 | AP103: ='Sabana por grupo'!C103 -> 0 | AQ103: 0 | AS103: ='Sabana por grupo'!G103 -> 0 | AU103: =MID('Sabana por grupo'!B103,1,2) ->  | AV103: 81
AO104: ='Sabana por grupo'!A104 -> 0 | AP104: ='Sabana por grupo'!C104 -> 0 | AQ104: 0 | AS104: ='Sabana por grupo'!G104 -> 0 | AU104: =MID('Sabana por grupo'!B104,1,2) ->  | AV104: 81
AO105: ='Sabana por grupo'!A105 -> 0 | AP105: ='Sabana por grupo'!C105 -> 0 | AQ105: 0 | AS105: ='Sabana por grupo'!G105 -> 0 | AU105: =MID('Sabana por grupo'!B105,1,2) ->  | AV105: 81
AO106: ='Sabana por grupo'!A106 -> 0 | AP106: ='Sabana por grupo'!C106 -> 0 | AQ106: 0 | AS106: ='Sabana por grupo'!G106 -> 0 | AU106: =MID('Sabana por grupo'!B106,1,2) ->  | AV106: 81
AO107: ='Sabana por grupo'!A107 -> 0 | AP107: ='Sabana por grupo'!C107 -> 0 | AQ107: 0 | AS107: ='Sabana por grupo'!G107 -> 0 | AU107: =MID('Sabana por grupo'!B107,1,2) ->  | AV107: 81
AO108: ='Sabana por grupo'!A108 -> 0 | AP108: ='Sabana por grupo'!C108 -> 0 | AQ108: 0 | AS108: ='Sabana por grupo'!G108 -> 0 | AU108: =MID('Sabana por grupo'!B108,1,2) ->  | AV108: 81
AO109: ='Sabana por grupo'!A109 -> 0 | AP109: ='Sabana por grupo'!C109 -> 0 | AQ109: 0 | AS109: ='Sabana por grupo'!G109 -> 0 | AU109: =MID('Sabana por grupo'!B109,1,2) ->  | AV109: 81
AO110: ='Sabana por grupo'!A110 -> 0 | AP110: ='Sabana por grupo'!C110 -> 0 | AQ110: 0 | AS110: ='Sabana por grupo'!G110 -> 0 | AU110: =MID('Sabana por grupo'!B110,1,2) ->  | AV110: 81
AO111: ='Sabana por grupo'!A111 -> 0 | AP111: ='Sabana por grupo'!C111 -> 0 | AQ111: 0 | AS111: ='Sabana por grupo'!G111 -> 0 | AU111: =MID('Sabana por grupo'!B111,1,2) ->  | AV111: 81
AO112: ='Sabana por grupo'!A112 -> 0 | AP112: ='Sabana por grupo'!C112 -> 0 | AQ112: 0 | AS112: ='Sabana por grupo'!G112 -> 0 | AU112: =MID('Sabana por grupo'!B112,1,2) ->  | AV112: 81
AO113: ='Sabana por grupo'!A113 -> 0 | AP113: ='Sabana por grupo'!C113 -> 0 | AQ113: 0 | AS113: ='Sabana por grupo'!G113 -> 0 | AU113: =MID('Sabana por grupo'!B113,1,2) ->  | AV113: 81
AO114: ='Sabana por grupo'!A114 -> 0 | AP114: ='Sabana por grupo'!C114 -> 0 | AQ114: 0 | AS114: ='Sabana por grupo'!G114 -> 0 | AU114: =MID('Sabana por grupo'!B114,1,2) ->  | AV114: 81
AO115: ='Sabana por grupo'!A115 -> 0 | AP115: ='Sabana por grupo'!C115 -> 0 | AQ115: 0 | AS115: ='Sabana por grupo'!G115 -> 0 | AU115: =MID('Sabana por grupo'!B115,1,2) ->  | AV115: 81
AO116: ='Sabana por grupo'!A116 -> 0 | AP116: ='Sabana por grupo'!C116 -> 0 | AQ116: 0 | AS116: ='Sabana por grupo'!G116 -> 0 | AU116: =MID('Sabana por grupo'!B116,1,2) ->  | AV116: 81
AO117: ='Sabana por grupo'!A117 -> 0 | AP117: ='Sabana por grupo'!C117 -> 0 | AQ117: 0 | AS117: ='Sabana por grupo'!G117 -> 0 | AU117: =MID('Sabana por grupo'!B117,1,2) ->  | AV117: 81
AO118: ='Sabana por grupo'!A118 -> 0 | AP118: ='Sabana por grupo'!C118 -> 0 | AQ118: 0 | AS118: ='Sabana por grupo'!G118 -> 0 | AU118: =MID('Sabana por grupo'!B118,1,2) ->  | AV118: 81
AO119: ='Sabana por grupo'!A119 -> 0 | AP119: ='Sabana por grupo'!C119 -> 0 | AQ119: 0 | AS119: ='Sabana por grupo'!G119 -> 0 | AU119: =MID('Sabana por grupo'!B119,1,2) ->  | AV119: 81
AO120: ='Sabana por grupo'!A120 -> 0 | AP120: ='Sabana por grupo'!C120 -> 0 | AQ120: 0 | AS120: ='Sabana por grupo'!G120 -> 0 | AU120: =MID('Sabana por grupo'!B120,1,2) ->  | AV120: 81
AO121: ='Sabana por grupo'!A121 -> 0 | AP121: ='Sabana por grupo'!C121 -> 0 | AQ121: 0 | AS121: ='Sabana por grupo'!G121 -> 0 | AU121: =MID('Sabana por grupo'!B121,1,2) ->  | AV121: 81
AO122: ='Sabana por grupo'!A122 -> 0 | AP122: ='Sabana por grupo'!C122 -> 0 | AQ122: 0 | AS122: ='Sabana por grupo'!G122 -> 0 | AU122: =MID('Sabana por grupo'!B122,1,2) ->  | AV122: 81
AO123: ='Sabana por grupo'!A123 -> 0 | AP123: ='Sabana por grupo'!C123 -> 0 | AQ123: 0 | AS123: ='Sabana por grupo'!G123 -> 0 | AU123: =MID('Sabana por grupo'!B123,1,2) ->  | AV123: 81
AO124: ='Sabana por grupo'!A124 -> 0 | AP124: ='Sabana por grupo'!C124 -> 0 | AQ124: 0 | AS124: ='Sabana por grupo'!G124 -> 0 | AU124: =MID('Sabana por grupo'!B124,1,2) ->  | AV124: 81
AO125: ='Sabana por grupo'!A125 -> 0 | AP125: ='Sabana por grupo'!C125 -> 0 | AQ125: 0 | AS125: ='Sabana por grupo'!G125 -> 0 | AU125: =MID('Sabana por grupo'!B125,1,2) ->  | AV125: 81
AO126: ='Sabana por grupo'!A126 -> 0 | AP126: ='Sabana por grupo'!C126 -> 0 | AQ126: 0 | AS126: ='Sabana por grupo'!G126 -> 0 | AU126: =MID('Sabana por grupo'!B126,1,2) ->  | AV126: 81
AO127: ='Sabana por grupo'!A127 -> 0 | AP127: ='Sabana por grupo'!C127 -> 0 | AQ127: 0 | AS127: ='Sabana por grupo'!G127 -> 0 | AU127: =MID('Sabana por grupo'!B127,1,2) ->  | AV127: 81
AO128: ='Sabana por grupo'!A128 -> 0 | AP128: ='Sabana por grupo'!C128 -> 0 | AQ128: 0 | AS128: ='Sabana por grupo'!G128 -> 0 | AU128: =MID('Sabana por grupo'!B128,1,2) ->  | AV128: 81
AO129: ='Sabana por grupo'!A129 -> 0 | AP129: ='Sabana por grupo'!C129 -> 0 | AQ129: 0 | AS129: ='Sabana por grupo'!G129 -> 0 | AU129: =MID('Sabana por grupo'!B129,1,2) ->  | AV129: 81
AO130: ='Sabana por grupo'!A130 -> 0 | AP130: ='Sabana por grupo'!C130 -> 0 | AQ130: =_xlfn.NUMBERVALUE(AU130) -> 0 | AS130: ='Sabana por grupo'!G130 -> 0 | AU130: =MID('Sabana por grupo'!B130,1,2) ->  | AV130: 81
AO131: ='Sabana por grupo'!A131 -> 0 | AP131: ='Sabana por grupo'!C131 -> 0 | AQ131: 0 | AR131: =IF(AT131=0,"N/A",IF(AT131<$AX$2,"Riesgo Menor",IF(AT131<$AX$3,"Riesgo Probable","Atencion de Prioridad"))) ->  | AS131: ='Sabana por grupo'!G131 -> 0 | AT131: =(AU131/AV142) ->  | AU131: =MID('Sabana por grupo'!B131,1,2) ->  | AV131: 81
AO132: ='Sabana por grupo'!A132 -> 0 | AP132: ='Sabana por grupo'!C132 -> 0 | AQ132: 0 | AS132: ='Sabana por grupo'!G132 -> 0 | AU132: =MID('Sabana por grupo'!B132,1,2) ->  | AV132: 81
AO133: ='Sabana por grupo'!A133 -> 0 | AP133: ='Sabana por grupo'!C133 -> 0 | AQ133: 0 | AS133: ='Sabana por grupo'!G133 -> 0 | AU133: =MID('Sabana por grupo'!B133,1,2) ->  | AV133: 81
AO134: ='Sabana por grupo'!A134 -> 0 | AP134: ='Sabana por grupo'!C134 -> 0 | AQ134: 0 | AS134: ='Sabana por grupo'!G134 -> 0 | AU134: =MID('Sabana por grupo'!B134,1,2) ->  | AV134: 81
AO135: ='Sabana por grupo'!A135 -> 0 | AP135: ='Sabana por grupo'!C135 -> 0 | AQ135: 0 | AS135: ='Sabana por grupo'!G135 -> 0 | AU135: =MID('Sabana por grupo'!B135,1,2) ->  | AV135: 81
AO136: ='Sabana por grupo'!A136 -> 0 | AP136: ='Sabana por grupo'!C136 -> 0 | AQ136: 0 | AS136: ='Sabana por grupo'!G136 -> 0 | AU136: =MID('Sabana por grupo'!B136,1,2) ->  | AV136: 81
AO137: ='Sabana por grupo'!A137 -> 0 | AP137: ='Sabana por grupo'!C137 -> 0 | AQ137: 0 | AS137: ='Sabana por grupo'!G137 -> 0 | AU137: =MID('Sabana por grupo'!B137,1,2) ->  | AV137: 81
AO138: ='Sabana por grupo'!A138 -> 0 | AP138: ='Sabana por grupo'!C138 -> 0 | AQ138: 0 | AS138: ='Sabana por grupo'!G138 -> 0 | AU138: =MID('Sabana por grupo'!B138,1,2) ->  | AV138: 81
AO139: ='Sabana por grupo'!A139 -> 0 | AP139: ='Sabana por grupo'!C139 -> 0 | AQ139: 0 | AS139: ='Sabana por grupo'!G139 -> 0 | AU139: =MID('Sabana por grupo'!B139,1,2) ->  | AV139: 81
AO140: ='Sabana por grupo'!A140 -> 0 | AP140: ='Sabana por grupo'!C140 -> 0 | AQ140: 0 | AS140: ='Sabana por grupo'!G140 -> 0 | AU140: =MID('Sabana por grupo'!B140,1,2) ->  | AV140: 81
AO141: ='Sabana por grupo'!A141 -> 0 | AP141: ='Sabana por grupo'!C141 -> 0 | AQ141: 0 | AS141: ='Sabana por grupo'!G141 -> 0 | AU141: =MID('Sabana por grupo'!B141,1,2) ->  | AV141: 81
AO142: ='Sabana por grupo'!A142 -> 0 | AP142: ='Sabana por grupo'!C142 -> 0 | AQ142: 0 | AS142: ='Sabana por grupo'!G142 -> 0 | AU142: =MID('Sabana por grupo'!B142,1,2) ->  | AV142: 81
AO143: ='Sabana por grupo'!A143 -> 0 | AP143: ='Sabana por grupo'!C143 -> 0 | AQ143: 0 | AS143: ='Sabana por grupo'!G143 -> 0 | AU143: =MID('Sabana por grupo'!B143,1,2) ->  | AV143: 81
AO144: ='Sabana por grupo'!A144 -> 0 | AP144: ='Sabana por grupo'!C144 -> 0 | AQ144: 0 | AS144: ='Sabana por grupo'!G144 -> 0 | AU144: =MID('Sabana por grupo'!B144,1,2) ->  | AV144: 81
AO145: ='Sabana por grupo'!A145 -> 0 | AP145: ='Sabana por grupo'!C145 -> 0 | AQ145: 0 | AS145: ='Sabana por grupo'!G145 -> 0 | AU145: =MID('Sabana por grupo'!B145,1,2) ->  | AV145: 81
AO146: ='Sabana por grupo'!A146 -> 0 | AP146: ='Sabana por grupo'!C146 -> 0 | AQ146: 0 | AS146: ='Sabana por grupo'!G146 -> 0 | AU146: =MID('Sabana por grupo'!B146,1,2) ->  | AV146: 81
AO147: ='Sabana por grupo'!A147 -> 0 | AP147: ='Sabana por grupo'!C147 -> 0 | AQ147: 0 | AS147: ='Sabana por grupo'!G147 -> 0 | AU147: =MID('Sabana por grupo'!B147,1,2) ->  | AV147: 81
AO148: ='Sabana por grupo'!A148 -> 0 | AP148: ='Sabana por grupo'!C148 -> 0 | AQ148: 0 | AS148: ='Sabana por grupo'!G148 -> 0 | AU148: =MID('Sabana por grupo'!B148,1,2) ->  | AV148: 81
AO149: ='Sabana por grupo'!A149 -> 0 | AP149: ='Sabana por grupo'!C149 -> 0 | AQ149: 0 | AS149: ='Sabana por grupo'!G149 -> 0 | AU149: =MID('Sabana por grupo'!B149,1,2) ->  | AV149: 81
AO150: ='Sabana por grupo'!A150 -> 0 | AP150: ='Sabana por grupo'!C150 -> 0 | AQ150: 0 | AS150: ='Sabana por grupo'!G150 -> 0 | AU150: =MID('Sabana por grupo'!B150,1,2) ->  | AV150: 81
AO151: ='Sabana por grupo'!A151 -> 0 | AP151: ='Sabana por grupo'!C151 -> 0 | AQ151: 0 | AS151: ='Sabana por grupo'!G151 -> 0 | AU151: =MID('Sabana por grupo'!B151,1,2) ->  | AV151: 81
AO152: ='Sabana por grupo'!A152 -> 0 | AP152: ='Sabana por grupo'!C152 -> 0 | AQ152: 0 | AS152: ='Sabana por grupo'!G152 -> 0 | AU152: =MID('Sabana por grupo'!B152,1,2) ->  | AV152: 81
AO153: ='Sabana por grupo'!A153 -> 0 | AP153: ='Sabana por grupo'!C153 -> 0 | AQ153: 0 | AS153: ='Sabana por grupo'!G153 -> 0 | AU153: =MID('Sabana por grupo'!B153,1,2) ->  | AV153: 81
AO154: ='Sabana por grupo'!A154 -> 0 | AP154: ='Sabana por grupo'!C154 -> 0 | AQ154: 0 | AS154: ='Sabana por grupo'!G154 -> 0 | AU154: =MID('Sabana por grupo'!B154,1,2) ->  | AV154: 81
AO155: ='Sabana por grupo'!A155 -> 0 | AP155: ='Sabana por grupo'!C155 -> 0 | AQ155: 0 | AS155: ='Sabana por grupo'!G155 -> 0 | AU155: =MID('Sabana por grupo'!B155,1,2) ->  | AV155: 81
AO156: ='Sabana por grupo'!A156 -> 0 | AP156: ='Sabana por grupo'!C156 -> 0 | AQ156: 0 | AS156: ='Sabana por grupo'!G156 -> 0 | AU156: =MID('Sabana por grupo'!B156,1,2) ->  | AV156: 81
AO157: ='Sabana por grupo'!A157 -> 0 | AP157: ='Sabana por grupo'!C157 -> 0 | AQ157: 0 | AS157: ='Sabana por grupo'!G157 -> 0 | AU157: =MID('Sabana por grupo'!B157,1,2) ->  | AV157: 81
AO158: ='Sabana por grupo'!A158 -> 0 | AP158: ='Sabana por grupo'!C158 -> 0 | AQ158: 0 | AS158: ='Sabana por grupo'!G158 -> 0 | AU158: =MID('Sabana por grupo'!B158,1,2) ->  | AV158: 81
AO159: ='Sabana por grupo'!A159 -> 0 | AP159: ='Sabana por grupo'!C159 -> 0 | AQ159: 0 | AS159: ='Sabana por grupo'!G159 -> 0 | AU159: =MID('Sabana por grupo'!B159,1,2) ->  | AV159: 81
AO160: ='Sabana por grupo'!A160 -> 0 | AP160: ='Sabana por grupo'!C160 -> 0 | AQ160: 0 | AS160: ='Sabana por grupo'!G160 -> 0 | AU160: =MID('Sabana por grupo'!B160,1,2) ->  | AV160: 81
AO161: ='Sabana por grupo'!A161 -> 0 | AP161: ='Sabana por grupo'!C161 -> 0 | AQ161: 0 | AS161: ='Sabana por grupo'!G161 -> 0 | AU161: =MID('Sabana por grupo'!B161,1,2) ->  | AV161: 81
AO162: ='Sabana por grupo'!A162 -> 0 | AP162: ='Sabana por grupo'!C162 -> 0 | AQ162: 0 | AS162: ='Sabana por grupo'!G162 -> 0 | AU162: =MID('Sabana por grupo'!B162,1,2) ->  | AV162: 81
AO163: ='Sabana por grupo'!A163 -> 0 | AP163: ='Sabana por grupo'!C163 -> 0 | AQ163: 0 | AS163: ='Sabana por grupo'!G163 -> 0 | AU163: =MID('Sabana por grupo'!B163,1,2) ->  | AV163: 81
AO164: ='Sabana por grupo'!A164 -> 0 | AP164: ='Sabana por grupo'!C164 -> 0 | AQ164: 0 | AS164: ='Sabana por grupo'!G164 -> 0 | AU164: =MID('Sabana por grupo'!B164,1,2) ->  | AV164: 81
AO165: ='Sabana por grupo'!A165 -> 0 | AP165: ='Sabana por grupo'!C165 -> 0 | AQ165: 0 | AS165: ='Sabana por grupo'!G165 -> 0 | AU165: =MID('Sabana por grupo'!B165,1,2) ->  | AV165: 81
AO166: ='Sabana por grupo'!A166 -> 0 | AP166: ='Sabana por grupo'!C166 -> 0 | AQ166: 0 | AS166: ='Sabana por grupo'!G166 -> 0 | AU166: =MID('Sabana por grupo'!B166,1,2) ->  | AV166: 81
AO167: ='Sabana por grupo'!A167 -> 0 | AP167: ='Sabana por grupo'!C167 -> 0 | AQ167: 0 | AS167: ='Sabana por grupo'!G167 -> 0 | AU167: =MID('Sabana por grupo'!B167,1,2) ->  | AV167: 81
AO168: ='Sabana por grupo'!A168 -> 0 | AP168: ='Sabana por grupo'!C168 -> 0 | AQ168: 0 | AS168: ='Sabana por grupo'!G168 -> 0 | AU168: =MID('Sabana por grupo'!B168,1,2) ->  | AV168: 81
AO169: ='Sabana por grupo'!A169 -> 0 | AP169: ='Sabana por grupo'!C169 -> 0 | AQ169: 0 | AS169: ='Sabana por grupo'!G169 -> 0 | AU169: =MID('Sabana por grupo'!B169,1,2) ->  | AV169: 81
AO170: ='Sabana por grupo'!A170 -> 0 | AP170: ='Sabana por grupo'!C170 -> 0 | AQ170: 0 | AS170: ='Sabana por grupo'!G170 -> 0 | AU170: =MID('Sabana por grupo'!B170,1,2) ->  | AV170: 81
AO171: ='Sabana por grupo'!A171 -> 0 | AP171: ='Sabana por grupo'!C171 -> 0 | AQ171: 0 | AS171: ='Sabana por grupo'!G171 -> 0 | AU171: =MID('Sabana por grupo'!B171,1,2) ->  | AV171: 81
AO172: ='Sabana por grupo'!A172 -> 0 | AP172: ='Sabana por grupo'!C172 -> 0 | AQ172: 0 | AS172: ='Sabana por grupo'!G172 -> 0 | AU172: =MID('Sabana por grupo'!B172,1,2) ->  | AV172: 81
AO173: ='Sabana por grupo'!A173 -> 0 | AP173: ='Sabana por grupo'!C173 -> 0 | AQ173: 0 | AS173: ='Sabana por grupo'!G173 -> 0 | AU173: =MID('Sabana por grupo'!B173,1,2) ->  | AV173: 81
AO174: ='Sabana por grupo'!A174 -> 0 | AP174: ='Sabana por grupo'!C174 -> 0 | AQ174: 0 | AS174: ='Sabana por grupo'!G174 -> 0 | AU174: =MID('Sabana por grupo'!B174,1,2) ->  | AV174: 81
AO175: ='Sabana por grupo'!A175 -> 0 | AP175: ='Sabana por grupo'!C175 -> 0 | AQ175: 0 | AS175: ='Sabana por grupo'!G175 -> 0 | AU175: =MID('Sabana por grupo'!B175,1,2) ->  | AV175: 81
AO176: ='Sabana por grupo'!A176 -> 0 | AP176: ='Sabana por grupo'!C176 -> 0 | AQ176: 0 | AS176: ='Sabana por grupo'!G176 -> 0 | AU176: =MID('Sabana por grupo'!B176,1,2) ->  | AV176: 81
AO177: ='Sabana por grupo'!A177 -> 0 | AP177: ='Sabana por grupo'!C177 -> 0 | AQ177: 0 | AS177: ='Sabana por grupo'!G177 -> 0 | AU177: =MID('Sabana por grupo'!B177,1,2) ->  | AV177: 81
AO178: ='Sabana por grupo'!A178 -> 0 | AP178: ='Sabana por grupo'!C178 -> 0 | AQ178: 0 | AS178: ='Sabana por grupo'!G178 -> 0 | AU178: =MID('Sabana por grupo'!B178,1,2) ->  | AV178: 81
AO179: ='Sabana por grupo'!A179 -> 0 | AP179: ='Sabana por grupo'!C179 -> 0 | AQ179: 0 | AS179: ='Sabana por grupo'!G179 -> 0 | AU179: =MID('Sabana por grupo'!B179,1,2) ->  | AV179: 81
AO180: ='Sabana por grupo'!A180 -> 0 | AP180: ='Sabana por grupo'!C180 -> 0 | AQ180: 0 | AS180: ='Sabana por grupo'!G180 -> 0 | AU180: =MID('Sabana por grupo'!B180,1,2) ->  | AV180: 81
AO181: ='Sabana por grupo'!A181 -> 0 | AP181: ='Sabana por grupo'!C181 -> 0 | AQ181: 0 | AS181: ='Sabana por grupo'!G181 -> 0 | AU181: =MID('Sabana por grupo'!B181,1,2) ->  | AV181: 81
AO182: ='Sabana por grupo'!A182 -> 0 | AP182: ='Sabana por grupo'!C182 -> 0 | AQ182: 0 | AS182: ='Sabana por grupo'!G182 -> 0 | AU182: =MID('Sabana por grupo'!B182,1,2) ->  | AV182: 81
AO183: ='Sabana por grupo'!A183 -> 0 | AP183: ='Sabana por grupo'!C183 -> 0 | AQ183: 0 | AS183: ='Sabana por grupo'!G183 -> 0 | AU183: =MID('Sabana por grupo'!B183,1,2) ->  | AV183: 81
AO184: ='Sabana por grupo'!A184 -> 0 | AP184: ='Sabana por grupo'!C184 -> 0 | AQ184: 0 | AS184: ='Sabana por grupo'!G184 -> 0 | AU184: =MID('Sabana por grupo'!B184,1,2) ->  | AV184: 81
AO185: ='Sabana por grupo'!A185 -> 0 | AP185: ='Sabana por grupo'!C185 -> 0 | AQ185: 0 | AS185: ='Sabana por grupo'!G185 -> 0 | AU185: =MID('Sabana por grupo'!B185,1,2) ->  | AV185: 81
AO186: ='Sabana por grupo'!A186 -> 0 | AP186: ='Sabana por grupo'!C186 -> 0 | AQ186: 0 | AS186: ='Sabana por grupo'!G186 -> 0 | AU186: =MID('Sabana por grupo'!B186,1,2) ->  | AV186: 81
AO187: ='Sabana por grupo'!A187 -> 0 | AP187: ='Sabana por grupo'!C187 -> 0 | AQ187: 0 | AS187: ='Sabana por grupo'!G187 -> 0 | AU187: =MID('Sabana por grupo'!B187,1,2) ->  | AV187: 81
AO188: ='Sabana por grupo'!A188 -> 0 | AP188: ='Sabana por grupo'!C188 -> 0 | AQ188: 0 | AS188: ='Sabana por grupo'!G188 -> 0 | AU188: =MID('Sabana por grupo'!B188,1,2) ->  | AV188: 81
AO189: ='Sabana por grupo'!A189 -> 0 | AP189: ='Sabana por grupo'!C189 -> 0 | AQ189: 0 | AS189: ='Sabana por grupo'!G189 -> 0 | AU189: =MID('Sabana por grupo'!B189,1,2) ->  | AV189: 81
AO190: ='Sabana por grupo'!A190 -> 0 | AP190: ='Sabana por grupo'!C190 -> 0 | AQ190: 0 | AS190: ='Sabana por grupo'!G190 -> 0 | AU190: =MID('Sabana por grupo'!B190,1,2) ->  | AV190: 81
AO191: ='Sabana por grupo'!A191 -> 0 | AP191: ='Sabana por grupo'!C191 -> 0 | AQ191: 0 | AS191: ='Sabana por grupo'!G191 -> 0 | AU191: =MID('Sabana por grupo'!B191,1,2) ->  | AV191: 81
AO192: ='Sabana por grupo'!A192 -> 0 | AP192: ='Sabana por grupo'!C192 -> 0 | AQ192: 0 | AS192: ='Sabana por grupo'!G192 -> 0 | AU192: =MID('Sabana por grupo'!B192,1,2) ->  | AV192: 81
AO193: ='Sabana por grupo'!A193 -> 0 | AP193: ='Sabana por grupo'!C193 -> 0 | AQ193: 0 | AS193: ='Sabana por grupo'!G193 -> 0 | AU193: =MID('Sabana por grupo'!B193,1,2) ->  | AV193: 81
AO194: ='Sabana por grupo'!A194 -> 0 | AP194: ='Sabana por grupo'!C194 -> 0 | AQ194: =_xlfn.NUMBERVALUE(AU194) -> 0 | AS194: ='Sabana por grupo'!G194 -> 0 | AU194: =MID('Sabana por grupo'!B194,1,2) ->  | AV194: 81
AO195: ='Sabana por grupo'!A195 -> 0 | AP195: ='Sabana por grupo'!C195 -> 0 | AQ195: 0 | AR195: =IF(AT195=0,"N/A",IF(AT195<$AX$2,"Riesgo Menor",IF(AT195<$AX$3,"Riesgo Probable","Atencion de Prioridad"))) ->  | AS195: ='Sabana por grupo'!G195 -> 0 | AT195: =(AU195/AV206) ->  | AU195: =MID('Sabana por grupo'!B195,1,2) ->  | AV195: 81
AO196: ='Sabana por grupo'!A196 -> 0 | AP196: ='Sabana por grupo'!C196 -> 0 | AQ196: 0 | AS196: ='Sabana por grupo'!G196 -> 0 | AU196: =MID('Sabana por grupo'!B196,1,2) ->  | AV196: 81
AO197: ='Sabana por grupo'!A197 -> 0 | AP197: ='Sabana por grupo'!C197 -> 0 | AQ197: 0 | AS197: ='Sabana por grupo'!G197 -> 0 | AU197: =MID('Sabana por grupo'!B197,1,2) ->  | AV197: 81
AO198: ='Sabana por grupo'!A198 -> 0 | AP198: ='Sabana por grupo'!C198 -> 0 | AQ198: 0 | AS198: ='Sabana por grupo'!G198 -> 0 | AU198: =MID('Sabana por grupo'!B198,1,2) ->  | AV198: 81
AO199: ='Sabana por grupo'!A199 -> 0 | AP199: ='Sabana por grupo'!C199 -> 0 | AQ199: 0 | AS199: ='Sabana por grupo'!G199 -> 0 | AU199: =MID('Sabana por grupo'!B199,1,2) ->  | AV199: 81
AO200: ='Sabana por grupo'!A200 -> 0 | AP200: ='Sabana por grupo'!C200 -> 0 | AQ200: 0 | AS200: ='Sabana por grupo'!G200 -> 0 | AU200: =MID('Sabana por grupo'!B200,1,2) ->  | AV200: 81
... 339 more rows

Sheet Reporte General
C3: Reporte de tamizaje general
K6: Alumnos en riesgo | Q6: Ideación Autolítica
A7: Plantel: | B7: Abasolo | C7: Grupo: | D7: 101 (1A)
A8: Total de la muestra: | C8: ='Datos generales'!K1 -> 1 | J8: Folio | K8: Nombre | L8: F.R. | M8: Tipo de R | N8: Sexo
A9: Edad promedio de la muestra: | C9: =AVERAGE('Sabana por grupo'!E2:E100) -> 20 | D9: Años | J9: ='Datos generales'!AO2 -> 3 | K9: =IFERROR('Datos generales'!AP2,"") -> Cristina Cruz Escalera | L9: =IFERROR('Datos generales'!AT2,"") -> 0.07407407407 | M9: =IFERROR('Datos generales'!AR2,"") -> Riesgo Menor | N9: =IFERROR('Datos generales'!AS2,"") -> Mujer | Q9: Rasgos de Riesgo
A10: Muestra masculina: | C10: =COUNTIF('Sabana por grupo'!G1:G99049,"Hombre") -> 0 | J10: ='Datos generales'!AO3 -> 0 | K10: =IFERROR('Datos generales'!AP3,"") -> 0 | L10: =IFERROR('Datos generales'!AT3,"") ->  | M10: =IFERROR('Datos generales'!AR3,"") ->  | N10: =IFERROR('Datos generales'!AS3,"") -> 0 | Q10: Sentimientos de inutilidad | R10: ='Datos generales'!R28 -> 0.25
A11: Muestra femenina: | C11: =COUNTIF('Sabana por grupo'!G1:G99049,"Mujer") -> 1 | J11: ='Datos generales'!AO4 -> 0 | K11: =IFERROR('Datos generales'!AP4,"") -> 0 | L11: =IFERROR('Datos generales'!AT4,"") ->  | M11: =IFERROR('Datos generales'!AR4,"") ->  | N11: =IFERROR('Datos generales'!AS4,"") -> 0 | Q11: Ideación suicida | R11: ='Datos generales'!R32 -> 0
A12: Puntuacion promedio: | C12: =AVERAGEIF('Datos generales'!AQ2:AQ539,">0") -> 6 | J12: ='Datos generales'!AO5 -> 0 | K12: =IFERROR('Datos generales'!AP5,"") -> 0 | L12: =IFERROR('Datos generales'!AT5,"") ->  | M12: =IFERROR('Datos generales'!AR5,"") ->  | N12: =IFERROR('Datos generales'!AS5,"") -> 0 | Q12: Desesperanza | R12: ='Datos generales'!R35 -> 0
J13: ='Datos generales'!AO6 -> 0 | K13: =IFERROR('Datos generales'!AP6,"") -> 0 | L13: =IFERROR('Datos generales'!AT6,"") ->  | M13: =IFERROR('Datos generales'!AR6,"") ->  | N13: =IFERROR('Datos generales'!AS6,"") -> 0 | Q13: Factores sociales | R13: ='Datos generales'!R38 -> 0
J14: ='Datos generales'!AO7 -> 0 | K14: =IFERROR('Datos generales'!AP7,"") -> 0 | L14: =IFERROR('Datos generales'!AT7,"") ->  | M14: =IFERROR('Datos generales'!AR7,"") ->  | N14: =IFERROR('Datos generales'!AS7,"") -> 0
B15: Tipo de riesgo | C15: Alumnos | J15: ='Datos generales'!AO8 -> 0 | K15: =IFERROR('Datos generales'!AP8,"") -> 0 | L15: =IFERROR('Datos generales'!AT8,"") ->  | M15: =IFERROR('Datos generales'!AR8,"") ->  | N15: =IFERROR('Datos generales'!AS8,"") -> 0
B16: Menor | C16: =COUNTIF('Datos generales'!AR2:AR539,"Riesgo Menor") -> 1 | J16: ='Datos generales'!AO9 -> 0 | K16: =IFERROR('Datos generales'!AP9,"") -> 0 | L16: =IFERROR('Datos generales'!AT9,"") ->  | M16: =IFERROR('Datos generales'!AR9,"") ->  | N16: =IFERROR('Datos generales'!AS9,"") -> 0
B17: Probable | C17: =COUNTIF('Datos generales'!AR2:AR539,"Riesgo Probable") -> 0 | J17: ='Datos generales'!AO10 -> 0 | K17: =IFERROR('Datos generales'!AP10,"") -> 0 | L17: =IFERROR('Datos generales'!AT10,"") ->  | M17: =IFERROR('Datos generales'!AR10,"") ->  | N17: =IFERROR('Datos generales'!AS10,"") -> 0
B18: Prioridad | C18: =COUNTIF('Datos generales'!AR2:AR539,"Atencion de Prioridad") -> 0 | J18: ='Datos generales'!AO11 -> 0 | K18: =IFERROR('Datos generales'!AP11,"") -> 0 | L18: =IFERROR('Datos generales'!AT11,"") ->  | M18: =IFERROR('Datos generales'!AR11,"") ->  | N18: =IFERROR('Datos generales'!AS11,"") -> 0
J19: ='Datos generales'!AO12 -> 0 | K19: =IFERROR('Datos generales'!AP12,"") -> 0 | L19: =IFERROR('Datos generales'!AT12,"") ->  | M19: =IFERROR('Datos generales'!AR12,"") ->  | N19: =IFERROR('Datos generales'!AS12,"") -> 0
J20: ='Datos generales'!AO13 -> 0 | K20: =IFERROR('Datos generales'!AP13,"") -> 0 | L20: =IFERROR('Datos generales'!AT13,"") ->  | M20: =IFERROR('Datos generales'!AR13,"") ->  | N20: =IFERROR('Datos generales'!AS13,"") -> 0
J21: ='Datos generales'!AO14 -> 0 | K21: =IFERROR('Datos generales'!AP14,"") -> 0 | L21: =IFERROR('Datos generales'!AT14,"") ->  | M21: =IFERROR('Datos generales'!AR14,"") ->  | N21: =IFERROR('Datos generales'!AS14,"") -> 0
J22: ='Datos generales'!AO15 -> 0 | K22: =IFERROR('Datos generales'!AP15,"") -> 0 | L22: =IFERROR('Datos generales'!AT15,"") ->  | M22: =IFERROR('Datos generales'!AR15,"") ->  | N22: =IFERROR('Datos generales'!AS15,"") -> 0
J23: ='Datos generales'!AO16 -> 0 | K23: =IFERROR('Datos generales'!AP16,"") -> 0 | L23: =IFERROR('Datos generales'!AT16,"") ->  | M23: =IFERROR('Datos generales'!AR16,"") ->  | N23: =IFERROR('Datos generales'!AS16,"") -> 0
J24: ='Datos generales'!AO17 -> 0 | K24: =IFERROR('Datos generales'!AP17,"") -> 0 | L24: =IFERROR('Datos generales'!AT17,"") ->  | M24: =IFERROR('Datos generales'!AR17,"") ->  | N24: =IFERROR('Datos generales'!AS17,"") -> 0
F25: Areas en riesgo | J25: ='Datos generales'!AO18 -> 0 | K25: =IFERROR('Datos generales'!AP18,"") -> 0 | L25: =IFERROR('Datos generales'!AT18,"") ->  | M25: =IFERROR('Datos generales'!AR18,"") ->  | N25: =IFERROR('Datos generales'!AS18,"") -> 0
F26: Sustancias | G26: ='Datos generales'!N22 -> 0 | J26: ='Datos generales'!AO19 -> 0 | K26: =IFERROR('Datos generales'!AP19,"") -> 0 | L26: =IFERROR('Datos generales'!AT19,"") ->  | M26: =IFERROR('Datos generales'!AR19,"") ->  | N26: =IFERROR('Datos generales'!AS19,"") -> 0
F27: Familia | G27: ='Datos generales'!R15 -> 0.1 | J27: ='Datos generales'!AO20 -> 0 | K27: =IFERROR('Datos generales'!AP20,"") -> 0 | L27: =IFERROR('Datos generales'!AT20,"") ->  | M27: =IFERROR('Datos generales'!AR20,"") ->  | N27: =IFERROR('Datos generales'!AS20,"") -> 0
F28: Conducta | G28: ='Datos generales'!V19 -> 0 | J28: ='Datos generales'!AO21 -> 0 | K28: =IFERROR('Datos generales'!AP21,"") -> 0 | L28: =IFERROR('Datos generales'!AT21,"") ->  | M28: =IFERROR('Datos generales'!AR21,"") ->  | N28: =IFERROR('Datos generales'!AS21,"") -> 0
F29: Salud mental | G29: ='Datos generales'!Z21 -> 0.3125 | J29: ='Datos generales'!AO22 -> 0 | K29: =IFERROR('Datos generales'!AP22,"") -> 0 | L29: =IFERROR('Datos generales'!AT22,"") ->  | M29: =IFERROR('Datos generales'!AR22,"") ->  | N29: =IFERROR('Datos generales'!AS22,"") -> 0 | Q29: Riesgo del grupo en general
F30: N. Educativo | G30: ='Datos generales'!AD20 -> 0.4666666667 | J30: ='Datos generales'!AO23 -> 0 | K30: =IFERROR('Datos generales'!AP23,"") -> 0 | L30: =IFERROR('Datos generales'!AT23,"") ->  | M30: =IFERROR('Datos generales'!AR23,"") ->  | N30: =IFERROR('Datos generales'!AS23,"") -> 0
F31: Amigos | G31: ='Datos generales'!AH12 -> 0.2857142857 | J31: ='Datos generales'!AO24 -> 0 | K31: =IFERROR('Datos generales'!AP24,"") -> 0 | L31: =IFERROR('Datos generales'!AT24,"") ->  | M31: =IFERROR('Datos generales'!AR24,"") ->  | N31: =IFERROR('Datos generales'!AS24,"") -> 0 | Q31: =('Datos generales'!AJ33)/100 -> 0.06666666667 | R31: =IF(AND(Q31>0.1,Q31<0.3),"Sin Riesgo",IF(AND(Q31>0.3,Q31<0.5),"Riesgo bajo",IF(AND(Q31>0.5,Q31<0.8),"Riesgo medio","Riesgo alto"))) -> Riesgo alto
F32: Laboral | G32: ='Datos generales'!AL11 -> 0.3333333333 | J32: ='Datos generales'!AO25 -> 0 | K32: =IFERROR('Datos generales'!AP25,"") -> 0 | L32: =IFERROR('Datos generales'!AT25,"") ->  | M32: =IFERROR('Datos generales'!AR25,"") ->  | N32: =IFERROR('Datos generales'!AS25,"") -> 0
F33: Promedio | G33: =AVERAGE(G26:G32) -> 0.2140306122 | J33: ='Datos generales'!AO26 -> 0 | K33: =IFERROR('Datos generales'!AP26,"") -> 0 | L33: =IFERROR('Datos generales'!AT26,"") ->  | M33: =IFERROR('Datos generales'!AR26,"") ->  | N33: =IFERROR('Datos generales'!AS26,"") -> 0 | Q33: Tipos de riesgo:
F34: El Indice de Riesgo General es el promedio de vulnerabilidad en la poblacion estudiantil, mientras mas alto sea el numero, mayor sera el riesgo en el alumnado | J34: ='Datos generales'!AO27 -> 0 | K34: =IFERROR('Datos generales'!AP27,"") -> 0 | L34: =IFERROR('Datos generales'!AT27,"") ->  | M34: =IFERROR('Datos generales'!AR27,"") ->  | N34: =IFERROR('Datos generales'!AS27,"") -> 0 | Q34: Los tipos de riesgo corresponden a el porcentaje de riesgo en el grupo general.
J35: ='Datos generales'!AO28 -> 0 | K35: =IFERROR('Datos generales'!AP28,"") -> 0 | L35: =IFERROR('Datos generales'!AT28,"") ->  | M35: =IFERROR('Datos generales'!AR28,"") ->  | N35: =IFERROR('Datos generales'!AS28,"") -> 0
J36: ='Datos generales'!AO29 -> 0 | K36: =IFERROR('Datos generales'!AP29,"") -> 0 | L36: =IFERROR('Datos generales'!AT29,"") ->  | M36: =IFERROR('Datos generales'!AR29,"") ->  | N36: =IFERROR('Datos generales'!AS29,"") -> 0 | Q36: Sin riesgo en un porcentaje de 1% a 30%
J37: ='Datos generales'!AO30 -> 0 | K37: =IFERROR('Datos generales'!AP30,"") -> 0 | L37: =IFERROR('Datos generales'!AT30,"") ->  | M37: =IFERROR('Datos generales'!AR30,"") ->  | N37: =IFERROR('Datos generales'!AS30,"") -> 0 | Q37: Riesgo Bajo en un porcentaje de 30% a 55%
J38: ='Datos generales'!AO31 -> 0 | K38: =IFERROR('Datos generales'!AP31,"") -> 0 | L38: =IFERROR('Datos generales'!AT31,"") ->  | M38: =IFERROR('Datos generales'!AR31,"") ->  | N38: =IFERROR('Datos generales'!AS31,"") -> 0 | Q38: Riesgo Medio en un porcentaje de 55% a 80%
Q39: Riesgo Alto en un porcentaje de 80% a 100%
J40: Prioridad: Quiere decir que el alumno requiere una atención inmediata
B41: Riesgo por sexo
B42: Hombres en riesgo | D42: =COUNTIFS('Datos generales'!AS2:AS6377,"Hombre",'Datos generales'!AT2:AT6377,">0.2832") -> 0 | J42: Riesgo Probable: Se refiere a un alumno con posibilidades de presentar conflictos en las áreas mas destacadas, es importante agendar una cita para su atencion.
B43: Mujeres en riesgo | D43: =COUNTIFS('Datos generales'!AS2:AS6378,"Mujer",'Datos generales'!AT2:AT6378,">0.2832") -> 0
J44: Riesgo Menor: No requiere agendar cita para su atencion psicológica a menos que el alumno así lo requiera.
Q47: Según la escala de Plutchik
A49: Según metodología de POSIT

Sheet Datos individuales (hidden)
B1: Folio | D1: Turno | E1: Edad | F1: Grado | G1: Sexo | H1: Plantel | I1: 1.- ¿Eres arrogante? | J1: 2.- ¿Has tenido dificultades porque consumes drogas o bebidas alcohólicas en la escuela? | K1: 3.- ¿Se aburren tus amigos en las fiestas donde no sirven bebidas alcohólicas? | L1: 4.- ¿Discuten demasiado tus padres o tutores? | M1: 5.- ¿Te cansas con frecuencia? | N1: 6.- ¿Te asustas con facilidad? | O1: 7.- ¿Tienes menos energía de la que crees que deberías tener? | P1: 8.- ¿Te sientes frustrado(a) con facilidad? | Q1: 9.- ¿Amenazas a otros con hacerles daño? | R1: 10.- ¿Te sientes solo (a) la mayor parte del tiempo? | S1: 11.- ¿Dices groserías o vulgaridades? | T1: 12.- ¿Escuchas cuidadosamente cuando alguien te habla? | U1: 13.- ¿Son tus amigos (as) del agrado de tus padres o tutores? | V1: 14.- ¿Se niegan tus padres o tutores a hablarte cuando se enfadan contigo? | W1: 15.- ¿Actúas impulsivamente y sin pensar en las consecuencias que tendrán tus actos? | X1: 16.- ¿Has tenido algún trabajo eventual con sueldo? | Y1: 17.- ¿Te has hecho daño o le has hecho daño a otra persona accidentalmente, estando bajo los efectos del alcohol o drogas? | Z1: 18.- ¿Tienes buena ortografía? | AA1: 19.- ¿Tienes amigos que causan daño o destrucción intencionalmente? | AB1: 20.- La mayoría de las veces, ¿saben tus padres o tutores dónde estás y lo que estás haciendo? | AC1: 21.- ¿Sueles perderte actividades o acontecimientos porque has gastado demasiado dinero en drogas o bebidas alcohólicas? | AD1: 22.- ¿Participas en muchas actividades en compañía de tus padres o tutores? | AE1: 23.- ¿Te sientes nervioso (a) la mayor parte del tiempo? | AF1: 24.- ¿Has robado alguna vez? | AG1: 25.- ¿Has sentido que eres adicto (a) al alcohol o a las drogas? | AH1: 26.- ¿Sabes leer bien? | AI1: 27.- ¿Has estado ausente o llegado tarde a tu trabajo o escuela con frecuencia? | AJ1: 28.- ¿Sientes que la gente está en contra tuya? | AK1: 29.- ¿Tus amigos llevan drogas a las fiestas? | AL1: 30.- ¿Peleas con frecuencia? | AM1: 31.- ¿Tienes mal genio? | AN1: 32.- ¿Te prestan atención tus padres o tutores cuando les hablas? | AO1: 33.- ¿Has comenzado a consumir mayores cantidades de drogas o alcohol para obtener el efecto que deseas? | AP1: 34.- ¿Te dice la gente que eres descuidado (a)? | AQ1: 35.- ¿Eres terco (a) o testarudo (a)? | AR1: 36.- ¿Has tenido alguna vez o tienes actualmente un empleo? | AS1: 37.- ¿Has amenazado alguna vez a alguien con un arma? | AT1: 38.- ¿A veces te vas de las fiestas porque en ellas no hay bebidas alcohólicas o drogas? | AU1: 39.- ¿Saben tus padres o tutores cómo piensas o te sientes realmente? | AV1: 40.- ¿Actúas impulsivamente con frecuencia? | AW1: 41.- ¿Sientes un deseo constante de consumir bebidas alcohólicas o drogas? | AX1: 42.- ¿Pierdes el hilo del pensamiento con mucha frecuencia? | AY1: 43.- ¿Tienes dificultades para concentrarte? | AZ1: 44.- ¿Has tenido alguna vez un empleo con sueldo que haya durado por lo menos un mes? | BA1: 45.- ¿Discutes frecuentemente con tus padres o tutores, levantando la voz y gritando? | BB1: 46.- ¿Has tenido un accidente automovilístico estando bajo los efectos del alcohol o drogas? | BC1: 47.- ¿Olvidas lo que haces cuando bebes o te drogas? | BD1: 48.- El mes pasado, ¿manejaste un automóvil estando borracho (a) o drogado (a)? | BE1: 49.- ¿Levantas la voz más que los demás muchachos de tu edad? | BF1: 50.- ¿Has ocasionado daños a propiedad ajena intencionalmente? | BG1: 51.- ¿Has dejado un empleo sencillamente porque no te interesaban las consecuencias de dejarlo? | BH1: 52.- ¿A tus padres o tutores les gusta hablar y estar contigo? | BI1: 53.- ¿Has pasado alguna noche fuera de tu casa sin que tus padres o tutores supieran dónde estabas? | BJ1: 54.- ¿El uso del alcohol o drogas te produce cambios repentinos de humor, como pasar de estar contento (a) a estar triste, o viceversa? | BK1: 55.- ¿Te sientes triste la mayor parte del tiempo? | BL1: 56.- ¿Pierdes días de clase o llegas tarde a la escuela por haber consumido bebidas alcohólicas o drogas? | BM1: 57.- ¿Te han dicho alguna vez tus familiares o amigos que debes reducir el uso de bebidas alcohólicas o drogas? | BN1: 58.- ¿Discutes seriamente con tus amigos o familiares por el uso que haces de bebidas alcohólicas o drogas? | BO1: 59.- ¿Molestas mucho a tus amigos? | BP1: 60.- ¿Tienes dificultades para dormir? | BQ1: 61.- ¿Tienes dificultades con trabajos escritos? | BR1: 62.- Las bebidas alcohólicas o drogas, ¿te han inducido a hacer algo que normalmente no harías, como desobedecer alguna regla o ley, o la hora de llegar a casa, o tener relaciones sexuales con alguien? | BS1: 63.- ¿Sientes que a veces pierdes control de ti mismo(a) y terminas peleando? | BT1: 64.- ¿Faltaste a la escuela sin autorización el mes pasado? | BU1: 65.- ¿Tienes dificultades en tus relaciones con alguno de tus amigos debido a las bebidas alcohólicas o drogas que consumes? | BV1: 66.- ¿Tienes dificultad para seguir instrucciones? | BW1: 67.- ¿Tienes amigos que han golpeado o amenazado a alguien sin razón? | BX1: 68.- ¿Has sentido que no puedes controlar el deseo de consumir bebidas alcohólicas o drogas? | BY1: 69.- ¿Tienes buena memoria? | BZ1: 70.- ¿Tienen tus padres o tutores una idea relativamente buena de lo que te interesa? | CA1: 71.- ¿Están tus padres o tutores de acuerdo en cuanto a la forma en que te deben educar? | CB1: 72.- ¿Se te hace difícil hacer planes u organizar tus actividades? | CC1: 73.- ¿Tus amigos faltan a la escuela sin autorización con mucha frecuencia? | CD1: 74.- ¿A veces la escuela te hace sentirte como tonto? | CE1: 75.- ¿Frecuentemente sientes deseos de llorar? | CF1: 76.- ¿Te da miedo estar con la gente? | CG1: 77.- ¿Tienes amigos que han robado? | CH1: 78.- ¿Has reprobado algún año en la escuela? | CI1: 79.- ¿Es difícil la escuela para ti? | CJ1: 80.- ¿Eres una persona nerviosa, de las que no pueden estar sentadas mucho tiempo? | CK1: 81.- ¿Gritas mucho? | CL1: 1.-¿Toma de forma habitual algún medicamento, como aspirinas o pastillas para dormir? | CM1: 2.-¿Tiene dificultades para conciliar el sueño? | CN1: 3.-¿A veces nota que podría perder el control sobre sí mismo/a? | CO1: 4.- ¿Tiene poco interés en relacionarse con la gente? | CP1: 5.- ¿Ve su futuro con más pesimismo que optimismo? | CQ1: 6.- ¿Se ha sentido alguna vez inútil o inservible? | CR1: 7.- ¿Ve su futuro sin ninguna esperanza? | CS1: 8.- ¿Se ha sentido alguna vez tan fracasado/a que sólo quería meterse en la cama y abandonarlo todo? | CT1: 9.- ¿Está deprimido/a ahora? | CU1: 10.- ¿Está usted separado/a, divorciado/a, viudo/a? | CV1: 11.- ¿Sabe si alguien de su familia ha intentado suicidarse alguna vez? | CW1: 12.- ¿Alguna vez se ha sentido tan enfadado/a que habría sido capaz de matar a alguien? | CX1: 13.- ¿Ha pensado alguna vez en suicidarse? | CY1: 14.- ¿Le ha comentado a alguien, en alguna ocasión, que quería suicidarse? | CZ1: 15.- ¿Ha intentado alguna vez quitarse la vida?
B2: FOLIO | C2: Nombre | D2: =LOOKUP($B$3,'Sabana por grupo'!$A$1:$A$99049,'Sabana por grupo'!D$1:D$99049) -> Diurno | E2: =LOOKUP($B$3,'Sabana por grupo'!$A$1:$A$99049,'Sabana por grupo'!E$1:E$99049) -> 20 | F2: =LOOKUP($B$3,'Sabana por grupo'!$A$1:$A$99049,'Sabana por grupo'!F$1:F$99049) -> 101 (1A) | G2: =LOOKUP($B$3,'Sabana por grupo'!$A$1:$A$99049,'Sabana por grupo'!G$1:G$99049) -> Mujer | H2: =LOOKUP($B$3,'Sabana por grupo'!$A$1:$A$99049,'Sabana por grupo'!H$1:H$99049) -> Abasolo | I2: =LOOKUP($B$3,'Sabana por grupo'!$A$1:$A$99049,'Sabana por grupo'!I$1:I$99049) -> No | J2: =LOOKUP($B$3,'Sabana por grupo'!$A$1:$A$99049,'Sabana por grupo'!J$1:J$99049) -> No | K2: =LOOKUP($B$3,'Sabana por grupo'!$A$1:$A$99049,'Sabana por grupo'!K$1:K$99049) -> Si | L2: =LOOKUP($B$3,'Sabana por grupo'!$A$1:$A$99049,'Sabana por grupo'!L$1:L$99049) -> No | M2: =LOOKUP($B$3,'Sabana por grupo'!$A$1:$A$99049,'Sabana por grupo'!M$1:M$99049) -> No | N2: =LOOKUP($B$3,'Sabana por grupo'!$A$1:$A$99049,'Sabana por grupo'!N$1:N$99049) -> No | O2: =LOOKUP($B$3,'Sabana por grupo'!$A$1:$A$99049,'Sabana por grupo'!O$1:O$99049) -> No | P2: =LOOKUP($B$3,'Sabana por grupo'!$A$1:$A$99049,'Sabana por grupo'!P$1:P$99049) -> No | Q2: =LOOKUP($B$3,'Sabana por grupo'!$A$1:$A$99049,'Sabana por grupo'!Q$1:Q$99049) -> No | R2: =LOOKUP($B$3,'Sabana por grupo'!$A$1:$A$99049,'Sabana por grupo'!R$1:R$99049) -> No | S2: =LOOKUP($B$3,'Sabana por grupo'!$A$1:$A$99049,'Sabana por grupo'!S$1:S$99049) -> No | T2: =LOOKUP($B$3,'Sabana por grupo'!$A$1:$A$99049,'Sabana por grupo'!T$1:T$99049) -> Si | U2: =LOOKUP($B$3,'Sabana por grupo'!$A$1:$A$99049,'Sabana por grupo'!U$1:U$99049) -> Si | V2: =LOOKUP($B$3,'Sabana por grupo'!$A$1:$A$99049,'Sabana por grupo'!V$1:V$99049) -> No | W2: =LOOKUP($B$3,'Sabana por grupo'!$A$1:$A$99049,'Sabana por grupo'!W$1:W$99049) -> No | X2: =LOOKUP($B$3,'Sabana por grupo'!$A$1:$A$99049,'Sabana por grupo'!X$1:X$99049) -> Si | Y2: =LOOKUP($B$3,'Sabana por grupo'!$A$1:$A$99049,'Sabana por grupo'!Y$1:Y$99049) -> No | Z2: =LOOKUP($B$3,'Sabana por grupo'!$A$1:$A$99049,'Sabana por grupo'!Z$1:Z$99049) -> Si | AA2: =LOOKUP($B$3,'Sabana por grupo'!$A$1:$A$99049,'Sabana por grupo'!AA$1:AA$99049) -> No | AB2: =LOOKUP($B$3,'Sabana por grupo'!$A$1:$A$99049,'Sabana por grupo'!AB$1:AB$99049) -> No | AC2: =LOOKUP($B$3,'Sabana por grupo'!$A$1:$A$99049,'Sabana por grupo'!AC$1:AC$99049) -> No | AD2: =LOOKUP($B$3,'Sabana por grupo'!$A$1:$A$99049,'Sabana por grupo'!AD$1:AD$99049) -> Si | AE2: =LOOKUP($B$3,'Sabana por grupo'!$A$1:$A$99049,'Sabana por grupo'!AE$1:AE$99049) -> No | AF2: =LOOKUP($B$3,'Sabana por grupo'!$A$1:$A$99049,'Sabana por grupo'!AF$1:AF$99049) -> No | AG2: =LOOKUP($B$3,'Sabana por grupo'!$A$1:$A$99049,'Sabana por grupo'!AG$1:AG$99049) -> No | AH2: =LOOKUP($B$3,'Sabana por grupo'!$A$1:$A$99049,'Sabana por grupo'!AH$1:AH$99049) -> Si | AI2: =LOOKUP($B$3,'Sabana por grupo'!$A$1:$A$99049,'Sabana por grupo'!AI$1:AI$99049) -> No | AJ2: =LOOKUP($B$3,'Sabana por grupo'!$A$1:$A$99049,'Sabana por grupo'!AJ$1:AJ$99049) -> No | AK2: =LOOKUP($B$3,'Sabana por grupo'!$A$1:$A$99049,'Sabana por grupo'!AK$1:AK$99049) -> No | AL2: =LOOKUP($B$3,'Sabana por grupo'!$A$1:$A$99049,'Sabana por grupo'!AL$1:AL$99049) -> No | AM2: =LOOKUP($B$3,'Sabana por grupo'!$A$1:$A$99049,'Sabana por grupo'!AM$1:AM$99049) -> No | AN2: =LOOKUP($B$3,'Sabana por grupo'!$A$1:$A$99049,'Sabana por grupo'!AN$1:AN$99049) -> Si | AO2: =LOOKUP($B$3,'Sabana por grupo'!$A$1:$A$99049,'Sabana por grupo'!AO$1:AO$99049) -> No | AP2: =LOOKUP($B$3,'Sabana por grupo'!$A$1:$A$99049,'Sabana por grupo'!AP$1:AP$99049) -> No | AQ2: =LOOKUP($B$3,'Sabana por grupo'!$A$1:$A$99049,'Sabana por grupo'!AQ$1:AQ$99049) -> No | AR2: =LOOKUP($B$3,'Sabana por grupo'!$A$1:$A$99049,'Sabana por grupo'!AR$1:AR$99049) -> Si | AS2: =LOOKUP($B$3,'Sabana por grupo'!$A$1:$A$99049,'Sabana por grupo'!AS$1:AS$99049) -> No | AT2: =LOOKUP($B$3,'Sabana por grupo'!$A$1:$A$99049,'Sabana por grupo'!AT$1:AT$99049) -> No | AU2: =LOOKUP($B$3,'Sabana por grupo'!$A$1:$A$99049,'Sabana por grupo'!AU$1:AU$99049) -> Si | AV2: =LOOKUP($B$3,'Sabana por grupo'!$A$1:$A$99049,'Sabana por grupo'!AV$1:AV$99049) -> No | AW2: =LOOKUP($B$3,'Sabana por grupo'!$A$1:$A$99049,'Sabana por grupo'!AW$1:AW$99049) -> No | AX2: =LOOKUP($B$3,'Sabana por grupo'!$A$1:$A$99049,'Sabana por grupo'!AX$1:AX$99049) -> No | AY2: =LOOKUP($B$3,'Sabana por grupo'!$A$1:$A$99049,'Sabana por grupo'!AY$1:AY$99049) -> No | AZ2: =LOOKUP($B$3,'Sabana por grupo'!$A$1:$A$99049,'Sabana por grupo'!AZ$1:AZ$99049) -> No | BA2: =LOOKUP($B$3,'Sabana por grupo'!$A$1:$A$99049,'Sabana por grupo'!BA$1:BA$99049) -> No | BB2: =LOOKUP($B$3,'Sabana por grupo'!$A$1:$A$99049,'Sabana por grupo'!BB$1:BB$99049) -> No | BC2: =LOOKUP($B$3,'Sabana por grupo'!$A$1:$A$99049,'Sabana por grupo'!BC$1:BC$99049) -> No | BD2: =LOOKUP($B$3,'Sabana por grupo'!$A$1:$A$99049,'Sabana por grupo'!BD$1:BD$99049) -> No | BE2: =LOOKUP($B$3,'Sabana por grupo'!$A$1:$A$99049,'Sabana por grupo'!BE$1:BE$99049) -> No | BF2: =LOOKUP($B$3,'Sabana por grupo'!$A$1:$A$99049,'Sabana por grupo'!BF$1:BF$99049) -> No | BG2: =LOOKUP($B$3,'Sabana por grupo'!$A$1:$A$99049,'Sabana por grupo'!BG$1:BG$99049) -> No | BH2: =LOOKUP($B$3,'Sabana por grupo'!$A$1:$A$99049,'Sabana por grupo'!BH$1:BH$99049) -> Si | BI2: =LOOKUP($B$3,'Sabana por grupo'!$A$1:$A$99049,'Sabana por grupo'!BI$1:BI$99049) -> No | BJ2: =LOOKUP($B$3,'Sabana por grupo'!$A$1:$A$99049,'Sabana por grupo'!BJ$1:BJ$99049) -> No | BK2: =LOOKUP($B$3,'Sabana por grupo'!$A$1:$A$99049,'Sabana por grupo'!BK$1:BK$99049) -> No | BL2: =LOOKUP($B$3,'Sabana por grupo'!$A$1:$A$99049,'Sabana por grupo'!BL$1:BL$99049) -> No | BM2: =LOOKUP($B$3,'Sabana por grupo'!$A$1:$A$99049,'Sabana por grupo'!BM$1:BM$99049) -> No | BN2: =LOOKUP($B$3,'Sabana por grupo'!$A$1:$A$99049,'Sabana por grupo'!BN$1:BN$99049) -> No | BO2: =LOOKUP($B$3,'Sabana por grupo'!$A$1:$A$99049,'Sabana por grupo'!BO$1:BO$99049) -> No | BP2: =LOOKUP($B$3,'Sabana por grupo'!$A$1:$A$99049,'Sabana por grupo'!BP$1:BP$99049) -> No | BQ2: =LOOKUP($B$3,'Sabana por grupo'!$A$1:$A$99049,'Sabana por grupo'!BQ$1:BQ$99049) -> No | BR2: =LOOKUP($B$3,'Sabana por grupo'!$A$1:$A$99049,'Sabana por grupo'!BR$1:BR$99049) -> No | BS2: =LOOKUP($B$3,'Sabana por grupo'!$A$1:$A$99049,'Sabana por grupo'!BS$1:BS$99049) -> No | BT2: =LOOKUP($B$3,'Sabana por grupo'!$A$1:$A$99049,'Sabana por grupo'!BT$1:BT$99049) -> No | BU2: =LOOKUP($B$3,'Sabana por grupo'!$A$1:$A$99049,'Sabana por grupo'!BU$1:BU$99049) -> No | BV2: =LOOKUP($B$3,'Sabana por grupo'!$A$1:$A$99049,'Sabana por grupo'!BV$1:BV$99049) -> No | BW2: =LOOKUP($B$3,'Sabana por grupo'!$A$1:$A$99049,'Sabana por grupo'!BW$1:BW$99049) -> No | BX2: =LOOKUP($B$3,'Sabana por grupo'!$A$1:$A$99049,'Sabana por grupo'!BX$1:BX$99049) -> No | BY2: =LOOKUP($B$3,'Sabana por grupo'!$A$1:$A$99049,'Sabana por grupo'!BY$1:BY$99049) -> Si | BZ2: =LOOKUP($B$3,'Sabana por grupo'!$A$1:$A$99049,'Sabana por grupo'!BZ$1:BZ$99049) -> Si | CA2: =LOOKUP($B$3,'Sabana por grupo'!$A$1:$A$99049,'Sabana por grupo'!CA$1:CA$99049) -> Si | CB2: =LOOKUP($B$3,'Sabana por grupo'!$A$1:$A$99049,'Sabana por grupo'!CB$1:CB$99049) -> Si | CC2: =LOOKUP($B$3,'Sabana por grupo'!$A$1:$A$99049,'Sabana por grupo'!CC$1:CC$99049) -> No | CD2: =LOOKUP($B$3,'Sabana por grupo'!$A$1:$A$99049,'Sabana por grupo'!CD$1:CD$99049) -> No | CE2: =LOOKUP($B$3,'Sabana por grupo'!$A$1:$A$99049,'Sabana por grupo'!CE$1:CE$99049) -> No | CF2: =LOOKUP($B$3,'Sabana por grupo'!$A$1:$A$99049,'Sabana por grupo'!CF$1:CF$99049) -> No | CG2: =LOOKUP($B$3,'Sabana por grupo'!$A$1:$A$99049,'Sabana por grupo'!CG$1:CG$99049) -> Si | CH2: =LOOKUP($B$3,'Sabana por grupo'!$A$1:$A$99049,'Sabana por grupo'!CH$1:CH$99049) -> No | CI2: =LOOKUP($B$3,'Sabana por grupo'!$A$1:$A$99049,'Sabana por grupo'!CI$1:CI$99049) -> No | CJ2: =LOOKUP($B$3,'Sabana por grupo'!$A$1:$A$99049,'Sabana por grupo'!CJ$1:CJ$99049) -> No | CK2: =LOOKUP($B$3,'Sabana por grupo'!$A$1:$A$99049,'Sabana por grupo'!CK$1:CK$99049) -> No | CL2: =LOOKUP($B$3,'Sabana por grupo'!$A$1:$A$99049,'Sabana por grupo'!CL$1:CL$99049) -> No | CM2: =LOOKUP($B$3,'Sabana por grupo'!$A$1:$A$99049,'Sabana por grupo'!CM$1:CM$99049) -> No | CN2: =LOOKUP($B$3,'Sabana por grupo'!$A$1:$A$99049,'Sabana por grupo'!CN$1:CN$99049) -> No | CO2: =LOOKUP($B$3,'Sabana por grupo'!$A$1:$A$99049,'Sabana por grupo'!CO$1:CO$99049) -> No | CP2: =LOOKUP($B$3,'Sabana por grupo'!$A$1:$A$99049,'Sabana por grupo'!CP$1:CP$99049) -> No | CQ2: =LOOKUP($B$3,'Sabana por grupo'!$A$1:$A$99049,'Sabana por grupo'!CQ$1:CQ$99049) -> No | CR2: =LOOKUP($B$3,'Sabana por grupo'!$A$1:$A$99049,'Sabana por grupo'!CR$1:CR$99049) -> No | CS2: =LOOKUP($B$3,'Sabana por grupo'!$A$1:$A$99049,'Sabana por grupo'!CS$1:CS$99049) -> Si | CT2: =LOOKUP($B$3,'Sabana por grupo'!$A$1:$A$99049,'Sabana por grupo'!CT$1:CT$99049) -> No | CU2: =LOOKUP($B$3,'Sabana por grupo'!$A$1:$A$99049,'Sabana por grupo'!CU$1:CU$99049) -> No | CV2: =LOOKUP($B$3,'Sabana por grupo'!$A$1:$A$99049,'Sabana por grupo'!CV$1:CV$99049) -> No | CW2: =LOOKUP($B$3,'Sabana por grupo'!$A$1:$A$99049,'Sabana por grupo'!CW$1:CW$99049) -> No | CX2: =LOOKUP($B$3,'Sabana por grupo'!$A$1:$A$99049,'Sabana por grupo'!CX$1:CX$99049) -> No | CY2: =LOOKUP($B$3,'Sabana por grupo'!$A$1:$A$99049,'Sabana por grupo'!CY$1:CY$99049) -> No | CZ2: =LOOKUP($B$3,'Sabana por grupo'!$A$1:$A$99049,'Sabana por grupo'!CZ$1:CZ$99049) -> No
B3: ='Reporte individual'!H9 -> 10 | C3: =LOOKUP($B$3,'Sabana por grupo'!$A$1:$A$99049,'Sabana por grupo'!C$1:C$99049) -> Cristina Cruz Escalera
B6: SI | C6: NO | E6: SI | F6: NO | G6: SALUD | K6: SI | L6: NO | M6: R
A7: 1 | B7: =IF($H$2="Si",1,0) -> 0 | C7: =IF($H$2="No",1,0) -> 0 | D7: 55 | E7: =IF($BJ$2="Si",1,0) -> 0 | F7: =IF($BJ$2="No",1,0) -> 1 | H7: SI | I7: NO | J7: 12 | K7: =IF($S$2="Si",1,0) -> 0 | L7: =IF($S$2="No",1,0) -> 1 | M7: NR
A8: 2 | B8: =IF($I$2="Si",1,0) -> 0 | C8: =IF($I$2="No",1,0) -> 1 | D8: 56 | E8: =IF($BK$2="Si",1,0) -> 0 | F8: =IF($BK$2="No",1,0) -> 1 | G8: 5 | H8: =B11 -> 0 | I8: =C11 -> 1 | J8: 13 | K8: =IF($T$2="Si",1,0) -> 1 | L8: =IF($T$2="No",1,0) -> 0 | M8: TOTAL | P8: SI | Q8: NO
A9: 3 | B9: =IF($J$2="Si",1,0) -> 0 | C9: =IF($J$2="No",1,0) -> 1 | D9: 57 | E9: =IF($BL$2="Si",1,0) -> 0 | F9: =IF($BL$2="No",1,0) -> 1 | G9: 6 | H9: =B12 -> 0 | I9: =C12 -> 1 | J9: 18 | K9: =IF($Y$2="Si",1,0) -> 0 | L9: =IF($Y$2="No",1,0) -> 1 | M9: T3 | P9: =K19 -> 3 | Q9: =L19 -> 9
A10: 4 | B10: =IF($K$2="Si",1,0) -> 1 | C10: =IF($K$2="No",1,0) -> 0 | D10: 58 | E10: =IF($BM$2="Si",1,0) -> 0 | F10: =IF($BM$2="No",1,0) -> 1 | G10: 8 | H10: =B14 -> 0 | I10: =C14 -> 1 | J10: 20 | K10: =IF($AA$2="Si",1,0) -> 0 | L10: =IF($AA$2="No",1,0) -> 1 | M10: TOTAL | P10: SI | Q10: NO
A11: 5 | B11: =IF($L$2="Si",1,0) -> 0 | C11: =IF($L$2="No",1,0) -> 1 | D11: 59 | E11: =IF($BN$2="Si",1,0) -> 0 | F11: =IF($BN$2="No",1,0) -> 1 | G11: 10 | H11: =B16 -> 0 | I11: =C16 -> 1 | J11: 22 | K11: =IF($AC$2="Si",1,0) -> 0 | L11: =IF($AC$2="No",1,0) -> 1 | M11: TI+T2 | P11: =(B52+E31) -> 13 | Q11: =(C52+F31) -> 54
A12: 6 | B12: =IF($M$2="Si",1,0) -> 0 | C12: =IF($M$2="No",1,0) -> 1 | D12: 60 | E12: =IF($BO$2="Si",1,0) -> 0 | F12: =IF($BO$2="No",1,0) -> 1 | G12: 15 | H12: =B19 -> 0 | I12: =C19 -> 1 | J12: 26 | K12: =IF($Y$2="Si",1,0) -> 0 | L12: =IF($Y$2="No",1,0) -> 1 | M12: SI=T1+T2 | O12: NO=T3 | Q12: TOTAL
A13: 7 | B13: =IF($N$2="Si",1,0) -> 0 | C13: =IF($N$2="No",1,0) -> 1 | D13: 61 | E13: =IF($BP$2="Si",1,0) -> 0 | F13: =IF($BP$2="No",1,0) -> 1 | G13: 23 | H13: =B24 -> 1 | I13: =C24 -> 0 | J13: 32 | K13: =IF($AM$2="Si",1,0) -> 0 | L13: =IF($AM$2="No",1,0) -> 1 | M13: =P11 -> 13 | O13: =Q9 -> 9 | Q13: =(M13+O13) -> 22
A14: 8 | B14: =IF($O$2="Si",1,0) -> 0 | C14: =IF($O$2="No",1,0) -> 1 | D14: 62 | E14: =IF($BQ$2="Si",1,0) -> 0 | F14: =IF($BQ$2="No",1,0) -> 1 | G14: 28 | H14: =B28 -> 0 | I14: =C28 -> 1 | J14: 39 | K14: =IF($AT$2="Si",1,0) -> 0 | L14: =IF($AT$2="No",1,0) -> 1 | M14: No riesgo | N14: antes de | O14: 23
A15: 9 | B15: =IF($P$2="Si",1,0) -> 0 | C15: =IF($P$2="No",1,0) -> 1 | D15: 63 | E15: =IF($BR$2="Si",1,0) -> 0 | F15: =IF($BR$2="No",1,0) -> 1 | G15: 40 | H15: =B38 -> 1 | I15: =C38 -> 0 | J15: 52 | K15: =IF($BG$2="Si",1,0) -> 0 | L15: =IF($BG$2="No",1,0) -> 1 | M15: Riesgo | N15: despues de | O15: 23
A16: 10 | B16: =IF($Q$2="Si",1,0) -> 0 | C16: =IF($Q$2="No",1,0) -> 1 | D16: 64 | E16: =IF($BS$2="Si",1,0) -> 0 | F16: =IF($BS$2="No",1,0) -> 1 | G16: 43 | H16: =B41 -> 0 | I16: =C41 -> 1 | J16: 69 | K16: =IF($BX$2="Si",1,0) -> 0 | L16: =IF($BX$2="No",1,0) -> 1 | M16: Riesgo Alto | N16: Despues de | O16: 52
A17: 11 | B17: =IF($R$2="Si",1,0) -> 0 | C17: =IF($R$2="No",1,0) -> 1 | D17: 65 | E17: =IF($BT$2="Si",1,0) -> 0 | F17: =IF($BT$2="No",1,0) -> 1 | G17: 55 | H17: =E7 -> 0 | I17: =F7 -> 1 | J17: 70 | K17: =IF($BY$2="Si",1,0) -> 1 | L17: =IF($BY$2="No",1,0) -> 0 | M17: Riesgo suicida
A18: 14 | B18: =IF($U$2="Si",1,0) -> 1 | C18: =IF($U$2="No",1,0) -> 0 | D18: 66 | E18: =IF($BU$2="Si",1,0) -> 0 | F18: =IF($BU$2="No",1,0) -> 1 | G18: 60 | H18: =E12 -> 0 | I18: =F12 -> 1 | J18: 71 | K18: =IF($BZ$2="Si",1,0) -> 1 | L18: =IF($BZ$2="No",1,0) -> 0 | M18: # | N18: Si | O18: No
A19: 15 | B19: =IF($V$2="Si",1,0) -> 0 | C19: =IF($V$2="No",1,0) -> 1 | D19: 67 | E19: =IF($BV$2="Si",1,0) -> 0 | F19: =IF($BV$2="No",1,0) -> 1 | G19: 63 | H19: =E15 -> 0 | I19: =F15 -> 1 | J19: T3 | K19: =SUM(K7:K18) -> 3 | L19: =SUM(L7:L18) -> 9 | M19: 1 | N19: =IF($CL$2="Si",1,0) -> 0 | O19: =IF($CL$2="No",1,0) -> 1
A20: 16 | B20: =IF($W$2="Si",1,0) -> 0 | C20: =IF($W$2="No",1,0) -> 1 | D20: 68 | E20: =IF($BW$2="Si",1,0) -> 0 | F20: =IF($BW$2="No",1,0) -> 1 | G20: 66 | H20: =E18 -> 0 | I20: =F18 -> 1 | J20: CONDUCTA | M20: 2 | N20: =IF($CM$2="Si",1,0) -> 0 | O20: =IF($CM$2="No",1,0) -> 1
A21: 17 | B21: =IF($X$2="Si",1,0) -> 1 | C21: =IF($X$2="No",1,0) -> 0 | D21: 72 | E21: =IF($CA$2="Si",1,0) -> 1 | F21: =IF($CA$2="No",1,0) -> 0 | G21: 75 | H21: =E24 -> 0 | I21: =F24 -> 1 | K21: SI | L21: NO | M21: 3 | N21: =IF($CN$2="Si",1,0) -> 0 | O21: =IF($CN$2="No",1,0) -> 1
A22: 19 | B22: =IF($Z$2="Si",1,0) -> 1 | C22: =IF($Z$2="No",1,0) -> 0 | D22: 73 | E22: =IF($CB$2="Si",1,0) -> 1 | F22: =IF($CB$2="No",1,0) -> 0 | G22: 76 | H22: =E25 -> 0 | I22: =F25 -> 1 | J22: 1 | K22: =B7 -> 0 | L22: =C7 -> 0 | M22: 4 | N22: =IF($CO$2="Si",1,0) -> 0 | O22: =IF($CO$2="No",1,0) -> 1
A23: 21 | B23: =IF($AB$2="Si",1,0) -> 0 | C23: =IF($AB$2="No",1,0) -> 1 | D23: 74 | E23: =IF($CC$2="Si",1,0) -> 0 | F23: =IF($CC$2="No",1,0) -> 1 | G23: 80 | H23: =E29 -> 0 | I23: =F29 -> 0 | J23: 9 | K23: =B15 -> 0 | L23: =C15 -> 1 | M23: 5 | N23: =IF($CP$2="Si",1,0) -> 0 | O23: =IF($CP$2="No",1,0) -> 1
A24: 23 | B24: =IF($AD$2="Si",1,0) -> 1 | C24: =IF($AD$2="No",1,0) -> 0 | D24: 75 | E24: =IF($CD$2="Si",1,0) -> 0 | F24: =IF($CD$2="No",1,0) -> 1 | G24: T | H24: =SUM(H8:H23) -> 2 | I24: =SUM(I8:I23) -> 13 | J24: 11 | K24: =B17 -> 0 | L24: =C17 -> 1 | M24: 6 | N24: =IF($CQ$2="Si",1,0) -> 0 | O24: =IF($CQ$2="No",1,0) -> 1
A25: 24 | B25: =IF($AE$2="Si",1,0) -> 0 | C25: =IF($AE$2="No",1,0) -> 1 | D25: 76 | E25: =IF($CE$2="Si",1,0) -> 0 | F25: =IF($CE$2="No",1,0) -> 1 | G25: N. EDUCAT | J25: 24 | K25: =B25 -> 0 | L25: =C25 -> 1 | M25: 7 | N25: =IF($CR$2="Si",1,0) -> 0 | O25: =IF($CR$2="No",1,0) -> 1
A26: 25 | B26: =IF($AF$2="Si",1,0) -> 0 | C26: =IF($AF$2="No",1,0) -> 1 | D26: 77 | E26: =IF($CF$2="Si",1,0) -> 0 | F26: =IF($CF$2="No",1,0) -> 1 | H26: SI | I26: NO | J26: 30 | K26: =B30 -> 0 | L26: =C30 -> 1 | M26: 8 | N26: =IF($CS$2="Si",1,0) -> 1 | O26: =IF($CS$2="No",1,0) -> 0
A27: 27 | B27: =IF($AH$2="Si",1,0) -> 1 | C27: =IF($AH$2="No",1,0) -> 0 | D27: 78 | E27: =IF($CG$2="Si",1,0) -> 1 | F27: =IF($CG$2="No",1,0) -> 0 | G27: 7 | H27: =B13 -> 0 | I27: =C13 -> 1 | J27: 31 | K27: =B31 -> 0 | L27: =C31 -> 1 | M27: 9 | N27: =IF($CT$2="Si",1,0) -> 0 | O27: =IF($CT$2="No",1,0) -> 1
A28: 28 | B28: =IF($AI$2="Si",1,0) -> 0 | C28: =IF($AI$2="No",1,0) -> 1 | D28: 79 | E28: =IF($CH$2="Si",1,0) -> 0 | F28: =IF($CH$2="No",1,0) -> 1 | G28: 8 | H28: =B14 -> 0 | I28: =C14 -> 1 | J28: 35 | K28: =B34 -> 0 | L28: =C34 -> 1 | M28: 10 | N28: =IF($CU$2="Si",1,0) -> 0 | O28: =IF($CU$2="No",1,0) -> 1
A29: 29 | B29: =IF($AJ$2="Si",1,0) -> 0 | C29: =IF($AJ$2="No",1,0) -> 1 | D29: 80 | E29: =IF($CI$2="Si",1,0) -> 0 | F29: =IF($NO$2="Si",1,0) -> 0 | G29: 12 | H29: =K7 -> 0 | I29: =L7 -> 1 | J29: 37 | K29: =B36 -> 1 | L29: =C36 -> 0 | M29: 11 | N29: =IF($CV$2="Si",1,0) -> 0 | O29: =IF($CV$2="No",1,0) -> 1
A30: 30 | B30: =IF($AK$2="Si",1,0) -> 0 | C30: =IF($AK$2="No",1,0) -> 1 | D30: 81 | E30: =IF($CJ$2="Si",1,0) -> 0 | F30: =IF($CJ$2="No",1,0) -> 1 | G30: 15 | H30: =B19 -> 0 | I30: =C19 -> 1 | J30: 49 | K30: =B47 -> 0 | L30: =C47 -> 1 | M30: 12 | N30: =IF($CW$2="Si",1,0) -> 0 | O30: =IF($CW$2="No",1,0) -> 1
A31: 31 | B31: =IF($AL$2="Si",1,0) -> 0 | C31: =IF($AL$2="No",1,0) -> 1 | D31: T2 | E31: =SUM(E7:E30) -> 3 | F31: =SUM(F7:F30) -> 20 | G31: 18 | H31: =K9 -> 0 | I31: =L9 -> 1 | J31: 50 | K31: =B48 -> 0 | L31: =C48 -> 1 | M31: 13 | N31: =IF($CX$2="Si",1,0) -> 0 | O31: =IF($CX$2="No",1,0) -> 1
A32: 33 | B32: =IF($AN$2="Si",1,0) -> 1 | C32: =IF($AN$2="No",1,0) -> 0 | D32: SUSTANCIAS | G32: 26 | H32: =K12 -> 0 | I32: =L12 -> 1 | J32: 53 | K32: =B50 -> 1 | L32: =C50 -> 0 | M32: 14 | N32: =IF($CL$2="Si",1,0) -> 0 | O32: =IF($CL$2="No",1,0) -> 1
A33: 34 | B33: =IF($AO$2="Si",1,0) -> 0 | C33: =IF($AO$2="No",1,0) -> 1 | E33: SI | F33: NO | G33: 34 | H33: =B33 -> 0 | I33: =C33 -> 1 | J33: 59 | K33: =E11 -> 0 | L33: =F11 -> 1 | M33: 15 | N33: 0 | O33: =IF($CL$2="No",1,0) -> 1
A34: 35 | B34: =IF($AP$2="Si",1,0) -> 0 | C34: =IF($AP$2="No",1,0) -> 1 | D34: 2 | E34: =B8 -> 0 | F34: =C8 -> 1 | G34: 40 | H34: =B38 -> 1 | I34: =C38 -> 0 | J34: 64 | K34: =E16 -> 0 | L34: =F16 -> 1 | M34: T | N34: =SUM(N19:N33) -> 1 | O34: =SUM(O19:O33) -> 14
A35: 36 | B35: =IF($AQ$2="Si",1,0) -> 0 | C35: =IF($AQ$2="No",1,0) -> 1 | D35: 17 | E35: =B21 -> 1 | F35: =C21 -> 0 | G35: 42 | H35: =B40 -> 0 | I35: =C40 -> 1 | J35: 81 | K35: =E30 -> 0 | L35: =F30 -> 1 | M35: Percentil | N35: =(N34*100%)/$M$33 -> 0.06666666667 | O35: =(O34*100%)/$M$33 -> 0.9333333333
A36: 37 | B36: =IF($AR$2="Si",1,0) -> 1 | C36: =IF($AR$2="No",1,0) -> 0 | D36: 21 | E36: =B23 -> 0 | F36: =C23 -> 1 | G36: 61 | H36: =E13 -> 0 | I36: =F13 -> 1 | J36: T | K36: =SUM(K22:K35) -> 2 | L36: =SUM(L22:L35) -> 11 | M36: Rasgos de Riesgo
A37: 38 | B37: =IF($AS$2="Si",1,0) -> 0 | C37: =IF($AS$2="No",1,0) -> 1 | D37: 25 | E37: =B26 -> 0 | F37: =C26 -> 1 | G37: 66 | H37: =E18 -> 0 | I37: =F18 -> 1 | J37: FAMILIA | S37: Suma | T37: Percentil
A38: 40 | B38: =IF($AU$2="Si",1,0) -> 1 | C38: =IF($AU$2="No",1,0) -> 0 | D38: 33 | E38: =B32 -> 1 | F38: =C32 -> 0 | G38: 69 | H38: =K16 -> 0 | I38: =L16 -> 1 | K38: SI | L38: NO | M38: Sentimientos de inutilidad | Q38: R3 | R38: =N21 -> 0 | S38: =SUM(R38:R41) -> 1 | T38: =(S38*100%)/4 -> 0.25
A39: 41 | B39: =IF($AV$2="Si",1,0) -> 0 | C39: =IF($AV$2="No",1,0) -> 1 | D39: 38 | E39: =B37 -> 0 | F39: =C37 -> 1 | G39: 72 | H39: =E21 -> 1 | I39: =F21 -> 0 | J39: 4 | K39: =B10 -> 1 | L39: =C10 -> 0 | Q39: R6 | R39: =N24 -> 0
A40: 42 | B40: =IF($AW$2="Si",1,0) -> 0 | C40: =IF($AW$2="No",1,0) -> 1 | D40: 41 | E40: =B39 -> 0 | F40: =C39 -> 1 | G40: 79 | H40: =E28 -> 0 | I40: =F28 -> 1 | J40: 14 | K40: =B18 -> 1 | L40: =C18 -> 0 | Q40: R8 | R40: =N26 -> 1
A41: 43 | B41: =IF($AX$2="Si",1,0) -> 0 | C41: =IF($AX$2="No",1,0) -> 1 | D41: 46 | E41: =B44 -> 0 | F41: 1 | G41: 80 | H41: =E29 -> 0 | I41: =F29 -> 0 | J41: 20 | K41: =K10 -> 0 | L41: =L10 -> 1 | Q41: R12 | R41: =N30 -> 0
A42: 44 | B42: =IF($AY$2="Si",1,0) -> 0 | C42: =IF($AY$2="No",1,0) -> 1 | D42: 47 | E42: 0 | F42: 1 | G42: T | H42: =(H27+H28+I29+H30+I31+I32+H33+H34+H35+H36+H37+I38+H39+H40+H41) -> 6 | I42: =SUM(I27:I41) -> 12 | J42: 22 | K42: =K11 -> 0 | L42: =L11 -> 1 | M42: Ideación suicida | Q42: R2 | R42: =N20 -> 0 | S42: =SUM(R42:R44) -> 0 | T42: =(S42*100%)/3 -> 0
A43: 45 | B43: =IF($AZ$2="Si",1,0) -> 0 | C43: =IF($AZ$2="No",1,0) -> 1 | D43: 48 | E43: 0 | F43: 1 | G43: AMIGOS | J43: 32 | K43: =K13 -> 0 | L43: =L13 -> 1 | Q43: R13 | R43: =N31 -> 0
A44: 46 | B44: =IF($BA$2="Si",1,0) -> 0 | C44: =IF($BA$2="No",1,0) -> 1 | D44: 54 | E44: =B51 -> 0 | F44: =C51 -> 1 | H44: SI | I44: NO | J44: 39 | K44: =K14 -> 0 | L44: =L14 -> 1 | Q44: R14 | R44: =N32 -> 0
A45: 47 | B45: =IF($BB$2="Si",1,0) -> 0 | C45: =IF($BB$2="No",1,0) -> 1 | D45: 56 | E45: =E8 -> 0 | F45: 1 | G45: 3 | H45: =B9 -> 0 | I45: =C9 -> 1 | J45: 45 | K45: =B43 -> 0 | L45: =C43 -> 1 | M45: Desesperanza | Q45: R5 | R45: =N23 -> 0 | S45: =SUM(R45:R47) -> 0 | T45: =(S45*100%)/3 -> 0
A46: 48 | B46: =IF($BC$2="Si",1,0) -> 0 | C46: =IF($BC$2="No",1,0) -> 1 | D46: 57 | E46: 0 | F46: 1 | G46: 13 | H46: =K8 -> 1 | I46: =L8 -> 0 | J46: 52 | K46: =K15 -> 0 | L46: =L15 -> 1 | Q46: R7 | R46: =N25 -> 0
A47: 49 | B47: =IF($BD$2="Si",1,0) -> 0 | C47: =IF($BD$2="No",1,0) -> 1 | D47: 58 | E47: 0 | F47: 1 | G47: 19 | H47: =B22 -> 1 | I47: =C22 -> 0 | J47: 70 | K47: =K17 -> 1 | L47: =L17 -> 0 | Q47: R9 | R47: =N27 -> 0
A48: 50 | B48: =IF($BE$2="Si",1,0) -> 0 | C48: =IF($BE$2="No",1,0) -> 1 | D48: 62 | E48: =E14 -> 0 | F48: =F14 -> 1 | G48: 29 | H48: =B29 -> 0 | I48: =C29 -> 1 | J48: 71 | K48: =K18 -> 1 | L48: =L18 -> 0 | M48: Factores sociales | Q48: R1 | R48: =N19 -> 0 | S48: =SUM(R48:R52) -> 0 | T48: =(S48*100%)/5 -> 0
A49: 51 | B49: =IF($BF$2="Si",1,0) -> 0 | C49: =IF($BF$2="No",1,0) -> 1 | D49: 65 | E49: =E17 -> 0 | F49: =F17 -> 1 | G49: 67 | H49: =E19 -> 0 | I49: =F19 -> 1 | J49: T | K49: =(K39+K40+L41+L42+L43+L44+K45+L46+L47+L48) -> 7 | L49: =SUM(L39:L48) -> 6 | Q49: R4 | R49: =N22 -> 0
A50: 53 | B50: =IF($BH$2="Si",1,0) -> 1 | C50: =IF($BH$2="No",1,0) -> 0 | D50: 68 | E50: =E20 -> 0 | F50: =F20 -> 1 | G50: 73 | H50: =E22 -> 1 | I50: =F22 -> 0 | J50: LABORAL | Q50: R10 | R50: =N28 -> 0
A51: 54 | B51: =IF($BI$2="Si",1,0) -> 0 | C51: =IF($BI$2="No",1,0) -> 1 | D51: T | E51: =SUM(E34:E50) -> 2 | F51: =SUM(F34:F50) -> 15 | G51: 77 | H51: =E26 -> 0 | I51: =F26 -> 1 | K51: SI | L51: NO | Q51: R11 | R51: =N29 -> 0
A52: T1 | B52: =SUM(B7:B51) -> 10 | C52: =SUM(C7:C51) -> 34 | G52: T | H52: =(H45+I46+H47+H48+H49+H50+H51) -> 2 | I52: =SUM(I45:I51) -> 4 | J52: 16 | K52: =B20 -> 0 | L52: =C20 -> 1 | Q52: R15 | R52: =N33 -> 0
J53: 27 | K53: =B27 -> 1 | L53: =C27 -> 0
J54: 36 | K54: =B35 -> 0 | L54: =C35 -> 1
J55: 44 | K55: =B42 -> 0 | L55: =C42 -> 1
J56: 51 | K56: =B49 -> 0 | L56: =C49 -> 1
J57: 78 | K57: =E27 -> 1 | L57: =F27 -> 0
J58: T | K58: =SUM(K52:K57) -> 2 | L58: =SUM(L52:L57) -> 4

Sheet Reporte individual
C3: Reporte de tamizaje
A7: Nombre: | B7: ='Datos individuales'!$C$3 -> Cristina Cruz Escalera | E7: Edad: | F7: ='Datos individuales'!$F$2 -> 101 (1A) | G7: Turno: | H7: ='Datos individuales'!$D$2 -> Diurno
A8: Plantel: | B8: ='Datos individuales'!H2 -> Abasolo | E8: Grado y grupo: | F8: ='Datos individuales'!$E$2 -> 20 | G8: Puntuacion: | H8: ='Datos individuales'!$Q$13 -> 22
G9: Folio: | H9: 10
B11: =IF($H$8<23,"Riesgo Menor",IF($H$8<50,"Riesgo Probable","Atencion de Prioridad")) -> Riesgo Menor
B15: Áreas de riesgo
A18: Nota: Cualquier puntaje a partir de 1 en el area de Substancias corresponde a un RIESGO ALTO | B18: Área | C18: Puntaje | D18: Perc | E18: Ideación autolítica
B19: Substancias | C19: ='Datos individuales'!$E$51 -> 2 | D19: =(C19*100)/17 -> 11.76470588 | E19: Dimension | H19: Percentil
B20: Salud | C20: ='Datos individuales'!$H$24 -> 2 | D20: =(C20*100)/16 -> 12.5 | E20: Sentimientos de inutilidad | H20: ='Datos individuales'!T38 -> 0.25
B21: N. Educativo | C21: ='Datos individuales'!$H$42 -> 6 | D21: =(C21*100)/15 -> 40 | E21: Ideación autolítica | H21: ='Datos individuales'!T42 -> 0
B22: Amigos | C22: ='Datos individuales'!$H$52 -> 2 | D22: =(C22*100)/7 -> 28.57142857 | E22: Desesperanza | H22: ='Datos individuales'!T45 -> 0
B23: Conducta | C23: ='Datos individuales'!$K$36 -> 2 | D23: =(C23*100)/14 -> 14.28571429 | E23: Factores sociales | H23: ='Datos individuales'!T48 -> 0
B24: Familia | C24: ='Datos individuales'!$K$49 -> 7 | D24: =(C24*100)/10 -> 70 | E24: Ideacion autolítica general | H24: ='Datos individuales'!N35 -> 0.06666666667
B25: Laboral | C25: ='Datos individuales'!$K$58 -> 2 | D25: =(C25*100)/6 -> 33.33333333 | E25: Riesgo de ideacion autolítica | H25: =IF(AND(H24>0.01,H24<0.3),"Sin Riesgo",IF(AND(H24>0.3,H24<0.5),"Riesgo bajo",IF(AND(H24>0.5,H24<0.8),"Riesgo medio","Riesgo alto"))) -> Sin Riesgo
A45: Observaciones:

Sheet Datos generales de planteles (hidden)
A1: Plantel | B1: Puntuacion | C1: Puntuación
A2: Zacatecas | B2: =ABS(MID(C2,1,2)) -> 9 | C2: 9 | E2: Planteles | F2: Aplicaciones | G2: Promedio de puntuación | H2: Limite promedio de puntuación | I2: Limite Critico de puntuación
A3: Zacatecas | B3: 19 | C3: 19 / 81 | E3: Zacatecas | F3: =COUNTIF($A$2:$A$796,"Zacatecas") -> 39 | G3: =AVERAGEIFS($B$2:$B$796,$A$2:$A$796,"Zacatecas") -> 19.8974359 | H3: 20 | I3: 50
A4: Zacatecas | B4: 24 | C4: 24 / 81 | E4: Silao 1 | F4: =COUNTIF($A$2:$A$796,"Silao 1") -> 17 | G4: =AVERAGEIFS($B$2:$B$796,$A$2:$A$796,"Silao 1") -> 15.29411765 | H4: 20 | I4: 50
A5: Zacatecas | B5: 8 | C5: 8 | E5: Salamanca | F5: =COUNTIF($A$2:$A$796,"Salamanca") -> 47 | G5: =AVERAGEIFS($B$2:$B$796,$A$2:$A$796,"Salamanca") -> 19.57446809 | H5: 20 | I5: 50
A6: Zacatecas | B6: 32 | C6: 32 / 81 | E6: León - Madero 801 | F6: =COUNTIF($A$2:$A$796,"León - Madero 801") -> 38 | G6: =AVERAGEIFS($B$2:$B$796,$A$2:$A$796,"León - Madero 801") -> 21.71052632 | H6: 20 | I6: 50
A7: Zacatecas | B7: 27 | C7: 27 / 81 | E7: León - Firenze | F7: =COUNTIF($A$2:$A$796,"León - Firenze") -> 35 | G7: =AVERAGEIFS($B$2:$B$796,$A$2:$A$796,"León - Firenze") -> 18.77142857 | H7: 20 | I7: 50
A8: Zacatecas | B8: 28 | C8: 28 / 81 | E8: Irapuato - Fiesta | F8: =COUNTIF($A$2:$A$796,"Irapuato - Fiesta") -> 14 | G8: =AVERAGEIFS($B$2:$B$796,$A$2:$A$796,"Irapuato - Fiesta") -> 19.21428571 | H8: 20 | I8: 50
A9: Zacatecas | B9: 38 | C9: 38 / 81 | E9: Celaya - Firenze | F9: =COUNTIF($A$2:$A$796,"Celaya - Firenze") -> 17 | G9: =AVERAGEIFS($B$2:$B$796,$A$2:$A$796,"Celaya - Firenze") -> 25.70588235 | H9: 20 | I9: 50
A10: Zacatecas | B10: 39 | C10: 39 / 81 | E10: Aguascalientes | F10: =COUNTIF($A$2:$A$796,"Aguascalientes") -> 12 | G10: =AVERAGEIFS($B$2:$B$796,$A$2:$A$796,"Aguascalientes") -> 26.91666667 | H10: 20 | I10: 50
A11: Zacatecas | B11: 34 | C11: 34 / 81 | E11: Champs Elysees León | F11: =COUNTIF($A$2:$A$796,"Champs Elysees León") -> 29 | G11: =AVERAGEIFS($B$2:$B$796,$A$2:$A$796,"Champs Elysees León") -> 16.31034483 | H11: 20 | I11: 50
A12: Zacatecas | B12: 36 | C12: 36 / 81 | E12: León - Pino Suárez (Motolinía) | F12: =COUNTIF($A$2:$A$796,"León - Pino Suárez (Motolinía)") -> 84 | G12: =AVERAGEIFS($B$2:$B$796,$A$2:$A$796,"León - Pino Suárez (Motolinía)") -> 19.54761905 | H12: 20 | I12: 50
A13: Zacatecas | B13: 31 | C13: 31 / 81 | E13: León - Juárez 404 | F13: =COUNTIF($A$2:$A$796,"León - Juárez 404") -> 21 | G13: =AVERAGEIFS($B$2:$B$796,$A$2:$A$796,"León - Juárez 404") -> 19.85714286 | H13: 20 | I13: 50
A14: Zacatecas | B14: 38 | C14: 38 / 81 | E14: León - Francisco Z. Mena | F14: =COUNTIF($A$2:$A$796,"León - Francisco Z. Mena") -> 28 | G14: =AVERAGEIFS($B$2:$B$796,$A$2:$A$796,"León - Francisco Z. Mena") -> 19.42857143 | H14: 20 | I14: 50
A15: Zacatecas | B15: 22 | C15: 22 / 81 | E15: León - Díaz Mirón | F15: =COUNTIF($A$2:$A$796,"León - Díaz Mirón") -> 170 | G15: =AVERAGEIFS($B$2:$B$796,$A$2:$A$796,"León - Díaz Mirón") -> 19.51176471 | H15: 20 | I15: 50
A16: Zacatecas | B16: 3 | C16: 3 | E16: Saltillo 1 | F16: =COUNTIF($A$2:$A$796,"Saltillo 1") -> 121 | G16: =AVERAGEIFS($B$2:$B$796,$A$2:$A$796,"Saltillo 1") -> 18.1322314 | H16: 20 | I16: 50
A17: Zacatecas | B17: 28 | C17: 28 / 81 | E17: León - Insurgentes | F17: =COUNTIF($A$2:$A$796,"León - Insurgentes") -> 87 | G17: =AVERAGEIFS($B$2:$B$796,$A$2:$A$796,"León - Insurgentes") -> 15.45977011 | H17: 20 | I17: 50
A18: Zacatecas | B18: 4 | C18: 4 | E18: Juventino Rosas | F18: =COUNTIF($A$2:$A$796,"Juventino Rosas") -> 15 | G18: =AVERAGEIFS($B$2:$B$796,$A$2:$A$796,"Juventino Rosas") -> 11.66666667 | H18: 20 | I18: 50
A19: Zacatecas | B19: 7 | C19: 7 | E19: Total | F19: =SUM(F3:F18) -> 774
A20: Zacatecas | B20: 5 | C20: 5
A21: Zacatecas | B21: 7 | C21: 7
A22: Zacatecas | B22: 6 | C22: 6
A23: Zacatecas | B23: 29 | C23: 29 / 81
A24: Zacatecas | B24: 36 | C24: 36 / 81
A25: Zacatecas | B25: 26 | C25: 26 / 81
A26: Zacatecas | B26: 3 | C26: 3
A27: Zacatecas | B27: 15 | C27: 15 / 81
A28: Zacatecas | B28: 14 | C28: 14 / 81
A29: Zacatecas | B29: 24 | C29: 24 / 81
A30: Zacatecas | B30: 29 | C30: 29 / 81
A31: Zacatecas | B31: 15 | C31: 15 / 81
A32: Zacatecas | B32: 15 | C32: 15 / 81
A33: Zacatecas | B33: 10 | C33: 10
A34: Zacatecas | B34: 33 | C34: 33 / 81
A35: Zacatecas | B35: 22 | C35: 22 / 81
A36: Zacatecas | B36: 21 | C36: 21 / 81
A37: Zacatecas | B37: 8 | C37: 8
A38: Zacatecas | B38: 10 | C38: 10
A39: Zacatecas | B39: 7 | C39: 7
A40: Zacatecas | B40: 14 | C40: 14 / 81
A41: Silao 1 | B41: 8 | C41: 8
A42: Silao 1 | B42: 20 | C42: 20 / 81
A43: Silao 1 | B43: 5 | C43: 5
A44: Silao 1 | B44: 14 | C44: 14 / 81
A45: Silao 1 | B45: 10 | C45: 10
A46: Silao 1 | B46: 20 | C46: 20 / 81
A47: Silao 1 | B47: 11 | C47: 11
A48: Silao 1 | B48: 27 | C48: 27 / 81
A49: Silao 1 | B49: 29 | C49: 29 / 81
A50: Silao 1 | B50: 21 | C50: 21 / 81
A51: Silao 1 | B51: 10 | C51: 10
A52: Silao 1 | B52: 8 | C52: 8
A53: Silao 1 | B53: 6 | C53: 6
A54: Silao 1 | B54: 10 | C54: 10
A55: Silao 1 | B55: 3 | C55: 3
A56: Silao 1 | B56: 24 | C56: 24 / 81
A57: Silao 1 | B57: 34 | C57: 34 / 81
A58: Saltillo 1 | B58: 16 | C58: 16 / 81
A59: Saltillo 1 | B59: 34 | C59: 34 / 81
A60: Saltillo 1 | B60: 29 | C60: 29 / 81
A61: Saltillo 1 | B61: 27 | C61: 27 / 81
A62: Saltillo 1 | B62: 25 | C62: 25 / 81
A63: Saltillo 1 | B63: 29 | C63: 29 / 81
A64: Saltillo 1 | B64: 23 | C64: 23 / 81
A65: Saltillo 1 | B65: 23 | C65: 23 / 81
A66: Saltillo 1 | B66: =ABS(MID(C66,1,2)) -> 24 | C66: 24 / 81
A67: Saltillo 1 | B67: 13 | C67: 13 / 81
A68: Saltillo 1 | B68: 32 | C68: 32 / 81
A69: Saltillo 1 | B69: 19 | C69: 19 / 81
A70: Saltillo 1 | B70: 10 | C70: 10
A71: Saltillo 1 | B71: 23 | C71: 23 / 81
A72: Saltillo 1 | B72: 32 | C72: 32 / 81
A73: Saltillo 1 | B73: 9 | C73: 9
A74: Saltillo 1 | B74: 23 | C74: 23 / 81
A75: Saltillo 1 | B75: 12 | C75: 12
A76: Saltillo 1 | B76: 11 | C76: 11
A77: Saltillo 1 | B77: 8 | C77: 8
A78: Saltillo 1 | B78: 8 | C78: 8
A79: Saltillo 1 | B79: 16 | C79: 16 / 81
A80: Saltillo 1 | B80: 18 | C80: 18 / 81
A81: Saltillo 1 | B81: 21 | C81: 21 / 81
A82: Saltillo 1 | B82: 22 | C82: 22 / 81
A83: Saltillo 1 | B83: 11 | C83: 11
A84: Saltillo 1 | B84: 30 | C84: 30 / 81
A85: Saltillo 1 | B85: 7 | C85: 7
A86: Saltillo 1 | B86: 19 | C86: 19 / 81
A87: Saltillo 1 | B87: 53 | C87: 53 / 81
A88: Saltillo 1 | B88: 20 | C88: 20 / 81
A89: Saltillo 1 | B89: 17 | C89: 17 / 81
A90: Saltillo 1 | B90: 23 | C90: 23 / 81
A91: Saltillo 1 | B91: 4 | C91: 4
A92: Saltillo 1 | B92: 10 | C92: 10
A93: Saltillo 1 | B93: 30 | C93: 30 / 81
A94: Saltillo 1 | B94: 22 | C94: 22 / 81
A95: Saltillo 1 | B95: 49 | C95: 49 / 81
A96: Saltillo 1 | B96: 21 | C96: 21 / 81
A97: Saltillo 1 | B97: 24 | C97: 24 / 81
A98: Saltillo 1 | B98: 18 | C98: 18 / 81
A99: Saltillo 1 | B99: 24 | C99: 24 / 81
A100: Saltillo 1 | B100: 47 | C100: 47 / 81
A101: Saltillo 1 | B101: 16 | C101: 16 / 81
A102: Saltillo 1 | B102: 16 | C102: 16 / 81
A103: Saltillo 1 | B103: 17 | C103: 17 / 81
A104: Saltillo 1 | B104: 22 | C104: 22 / 81
A105: Saltillo 1 | B105: 22 | C105: 22 / 81
A106: Saltillo 1 | B106: 10 | C106: 10
A107: Saltillo 1 | B107: 24 | C107: 24 / 81
A108: Saltillo 1 | B108: 19 | C108: 19 / 81
A109: Saltillo 1 | B109: 1 | C109: 1
A110: Saltillo 1 | B110: 21 | C110: 21 / 81
A111: Saltillo 1 | B111: 10 | C111: 10
A112: Saltillo 1 | B112: 17 | C112: 17 / 81
A113: Saltillo 1 | B113: 14 | C113: 14 / 81
A114: Saltillo 1 | B114: 21 | C114: 21 / 81
A115: Saltillo 1 | B115: 5 | C115: 5
A116: Saltillo 1 | B116: 13 | C116: 13 / 81
A117: Saltillo 1 | B117: 31 | C117: 31 / 81
A118: Saltillo 1 | B118: 13 | C118: 13 / 81
A119: Saltillo 1 | B119: 7 | C119: 7
A120: Saltillo 1 | B120: 11 | C120: 11
A121: Saltillo 1 | B121: 12 | C121: 12
A122: Saltillo 1 | B122: 23 | C122: 23 / 81
A123: Saltillo 1 | B123: 27 | C123: 27 / 81
A124: Saltillo 1 | B124: 7 | C124: 7
A125: Saltillo 1 | B125: 34 | C125: 34 / 81
A126: Saltillo 1 | B126: 29 | C126: 1981-12-01
A127: Saltillo 1 | B127: 11 | C127: 11
A128: Saltillo 1 | B128: 17 | C128: 17 / 81
A129: Saltillo 1 | B129: 26 | C129: 26 / 81
A130: Saltillo 1 | B130: =ABS(MID(C130,1,2)) -> 20 | C130: 20 / 81
A131: Saltillo 1 | B131: 5 | C131: 5
A132: Saltillo 1 | B132: 23 | C132: 23 / 81
A133: Saltillo 1 | B133: 17 | C133: 17 / 81
A134: Saltillo 1 | B134: 14 | C134: 14 / 81
A135: Saltillo 1 | B135: 11 | C135: 11
A136: Saltillo 1 | B136: 12 | C136: 12
A137: Saltillo 1 | B137: 3 | C137: 3
A138: Saltillo 1 | B138: 8 | C138: 8
A139: Saltillo 1 | B139: 2 | C139: 2
A140: Saltillo 1 | B140: 14 | C140: 14 / 81
A141: Saltillo 1 | B141: 20 | C141: 20 / 81
A142: Saltillo 1 | B142: 19 | C142: 19 / 81
A143: Saltillo 1 | B143: 18 | C143: 18 / 81
A144: Saltillo 1 | B144: 29 | C144: 29 / 81
A145: Saltillo 1 | B145: 17 | C145: 17 / 81
A146: Saltillo 1 | B146: 8 | C146: 8
A147: Saltillo 1 | B147: 4 | C147: 4
A148: Saltillo 1 | B148: 25 | C148: 25 / 81
A149: Saltillo 1 | B149: 17 | C149: 17 / 81
A150: Saltillo 1 | B150: 19 | C150: 19 / 81
A151: Saltillo 1 | B151: 15 | C151: 15 / 81
A152: Saltillo 1 | B152: 19 | C152: 19 / 81
A153: Saltillo 1 | B153: 4 | C153: 4
A154: Saltillo 1 | B154: 12 | C154: 12
A155: Saltillo 1 | B155: 6 | C155: 6
A156: Saltillo 1 | B156: 8 | C156: 8
A157: Saltillo 1 | B157: 18 | C157: 18 / 81
A158: Saltillo 1 | B158: 6 | C158: 6
A159: Saltillo 1 | B159: 10 | C159: 10
A160: Saltillo 1 | B160: 21 | C160: 21 / 81
A161: Saltillo 1 | B161: 30 | C161: 30 / 81
A162: Saltillo 1 | B162: 16 | C162: 16 / 81
A163: Saltillo 1 | B163: 5 | C163: 5
A164: Saltillo 1 | B164: 7 | C164: 7
A165: Saltillo 1 | B165: 32 | C165: 32 / 81
A166: Saltillo 1 | B166: 9 | C166: 9
A167: Saltillo 1 | B167: 16 | C167: 16 / 81
A168: Saltillo 1 | B168: 15 | C168: 15 / 81
A169: Saltillo 1 | B169: 20 | C169: 20 / 81
A170: Saltillo 1 | B170: 12 | C170: 12
A171: Saltillo 1 | B171: 15 | C171: 15 / 81
A172: Saltillo 1 | B172: 19 | C172: 19 / 81
A173: Saltillo 1 | B173: 29 | C173: 29 / 81
A174: Saltillo 1 | B174: 15 | C174: 15 / 81
A175: Saltillo 1 | B175: 16 | C175: 16 / 81
A176: Saltillo 1 | B176: 25 | C176: 25 / 81
A177: Saltillo 1 | B177: 38 | C177: 38 / 81
A178: Saltillo 1 | B178: 19 | C178: 19 / 81
A179: Salamanca | B179: 17 | C179: 17 / 81
A180: Salamanca | B180: 21 | C180: 21 / 81
A181: Salamanca | B181: 13 | C181: 13 / 81
A182: Salamanca | B182: 14 | C182: 14 / 81
A183: Salamanca | B183: 19 | C183: 19 / 81
A184: Salamanca | B184: 24 | C184: 24 / 81
A185: Salamanca | B185: 6 | C185: 6
A186: Salamanca | B186: 28 | C186: 28 / 81
A187: Salamanca | B187: 37 | C187: 37 / 81
A188: Salamanca | B188: 22 | C188: 22 / 81
A189: Salamanca | B189: 8 | C189: 8
A190: Salamanca | B190: 22 | C190: 22 / 81
A191: Salamanca | B191: 21 | C191: 21 / 81
A192: Salamanca | B192: 30 | C192: 30 / 81
A193: Salamanca | B193: 15 | C193: 15 / 81
A194: Salamanca | B194: =ABS(MID(C194,1,2)) -> 15 | C194: 15 / 81
A195: Salamanca | B195: 17 | C195: 17 / 81
A196: Salamanca | B196: 21 | C196: 21 / 81
A197: Salamanca | B197: 5 | C197: 5
A198: Salamanca | B198: 5 | C198: 5
A199: Salamanca | B199: 8 | C199: 8
A200: Salamanca | B200: 29 | C200: 29 / 81
... 607 more rows

Sheet Reporte general Planteles (hidden)
B6: Resultados promedio de tamizajes por plantel
B8: Planteles | C8: Aplicaciones | D8: Promedio de puntuación
B9: Zacatecas | C9: ='Datos generales de planteles'!F3 -> 39 | D9: ='Datos generales de planteles'!G3 -> 19.8974359
B10: Silao 1 | C10: ='Datos generales de planteles'!F4 -> 17 | D10: ='Datos generales de planteles'!G4 -> 15.29411765
B11: Salamanca | C11: ='Datos generales de planteles'!F5 -> 47 | D11: ='Datos generales de planteles'!G5 -> 19.57446809
B12: León - Madero 801 | C12: ='Datos generales de planteles'!F6 -> 38 | D12: ='Datos generales de planteles'!G6 -> 21.71052632
B13: León - Firenze | C13: ='Datos generales de planteles'!F7 -> 35 | D13: ='Datos generales de planteles'!G7 -> 18.77142857
B14: Irapuato - Fiesta | C14: ='Datos generales de planteles'!F8 -> 14 | D14: ='Datos generales de planteles'!G8 -> 19.21428571
B15: Celaya - Firenze | C15: ='Datos generales de planteles'!F9 -> 17 | D15: ='Datos generales de planteles'!G9 -> 25.70588235
B16: Aguascalientes | C16: ='Datos generales de planteles'!F10 -> 12 | D16: ='Datos generales de planteles'!G10 -> 26.91666667
B17: Champs Elysees Leon | C17: ='Datos generales de planteles'!F11 -> 29 | D17: ='Datos generales de planteles'!G11 -> 16.31034483
B18: León - Pinosuárez (Motolinia) | C18: ='Datos generales de planteles'!F12 -> 84 | D18: ='Datos generales de planteles'!G12 -> 19.54761905
B19: León - Juárez 404 | C19: ='Datos generales de planteles'!F13 -> 21 | D19: ='Datos generales de planteles'!G13 -> 19.85714286
B20: León - Francisco Z. Mena | C20: ='Datos generales de planteles'!F14 -> 28 | D20: ='Datos generales de planteles'!G14 -> 19.42857143
B21: León - Díaz Mirón | C21: ='Datos generales de planteles'!F15 -> 170 | D21: ='Datos generales de planteles'!G15 -> 19.51176471
B22: Saltillo 1 | C22: ='Datos generales de planteles'!F16 -> 121 | D22: ='Datos generales de planteles'!G16 -> 18.1322314
B23: León - Insurgentes | C23: ='Datos generales de planteles'!F17 -> 87 | D23: ='Datos generales de planteles'!G17 -> 15.45977011
B24: Juventino Rosas | C24: ='Datos generales de planteles'!F18 -> 15 | D24: ='Datos generales de planteles'!G18 -> 11.66666667
B25: Total | C25: ='Datos generales de planteles'!F19 -> 774
B42: Promedio por puntuación
B43: Es el promedio de respuestas de cada alumno al que se le aplicó el tamizaje.
B45: Límite Promedio de puntuación
B46: Es el limite de respuestas en las cuales los alumnos requieren una atención como acción mínima (Debajo de este promedio se consideran alumnos sin riesgo y por encima de esta se considera con riesgo probable)
B50: Límite Crítico de puntuación
B51: Por encima de este limite se considera necesario una atención inmediata para los alumnos pues se encuentran en un riesgo muy alto
